Body_Code,Body_Name,Service,Posting Date,GL Code,GL Code Desc,Doc Number,Doc Net Amount,Supplier Name
http://statistics.data.gov.uk/id/local-authority/38,Oxfordshire County Council,ELECTRICAL ENERGY,07/02/2022,3951,Non System - Electricity,2200953534,"-318,433.08",EDF Energy Customers Ltd
http://statistics.data.gov.uk/id/local-authority/38,Oxfordshire County Council,ELECTRICAL ENERGY,07/02/2022,3951,Non System - Electricity,2200953551,"-215,123.72",EDF Energy Customers Ltd
http://statistics.data.gov.uk/id/local-authority/38,Oxfordshire County Council,TRANSPORT,02/02/2022,5227,Other Transport Arrangements,2200951818,"-62,379.49",FCC Environment (UK) Ltd
http://statistics.data.gov.uk/id/local-authority/38,Oxfordshire County Council,ELECTRICAL ENERGY,09/02/2022,3951,Non System - Electricity,2200954281,"-48,038.46",EDF Energy Customers Ltd
http://statistics.data.gov.uk/id/local-authority/38,Oxfordshire County Council,CHC Fast Track - Care Homes - Over 65,10/02/2022,5687,,3111123607,"-44,016.84",SANCTUARY CARE LTD
http://statistics.data.gov.uk/id/local-authority/38,Oxfordshire County Council,ELECTRICAL ENERGY,07/02/2022,3951,Non System - Electricity,2200953536,"-43,621.17",EDF Energy Customers Ltd
http://statistics.data.gov.uk/id/local-authority/38,Oxfordshire County Council,ELECTRICAL ENERGY,07/02/2022,3951,Non System - Electricity,2200953538,"-36,142.66",EDF Energy Customers Ltd
http://statistics.data.gov.uk/id/local-authority/38,Oxfordshire County Council,Support at Home 65+ Mental Health,10/02/2022,5686,,3111123878,"-34,793.43",Orders of St John
http://statistics.data.gov.uk/id/local-authority/38,Oxfordshire County Council,Mainstream Res,09/02/2022,5558,,3111120486,"-31,928.57",New Reflections
http://statistics.data.gov.uk/id/local-authority/38,Oxfordshire County Council,Support at Home 65+ Physical Support,10/02/2022,5687,,3111122507,"-30,376.44",Orders of St John
http://statistics.data.gov.uk/id/local-authority/38,Oxfordshire County Council,Mainstream Res,09/02/2022,5558,,3111120485,"-29,800.00",New Reflections
http://statistics.data.gov.uk/id/local-authority/38,Oxfordshire County Council,ELECTRICAL ENERGY,07/02/2022,3951,Non System - Electricity,2200953537,"-29,397.68",EDF Energy Customers Ltd
http://statistics.data.gov.uk/id/local-authority/38,Oxfordshire County Council,Continuing Care - Care Homes - 65+,10/02/2022,5687,,3111124824,"-29,376.00",Four Seasons (Headington) Ltd
http://statistics.data.gov.uk/id/local-authority/38,Oxfordshire County Council,LANDLORD & TENANT,21/02/2022,3945,Rent,2200958302,"-29,080.00",Workman LLP
http://statistics.data.gov.uk/id/local-authority/38,Oxfordshire County Council,Care Homes - Over 65 Physical Sypport,10/02/2022,5687,,3111124300,"-24,821.41",Middletown Grange Care Home
http://statistics.data.gov.uk/id/local-authority/38,Oxfordshire County Council,Support at Home 65+ Physical Support,11/02/2022,2040,Agency Staff,2200955455,"-23,450.29",Charterville Care At Home Ltd
http://statistics.data.gov.uk/id/local-authority/38,Oxfordshire County Council,VOIDS/VACANCY COSTS,10/02/2022,5688,,3111121813,"-22,234.90",The Brandon Trust
http://statistics.data.gov.uk/id/local-authority/38,Oxfordshire County Council,ELECTRICAL ENERGY,09/02/2022,3951,Non System - Electricity,2200954283,"-22,197.01",EDF Energy Customers Ltd
http://statistics.data.gov.uk/id/local-authority/38,Oxfordshire County Council,Support at Home 65+ Memory & Cognition,10/02/2022,5686,,3111123338,"-21,630.00",Coxwell Hall & Mews Nursing Home
http://statistics.data.gov.uk/id/local-authority/38,Oxfordshire County Council,Care Homes - Over 65 Physical Sypport,10/02/2022,5687,,3111124704,"-18,667.45",The Close Nursing Home
http://statistics.data.gov.uk/id/local-authority/38,Oxfordshire County Council,ELECTRICAL ENERGY,14/02/2022,3951,Non System - Electricity,2200955714,"-15,472.62",EDF Energy Customers Ltd
http://statistics.data.gov.uk/id/local-authority/38,Oxfordshire County Council,VOIDS/VACANCY COSTS,10/02/2022,3945,Rent,3111121431,"-14,355.30",Chrysalis Supported Association Ltd
http://statistics.data.gov.uk/id/local-authority/38,Oxfordshire County Council,ELECTRICAL ENERGY,07/02/2022,3951,Non System - Electricity,2200953549,"-14,137.15",EDF Energy Customers Ltd
http://statistics.data.gov.uk/id/local-authority/38,Oxfordshire County Council,Support at Home 65+ Physical Support,10/02/2022,5687,,3111122626,"-12,740.45",Grace Care Service Ltd T/A Burford
http://statistics.data.gov.uk/id/local-authority/38,Oxfordshire County Council,CHC Fast Track - Care Homes - Over 65,10/02/2022,5687,,3111125057,"-12,014.29",MARIA MALLABAND CARE GROUP
http://statistics.data.gov.uk/id/local-authority/38,Oxfordshire County Council,Continuing Care - Care Homes - Under 65,10/02/2022,5687,,3111122790,"-11,976.00",CASTEL FROMA NEURO CARE
http://statistics.data.gov.uk/id/local-authority/38,Oxfordshire County Council,Support at Home U65 Physical Support,10/02/2022,5687,,3111124887,"-11,200.00",The Langston
http://statistics.data.gov.uk/id/local-authority/38,Oxfordshire County Council,Funded Nursing Care  - Over 65,10/02/2022,5692,,3111123621,"-11,038.42",SANCTUARY CARE LTD
http://statistics.data.gov.uk/id/local-authority/38,Oxfordshire County Council,Support at Home 65+ Physical Support,10/02/2022,5686,,3111122960,"-10,685.72",Cherwood House Care Centre
http://statistics.data.gov.uk/id/local-authority/38,Oxfordshire County Council,Support at Home U65 Learning Disability,25/02/2022,5688,,3111131989,"-10,590.72",The Brandon Trust
http://statistics.data.gov.uk/id/local-authority/38,Oxfordshire County Council,Funded Nursing Care  - Over 65,10/02/2022,5692,,3111123617,"-10,381.56",SANCTUARY CARE LTD
http://statistics.data.gov.uk/id/local-authority/38,Oxfordshire County Council,Support at Home U65 Physical Support,10/02/2022,5685,B*Cycle tracks,3111124655,"-10,107.69",St Lukes Nursing Home (Oxford)
http://statistics.data.gov.uk/id/local-authority/38,Oxfordshire County Council,Support at Home 65+ Physical Support,10/02/2022,5687,,3111124871,"-10,058.18",The Langston
http://statistics.data.gov.uk/id/local-authority/38,Oxfordshire County Council,Continuing Care - Care Homes - 65+,10/02/2022,5687,,3111122030,"-9,889.28",Abbey Crest Nursing Home
http://statistics.data.gov.uk/id/local-authority/38,Oxfordshire County Council,Care Homes - Over 65 Memory & Cognition,10/02/2022,5687,,3111122460,"-9,828.44",METHODIST HOMES
http://statistics.data.gov.uk/id/local-authority/38,Oxfordshire County Council,Mainstream Res,09/02/2022,5558,,3111120484,"-9,578.57",New Reflections
http://statistics.data.gov.uk/id/local-authority/38,Oxfordshire County Council,Support at Home 65+ Physical Support,10/02/2022,5686,,3111123942,"-9,095.00",Orders of St John
http://statistics.data.gov.uk/id/local-authority/38,Oxfordshire County Council,ELECTRICAL ENERGY,07/02/2022,3951,Non System - Electricity,2200953544,"-8,847.43",EDF Energy Customers Ltd
http://statistics.data.gov.uk/id/local-authority/38,Oxfordshire County Council,Interim Funding  - Care Homes - Over 65,10/02/2022,5687,,3111124284,"-8,285.72",Middletown Grange Care Home
http://statistics.data.gov.uk/id/local-authority/38,Oxfordshire County Council,Support at Home U65 Physical Support,25/02/2022,5688,,3111131983,"-8,234.12",The Brandon Trust
http://statistics.data.gov.uk/id/local-authority/38,Oxfordshire County Council,Covid 19 CHC,10/02/2022,5687,,3111122482,"-8,171.43",Freeland House
http://statistics.data.gov.uk/id/local-authority/38,Oxfordshire County Council,Support at Home 65+ Physical Support,10/02/2022,5686,,3111122597,"-7,566.29",Orders of St John
http://statistics.data.gov.uk/id/local-authority/38,Oxfordshire County Council,ELECTRICAL ENERGY,07/02/2022,3951,Non System - Electricity,2200953535,"-7,394.18",EDF Energy Customers Ltd
http://statistics.data.gov.uk/id/local-authority/38,Oxfordshire County Council,Support at Home 65+ Physical Support,10/02/2022,5686,,3111122604,"-6,973.71",Orders of St John
http://statistics.data.gov.uk/id/local-authority/38,Oxfordshire County Council,Care Homes - Over 65 Memory & Cognition,10/02/2022,5686,,3111123203,"-6,955.00",Orders of St John
http://statistics.data.gov.uk/id/local-authority/38,Oxfordshire County Council,Care Homes - Under 65 Leaning Disability,10/02/2022,5686,,3111123103,"-6,588.25",Choice Ltd
http://statistics.data.gov.uk/id/local-authority/38,Oxfordshire County Council,COMM DRAWDOWN FUNDNG,17/02/2022,8103,Payments to sub contractor,2200957582,"-6,246.30",SCOTTISH & SOUTHERN ENERGY POWER
http://statistics.data.gov.uk/id/local-authority/38,Oxfordshire County Council,Support at Home 65+ Physical Support,10/02/2022,5685,B*Cycle tracks,3111124953,"-6,126.12",The Triangle Nursing Home
http://statistics.data.gov.uk/id/local-authority/38,Oxfordshire County Council,Support at Home 65+ Physical Support,10/02/2022,5686,,3111123853,"-6,099.00",Orders of St John
http://statistics.data.gov.uk/id/local-authority/38,Oxfordshire County Council,CHC Fast Track - Care Homes - Over 65,10/02/2022,5687,,3111124279,"-5,942.85",Middletown Grange Care Home
http://statistics.data.gov.uk/id/local-authority/38,Oxfordshire County Council,CHC Fast Track - Care Homes - Over 65,10/02/2022,5687,,3111124816,"-5,785.71",Four Seasons (Headington) Ltd
http://statistics.data.gov.uk/id/local-authority/38,Oxfordshire County Council,VOIDS/VACANCY COSTS,25/02/2022,5688,,3111131999,"-5,764.39",The Brandon Trust
http://statistics.data.gov.uk/id/local-authority/38,Oxfordshire County Council,Support at Home U65 Physical Support,23/02/2022,5899,Social Care - Direct Payments,3111131420,"-5,635.92",Personal Redacted Data
http://statistics.data.gov.uk/id/local-authority/38,Oxfordshire County Council,Support at Home 65+ Physical Support,10/02/2022,5686,,3111123753,"-5,571.43",GCH (St Katherines) Ltd
http://statistics.data.gov.uk/id/local-authority/38,Oxfordshire County Council,Care Homes - Over 65 Memory & Cognition,10/02/2022,5687,,3111122638,"-5,220.86",Heathfield House Nursing Home
http://statistics.data.gov.uk/id/local-authority/38,Oxfordshire County Council,Care Homes - Over 65 Physical Sypport,10/02/2022,5687,,3111122133,"-5,125.46",Acacia Lodge Care Home
http://statistics.data.gov.uk/id/local-authority/38,Oxfordshire County Council,Continuing Care - Care Homes - 65+,10/02/2022,5687,,3111124681,"-4,971.43",Tall Trees
http://statistics.data.gov.uk/id/local-authority/38,Oxfordshire County Council,Care Homes - Over 65 Memory & Cognition,10/02/2022,5687,,3111122421,"-4,800.00",Freeland House
http://statistics.data.gov.uk/id/local-authority/38,Oxfordshire County Council,Funded Nursing Care  - Over 65,10/02/2022,5692,,3111122605,"-4,770.40",HEALTHCARE HOMES (SPRING) LIMITED
http://statistics.data.gov.uk/id/local-authority/38,Oxfordshire County Council,Support at Home 65+ Physical Support,11/02/2022,2040,Agency Staff,2200955429,"-4,741.38",Home Helpers Care Ltd
http://statistics.data.gov.uk/id/local-authority/38,Oxfordshire County Council,Support at Home 65+ Physical Support,10/02/2022,5685,B*Cycle tracks,3111124935,"-4,721.60",The Triangle Nursing Home
http://statistics.data.gov.uk/id/local-authority/38,Oxfordshire County Council,Support at Home 65+ Physical Support,10/02/2022,5686,,3111122657,"-4,601.00",Orders of St John
http://statistics.data.gov.uk/id/local-authority/38,Oxfordshire County Council,Care Homes - Over 65 Memory & Cognition,10/02/2022,5686,,3111123667,"-4,494.00",OSJ Contract - Stirlings
http://statistics.data.gov.uk/id/local-authority/38,Oxfordshire County Council,Care Homes - Over 65 Memory & Cognition,10/02/2022,5686,,3111122043,"-4,480.50",ACER HEALTHCARE LTD
http://statistics.data.gov.uk/id/local-authority/38,Oxfordshire County Council,Care Homes - Over 65 Physical Sypport,10/02/2022,5687,,3111122716,"-4,435.71",Heathfield House Nursing Home
http://statistics.data.gov.uk/id/local-authority/38,Oxfordshire County Council,Funded Nursing Care  - Over 65,10/02/2022,5692,,3111124528,"-4,261.20",Barchester Healthcare Homes Ltd
http://statistics.data.gov.uk/id/local-authority/38,Oxfordshire County Council,Care Homes - Over 65 Physical Sypport,10/02/2022,5687,,3111122820,"-4,167.43",Huntercombe Hall Ltd
http://statistics.data.gov.uk/id/local-authority/38,Oxfordshire County Council,Care Homes - Over 65 Physical Sypport,10/02/2022,5686,,3111123507,"-3,852.00",OSJ  - Old Station House
http://statistics.data.gov.uk/id/local-authority/38,Oxfordshire County Council,VOIDS/VACANCY COSTS,10/02/2022,3945,Rent,3111121465,"-3,722.35",Cherwell District Council
http://statistics.data.gov.uk/id/local-authority/38,Oxfordshire County Council,Support at Home U65 Learning Disability,10/02/2022,5688,,3111121507,"-3,654.31",Mencap Contracts
http://statistics.data.gov.uk/id/local-authority/38,Oxfordshire County Council,Care Homes - Over 65 Memory & Cognition,10/02/2022,5687,,3111122622,"-3,642.86",Grace Care Service Ltd T/A Burford
http://statistics.data.gov.uk/id/local-authority/38,Oxfordshire County Council,Care Homes - Over 65 Physical Sypport,10/02/2022,5687,,3111124685,"-3,642.86",Tall Trees
http://statistics.data.gov.uk/id/local-authority/38,Oxfordshire County Council,Continuing Care - Care Homes - 65+,10/02/2022,5687,,3111123714,"-3,574.29",Orders of St John
http://statistics.data.gov.uk/id/local-authority/38,Oxfordshire County Council,Consultation & Engagement,18/02/2022,5186,Licences,3111129375,"-3,500.00",OCC One Time Vendor
http://statistics.data.gov.uk/id/local-authority/38,Oxfordshire County Council,CHC Fast Track - Care Homes - Over 65,10/02/2022,5687,,3111122879,"-3,428.57",Mill House Nursing Home
http://statistics.data.gov.uk/id/local-authority/38,Oxfordshire County Council,Afghanistan Hotel Education Grant,22/02/2022,7003,"Courses, Classes, Workshops and Clubs",3111129805,"-3,412.08",OCC Sutton Courtenay CE
http://statistics.data.gov.uk/id/local-authority/38,Oxfordshire County Council,Care Homes - Over 65 Physical Sypport,10/02/2022,5687,,3111122067,"-3,300.00",ACER HEALTHCARE LTD
http://statistics.data.gov.uk/id/local-authority/38,Oxfordshire County Council,Care Homes - Over 65 Physical Sypport,10/02/2022,5687,,3111122150,"-3,293.18",Banbury Heights Nursing Home
http://statistics.data.gov.uk/id/local-authority/38,Oxfordshire County Council,Support at Home 65+ Physical Support,10/02/2022,5687,,3111122612,"-3,214.29",Grace Care Service Ltd T/A Burford
http://statistics.data.gov.uk/id/local-authority/38,Oxfordshire County Council,Care Homes - Over 65 Physical Sypport,10/02/2022,5687,,3111123810,"-3,148.35",GCH (St Katherines) Ltd
http://statistics.data.gov.uk/id/local-authority/38,Oxfordshire County Council,Care Homes - Over 65 Physical Sypport,10/02/2022,5687,,3111124120,"-3,142.86",The Julie Richardson Nursing Home
http://statistics.data.gov.uk/id/local-authority/38,Oxfordshire County Council,Independent Foster,10/02/2022,4861,Hired and Contracted Services,2200955080,"-3,119.44",BCP Council
http://statistics.data.gov.uk/id/local-authority/38,Oxfordshire County Council,Support at Home 65+ Physical Support,10/02/2022,5686,,3111124314,"-3,085.71",Newland House
http://statistics.data.gov.uk/id/local-authority/38,Oxfordshire County Council,Continuing Care - Care Homes - Under 65,10/02/2022,5687,,3111124827,"-3,060.00",Four Seasons (Headington) Ltd
http://statistics.data.gov.uk/id/local-authority/38,Oxfordshire County Council,FLEET OPERATIONS,07/02/2022,4270,HTM / Other Vehicle - Hire Charges,2200953423,"-2,992.47",London Hire
http://statistics.data.gov.uk/id/local-authority/38,Oxfordshire County Council,LD Continuing Care - Sup at Home - U65,11/02/2022,5691,,3111125457,"-2,860.00",First Option Healthcare Ltd
http://statistics.data.gov.uk/id/local-authority/38,Oxfordshire County Council,Family Solutions Plus Non-staff - North,11/02/2022,4859,Medical and Counselling Fees,2200955344,"-2,750.00",Autism Champions
http://statistics.data.gov.uk/id/local-authority/38,Oxfordshire County Council,COMMUNITY & ROAD SAFETY,11/02/2022,3103,Other Training Courses and Qualification,2200955463,"-2,745.00",The Bike Academy (South) Ltd
http://statistics.data.gov.uk/id/local-authority/38,Oxfordshire County Council,VOIDS/VACANCY COSTS,10/02/2022,3945,Rent,3111121463,"-2,732.38",Cherwell District Council
http://statistics.data.gov.uk/id/local-authority/38,Oxfordshire County Council,Care Homes - Over 65 Physical Sypport,10/02/2022,5686,,3111123792,"-2,724.86",GCH (St Katherines) Ltd
http://statistics.data.gov.uk/id/local-authority/38,Oxfordshire County Council,Support at Home U65 Learning Disability,25/02/2022,5688,,3111131993,"-2,668.19",The Brandon Trust
http://statistics.data.gov.uk/id/local-authority/38,Oxfordshire County Council,Care Homes - Over 65 Memory & Cognition,10/02/2022,5687,,3111122585,"-2,668.11",HEALTHCARE HOMES (SPRING) LIMITED
http://statistics.data.gov.uk/id/local-authority/38,Oxfordshire County Council,Support at Home U65 Learning Disability,25/02/2022,5688,,3111131987,"-2,618.52",The Brandon Trust
http://statistics.data.gov.uk/id/local-authority/38,Oxfordshire County Council,Support at Home U65 Learning Disability,25/02/2022,5688,,3111131992,"-2,618.52",The Brandon Trust
http://statistics.data.gov.uk/id/local-authority/38,Oxfordshire County Council,Support at Home U65 Learning Disability,25/02/2022,5688,,3111131995,"-2,618.52",The Brandon Trust
http://statistics.data.gov.uk/id/local-authority/38,Oxfordshire County Council,LAC PUPIL PREMIUM,23/02/2022,5537,Payments to Other Establishments,3111131273,"-2,600.00",Maiden Erlegh Chiltern Edge
http://statistics.data.gov.uk/id/local-authority/38,Oxfordshire County Council,Planned Maintenance,21/02/2022,3787,Premises Repairs,2200958219,"-2,533.20",Windrush Door & Window Services Ltd
http://statistics.data.gov.uk/id/local-authority/38,Oxfordshire County Council,Care Homes - Over 65 Physical Sypport,10/02/2022,5687,,3111124270,"-2,515.26",Middletown Grange Care Home
http://statistics.data.gov.uk/id/local-authority/38,Oxfordshire County Council,Care Homes - Under 65 Mental Health,10/02/2022,5686,,3111122842,"-2,484.43",Chacombe Park Care Home
http://statistics.data.gov.uk/id/local-authority/38,Oxfordshire County Council,Support at Home 65+ Learning Disability,25/02/2022,5688,,3111131997,"-2,440.53",The Brandon Trust
http://statistics.data.gov.uk/id/local-authority/38,Oxfordshire County Council,HOUSING & IMMIGRATION & SOUTHWARK S17,22/02/2022,4940,Other Services,2200958541,"-2,436.82",Valley House
http://statistics.data.gov.uk/id/local-authority/38,Oxfordshire County Council,Support at Home U65 Learning Disability,25/02/2022,5688,,3111131994,"-2,403.23",The Brandon Trust
http://statistics.data.gov.uk/id/local-authority/38,Oxfordshire County Council,PROCUREMENT,22/02/2022,4685,Clothing and Uniforms,2200958496,"-2,360.00",BRISTOL UNIFORMS LTD
http://statistics.data.gov.uk/id/local-authority/38,Oxfordshire County Council,Care Homes - Over 65 Physical Sypport,10/02/2022,5687,,3111122549,"-2,351.19",METHODIST HOMES
http://statistics.data.gov.uk/id/local-authority/38,Oxfordshire County Council,CHC Fast Track - Care Homes - Over 65,10/02/2022,5687,,3111124570,"-2,278.57",Stowford House
http://statistics.data.gov.uk/id/local-authority/38,Oxfordshire County Council,SEN TRANSPORT,21/02/2022,4330,Transport to School Activities,3111129468,"-2,160.00",The Oxfordshire Taxi Company Ltd T/
http://statistics.data.gov.uk/id/local-authority/38,Oxfordshire County Council,Support at Home 65+ Physical Support,10/02/2022,5686,,3111122360,"-2,140.00",Orders of St John
http://statistics.data.gov.uk/id/local-authority/38,Oxfordshire County Council,Procurement Rebates & Income,02/02/2022,7203,Other Miscellaneous Income,3111116661,"-2,116.68",Go Green Taxis
http://statistics.data.gov.uk/id/local-authority/38,Oxfordshire County Council,Procurement Rebates & Income,02/02/2022,7203,Other Miscellaneous Income,3111116822,"-2,101.14",Transpiration Ltd
http://statistics.data.gov.uk/id/local-authority/38,Oxfordshire County Council,Care Homes - Over 65 Physical Sypport,10/02/2022,5687,,3111124776,"-2,026.46",The Grange Care Centre
http://statistics.data.gov.uk/id/local-authority/38,Oxfordshire County Council,Support at Home 65+ Memory & Cognition,10/02/2022,5686,,3111125083,"-1,971.43",MARIA MALLABAND CARE GROUP
http://statistics.data.gov.uk/id/local-authority/38,Oxfordshire County Council,Independent Foster,10/02/2022,4861,Hired and Contracted Services,2200955099,"-1,958.54",BCP Council
http://statistics.data.gov.uk/id/local-authority/38,Oxfordshire County Council,CHC Fast Track - Care Homes - Over 65,10/02/2022,5687,,3111124659,"-1,950.00",St Lukes Nursing Home (Oxford)
http://statistics.data.gov.uk/id/local-authority/38,Oxfordshire County Council,Family Solutions Plus Non-staff - North,22/02/2022,4940,Other Services,2200958533,"-1,922.29",Valley House
http://statistics.data.gov.uk/id/local-authority/38,Oxfordshire County Council,Support at Home 65+ Physical Support,10/02/2022,5686,,3111123811,"-1,900.00",GCH (St Katherines) Ltd
http://statistics.data.gov.uk/id/local-authority/38,Oxfordshire County Council,,22/02/2022,1448,Blackfield Inc & Exp A/c,3111129827,"-1,860.48",OCC One Time Vendor
http://statistics.data.gov.uk/id/local-authority/38,Oxfordshire County Council,Covid 19 CHC,10/02/2022,5687,,3111123940,"-1,836.71",Orders of St John
http://statistics.data.gov.uk/id/local-authority/38,Oxfordshire County Council,Care Homes - Over 65 Physical Sypport,10/02/2022,5686,,3111123864,"-1,819.00",Orders of St John
http://statistics.data.gov.uk/id/local-authority/38,Oxfordshire County Council,Continuing Care - Support at Home - 65+,18/02/2022,5691,,3111129445,"-1,800.00",KIT Mobility Taxis Oxford Ltd
http://statistics.data.gov.uk/id/local-authority/38,Oxfordshire County Council,ADOPTION ALLOWANCES,01/02/2022,5664,B*Holiday Allowance,3111114376,"-1,773.65",Personal Redacted Data
http://statistics.data.gov.uk/id/local-authority/38,Oxfordshire County Council,Care Homes - Over 65 Memory & Cognition,10/02/2022,5687,,3111124344,"-1,771.00",Oxford Beaumont
http://statistics.data.gov.uk/id/local-authority/38,Oxfordshire County Council,POST18 UASC DCSF FND,24/02/2022,5785,Client Lodgings and Accommodation,3111131873,"-1,697.08",Response Organisation
http://statistics.data.gov.uk/id/local-authority/38,Oxfordshire County Council,Support at Home 65+ Physical Support,10/02/2022,5685,B*Cycle tracks,3111124785,"-1,685.17",The Grange Care Centre
http://statistics.data.gov.uk/id/local-authority/38,Oxfordshire County Council,Continuing Care - Care Homes - 65+,10/02/2022,5687,,3111124050,"-1,676.20",Cedar Court Care Home
http://statistics.data.gov.uk/id/local-authority/38,Oxfordshire County Council,Care Homes - Over 65 Physical Sypport,10/02/2022,5687,,3111122108,"-1,674.73",Banbury Heights Nursing Home
http://statistics.data.gov.uk/id/local-authority/38,Oxfordshire County Council,Care Homes - Over 65 Memory & Cognition,10/02/2022,5687,,3111122171,"-1,661.14",Beech Haven Care Home
http://statistics.data.gov.uk/id/local-authority/38,Oxfordshire County Council,PROCUREMENT,03/02/2022,4685,Clothing and Uniforms,2200952299,"-1,660.00",BRISTOL UNIFORMS LTD
http://statistics.data.gov.uk/id/local-authority/38,Oxfordshire County Council,Continuing Care - Care Homes - 65+,10/02/2022,5687,,3111122798,"-1,657.14",Chacombe Park Care Home
http://statistics.data.gov.uk/id/local-authority/38,Oxfordshire County Council,Support at Home 65+ Physical Support,10/02/2022,5686,,3111122998,"-1,605.00",Orders of St John
http://statistics.data.gov.uk/id/local-authority/38,Oxfordshire County Council,ELECTRICAL ENERGY,15/02/2022,3951,Non System - Electricity,2200956479,"-1,577.12",EDF Energy Customers Ltd
http://statistics.data.gov.uk/id/local-authority/38,Oxfordshire County Council,Care Homes - Over 65 Memory & Cognition,10/02/2022,5685,B*Cycle tracks,3111122493,"-1,553.26",METHODIST HOMES
http://statistics.data.gov.uk/id/local-authority/38,Oxfordshire County Council,ILS Costs,10/02/2022,4861,Hired and Contracted Services,2200954662,"-1,520.00",Hut Six Digital
http://statistics.data.gov.uk/id/local-authority/38,Oxfordshire County Council,Care Homes - Over 65 Memory & Cognition,10/02/2022,5686,,3111123440,"-1,498.00",Orders of St John
http://statistics.data.gov.uk/id/local-authority/38,Oxfordshire County Council,Support at Home 65+ Physical Support,10/02/2022,5685,B*Cycle tracks,3111122557,"-1,497.94",Orders of St John
http://statistics.data.gov.uk/id/local-authority/38,Oxfordshire County Council,Funded Nursing Care  - Over 65,10/02/2022,5692,,3111122328,"-1,366.80",Freeland House
http://statistics.data.gov.uk/id/local-authority/38,Oxfordshire County Council,Support at Home U65 Learning Disability,10/02/2022,5690,,3111120846,"-1,359.23",MacIntyre Care (Womaston)
http://statistics.data.gov.uk/id/local-authority/38,Oxfordshire County Council,Care Homes - Over 65 Memory & Cognition,10/02/2022,5686,,3111122722,"-1,350.00",CARE UK COMMUNITY PARTNERSHIPS LIMI
http://statistics.data.gov.uk/id/local-authority/38,Oxfordshire County Council,Support at Home 65+ Physical Support,01/02/2022,5696,,3111115669,"-1,311.00",All Care GB Ltd
http://statistics.data.gov.uk/id/local-authority/38,Oxfordshire County Council,Funded Nursing Care  - Over 65,10/02/2022,5692,,3111124515,"-1,286.40",Barchester Healthcare Homes Ltd
http://statistics.data.gov.uk/id/local-authority/38,Oxfordshire County Council,Care Homes - Over 65 Memory & Cognition,10/02/2022,5686,,3111122785,"-1,284.00",Orders of St John
http://statistics.data.gov.uk/id/local-authority/38,Oxfordshire County Council,COMMUNITY & ROAD SAFETY,11/02/2022,3103,Other Training Courses and Qualification,2200955442,"-1,260.00",Windrush Bike Project CIC
http://statistics.data.gov.uk/id/local-authority/38,Oxfordshire County Council,CHC Fast Track - Care Homes - Over 65,10/02/2022,5687,,3111124553,"-1,242.86",Barchester Healthcare Homes Ltd
http://statistics.data.gov.uk/id/local-authority/38,Oxfordshire County Council,Continuing Care - Care Homes - 65+,10/02/2022,5687,,3111124425,"-1,224.00",Richmond Letcombe Regis
http://statistics.data.gov.uk/id/local-authority/38,Oxfordshire County Council,COMMUNITY & ROAD SAFETY,11/02/2022,3103,Other Training Courses and Qualification,2200955489,"-1,215.00",The Bike Academy (South) Ltd
http://statistics.data.gov.uk/id/local-authority/38,Oxfordshire County Council,Care Homes - Over 65 Memory & Cognition,10/02/2022,5687,,3111122621,"-1,200.00",Heathfield House Nursing Home
http://statistics.data.gov.uk/id/local-authority/38,Oxfordshire County Council,Funded Nursing Care  - Over 65,10/02/2022,5692,,3111121988,"-1,179.20",Abbey Crest Nursing Home
http://statistics.data.gov.uk/id/local-authority/38,Oxfordshire County Council,Care Homes - Over 65 Physical Sypport,10/02/2022,5686,,3111123528,"-1,177.00",Orders of St John
http://statistics.data.gov.uk/id/local-authority/38,Oxfordshire County Council,LAC PUPIL PREMIUM,23/02/2022,5537,Payments to Other Establishments,3111131272,"-1,105.00",Studley High School
http://statistics.data.gov.uk/id/local-authority/38,Oxfordshire County Council,Funded Nursing Care  - Over 65,10/02/2022,5692,,3111122833,"-1,098.80",Chacombe Park Care Home
http://statistics.data.gov.uk/id/local-authority/38,Oxfordshire County Council,Early Years SEN Funding,16/02/2022,5537,Payments to Other Establishments,3111128431,"-1,078.00",Culham After School Club LTD
http://statistics.data.gov.uk/id/local-authority/38,Oxfordshire County Council,CONCESSIONARY FARES,22/02/2022,5781,Payments to Transport Operators,2200958631,"-1,072.00",Our Bus Bartons Ltd
http://statistics.data.gov.uk/id/local-authority/38,Oxfordshire County Council,FOSTERING MAIN,15/02/2022,5541,B*Foster Parents,3111126085,"-1,072.00",Personal Redacted Data
http://statistics.data.gov.uk/id/local-authority/38,Oxfordshire County Council,Care Homes - Over 65 Physical Sypport,10/02/2022,5685,B*Cycle tracks,3111123812,"-1,071.74",Orders of St John
http://statistics.data.gov.uk/id/local-authority/38,Oxfordshire County Council,Care Homes - Over 65 Physical Sypport,10/02/2022,5685,B*Cycle tracks,3111122642,"-1,069.69",Grace Care Service Ltd T/A Burford
http://statistics.data.gov.uk/id/local-authority/38,Oxfordshire County Council,Support at Home U65 Learning Disability,01/02/2022,5682,,3111114122,"-1,063.60",The Brandon Trust
http://statistics.data.gov.uk/id/local-authority/38,Oxfordshire County Council,Procurement Rebates & Income,02/02/2022,7203,Other Miscellaneous Income,3111116811,"-1,000.00",Browns Taxis Ltd
http://statistics.data.gov.uk/id/local-authority/38,Oxfordshire County Council,Covid 19 CHC,22/02/2022,5899,Social Care - Direct Payments,3111129804,"-1,000.00",Personal Redacted Data
http://statistics.data.gov.uk/id/local-authority/38,Oxfordshire County Council,Care Homes - Over 65 Physical Sypport,10/02/2022,5687,,3111124014,-977.77,Cedar Court Care Home
http://statistics.data.gov.uk/id/local-authority/38,Oxfordshire County Council,Covid 19 CHC,10/02/2022,5687,,3111123043,-963,Orders of St John
http://statistics.data.gov.uk/id/local-authority/38,Oxfordshire County Council,SEN TRANSPORT,21/02/2022,5227,Other Transport Arrangements,3111129469,-960,The Oxfordshire Taxi Company Ltd T/
http://statistics.data.gov.uk/id/local-authority/38,Oxfordshire County Council,Funded Nursing Care  - Over 65,10/02/2022,5692,,3111124506,-938,Barchester Healthcare Homes Ltd
http://statistics.data.gov.uk/id/local-authority/38,Oxfordshire County Council,FOSTERING MAIN,28/02/2022,5548,B*Fostering - Special Rates & Plus Amou,3111132176,-903.86,Personal Redacted Data
http://statistics.data.gov.uk/id/local-authority/38,Oxfordshire County Council,Funded Nursing Care  - Over 65,10/02/2022,5692,,3111125038,-884.4,MARIA MALLABAND CARE GROUP
http://statistics.data.gov.uk/id/local-authority/38,Oxfordshire County Council,Funded Nursing Care  - Over 65,10/02/2022,5692,,3111124459,-857.6,Rushcourt Nursing Home
http://statistics.data.gov.uk/id/local-authority/38,Oxfordshire County Council,CONTRACEPTION,03/02/2022,4933,,3111125175,-839.54,Windrush Health Centre
http://statistics.data.gov.uk/id/local-authority/38,Oxfordshire County Council,Early Years SEN Funding,16/02/2022,5537,Payments to Other Establishments,3111128432,-831.6,Sunningwell Pre-School
http://statistics.data.gov.uk/id/local-authority/38,Oxfordshire County Council,Funded Nursing Care  - Over 65,10/02/2022,5692,,3111122905,-830.8,Mill House Nursing Home
http://statistics.data.gov.uk/id/local-authority/38,Oxfordshire County Council,Funded Nursing Care  - Over 65,10/02/2022,5692,,3111124699,-830.8,Tall Trees
http://statistics.data.gov.uk/id/local-authority/38,Oxfordshire County Council,Vulnerable Learners,11/02/2022,4940,Other Services,2200955306,-800,S HUGHES
http://statistics.data.gov.uk/id/local-authority/38,Oxfordshire County Council,Support at Home 65+ Physical Support,10/02/2022,5686,,3111122267,-775,Beech Court Nursing Home
http://statistics.data.gov.uk/id/local-authority/38,Oxfordshire County Council,Support at Home U65 Learning Disability,10/02/2022,5688,,3111121304,-771.02,ADVANCE HOUSING & SUPPORT LTD
http://statistics.data.gov.uk/id/local-authority/38,Oxfordshire County Council,Care Homes - Over 65 Physical Sypport,10/02/2022,5686,,3111122981,-749,Orders of St John
http://statistics.data.gov.uk/id/local-authority/38,Oxfordshire County Council,SPECIAL GUARDIANSHIP,08/02/2022,5661,B*Carriageway pre surf. dressing patchin,3111119928,-731.41,Personal Redacted Data
http://statistics.data.gov.uk/id/local-authority/38,Oxfordshire County Council,LIABILITY,10/02/2022,3257,,3111120702,-725,OCC One Time Vendor
http://statistics.data.gov.uk/id/local-authority/38,Oxfordshire County Council,Funded Nursing Care  - Over 65,10/02/2022,5692,,3111124172,-723.6,Lincroft Meadow
http://statistics.data.gov.uk/id/local-authority/38,Oxfordshire County Council,Funded Nursing Care  - Over 65,10/02/2022,5692,,3111123170,-696.8,CHURCHFIELDS CARE HOME
http://statistics.data.gov.uk/id/local-authority/38,Oxfordshire County Council,Funded Nursing Care  - Over 65,10/02/2022,5692,,3111122359,-696.8,Freeland House
http://statistics.data.gov.uk/id/local-authority/38,Oxfordshire County Council,Funded Nursing Care  - Over 65,10/02/2022,5692,,3111124913,-670,MARIPOSA CARE GROUP LIMITED
http://statistics.data.gov.uk/id/local-authority/38,Oxfordshire County Council,Funded Nursing Care  - Over 65,10/02/2022,5692,,3111124683,-670,Tall Trees
http://statistics.data.gov.uk/id/local-authority/38,Oxfordshire County Council,Funded Nursing Care  - Over 65,10/02/2022,5692,,3111123140,-643.2,SANCTUARY CARE PROPERTY (2) LTD
http://statistics.data.gov.uk/id/local-authority/38,Oxfordshire County Council,Support at Home U65 MH OBC Contract,04/02/2022,4111,Security Costs,3111117736,-638,OCC One Time Vendor
http://statistics.data.gov.uk/id/local-authority/38,Oxfordshire County Council,Support at Home U65 MH OBC Contract,02/02/2022,4111,Security Costs,3111116585,-612,OCC One Time Vendor
http://statistics.data.gov.uk/id/local-authority/38,Oxfordshire County Council,Care Homes - Over 65 Physical Sypport,10/02/2022,5687,,3111123317,-608.57,Coxwell Hall & Mews Nursing Home
http://statistics.data.gov.uk/id/local-authority/38,Oxfordshire County Council,,23/02/2022,1448,Blackfield Inc & Exp A/c,3111131274,-594,OCC One Time Vendor
http://statistics.data.gov.uk/id/local-authority/38,Oxfordshire County Council,Funded Nursing Care  - Over 65,10/02/2022,5692,,3111122566,-562.8,METHODIST HOMES
http://statistics.data.gov.uk/id/local-authority/38,Oxfordshire County Council,Support at Home 65+ Physical Support,10/02/2022,5686,,3111122851,-557.14,Kirlena House
http://statistics.data.gov.uk/id/local-authority/38,Oxfordshire County Council,CONTRACEPTION,03/02/2022,4933,,3111125173,-552.89,The Hart Surgery
http://statistics.data.gov.uk/id/local-authority/38,Oxfordshire County Council,Support at Home 65+ Learning Disability,10/02/2022,5690,,3111121066,-546.42,ADVANCE HOUSING & SUPPORT LTD
http://statistics.data.gov.uk/id/local-authority/38,Oxfordshire County Council,COUNTY PRINT FINSHRS,10/02/2022,4450,Disability Aids and Equipment,2200955084,-531.84,Theo Davies
http://statistics.data.gov.uk/id/local-authority/38,Oxfordshire County Council,NHS HEALTHCHECK PROG,07/02/2022,4933,,3111128482,-518.99,Principal Medical Ltd
http://statistics.data.gov.uk/id/local-authority/38,Oxfordshire County Council,Funded Nursing Care  - Over 65,10/02/2022,5692,,3111123032,-509.2,Cherwood House Care Centre
http://statistics.data.gov.uk/id/local-authority/38,Oxfordshire County Council,Support at Home 65+ Physical Support,10/02/2022,5690,,3111120871,-503.59,Orders of St John
http://statistics.data.gov.uk/id/local-authority/38,Oxfordshire County Council,TRANSPORT COSTS,01/02/2022,4330,Transport to School Activities,3111114017,500,Ali's Cabs
http://statistics.data.gov.uk/id/local-authority/38,Oxfordshire County Council,LAC PUPIL PREMIUM,18/02/2022,5537,Payments to Other Establishments,3111129263,500,Burford Academy
http://statistics.data.gov.uk/id/local-authority/38,Oxfordshire County Council,GOVERNANCE,25/02/2022,5380,"Author, Speaker and Lecturer Fees",2200959022,500,Clever Cats Education Services
http://statistics.data.gov.uk/id/local-authority/38,Oxfordshire County Council,SEN TRANSPORT,15/02/2022,5227,Other Transport Arrangements,3111125707,500,Crown Cabs Travel Ltd
http://statistics.data.gov.uk/id/local-authority/38,Oxfordshire County Council,SEN TRANSPORT,15/02/2022,5227,Other Transport Arrangements,3111125713,500,Crown Cabs Travel Ltd
http://statistics.data.gov.uk/id/local-authority/38,Oxfordshire County Council,SEN TRANSPORT,15/02/2022,5227,Other Transport Arrangements,3111125715,500,Crown Cabs Travel Ltd
http://statistics.data.gov.uk/id/local-authority/38,Oxfordshire County Council,Household Support Fund,02/02/2022,4939,,3111117051,500,Cumnor Pre-School Nurser
http://statistics.data.gov.uk/id/local-authority/38,Oxfordshire County Council,Consultation & Engagement,17/02/2022,4940,Other Services,2200957556,500,Family Kids & Youth
http://statistics.data.gov.uk/id/local-authority/38,Oxfordshire County Council,Consultation & Engagement,17/02/2022,4940,Other Services,2200957602,500,Family Kids & Youth
http://statistics.data.gov.uk/id/local-authority/38,Oxfordshire County Council,LAC PUPIL PREMIUM,18/02/2022,5537,Payments to Other Establishments,3111129304,500,Fitzharrys School
http://statistics.data.gov.uk/id/local-authority/38,Oxfordshire County Council,ECH Central Costs,11/02/2022,4070,Cleaning services,2200955194,500,Frazer's of Oxford Ltd
http://statistics.data.gov.uk/id/local-authority/38,Oxfordshire County Council,FOSTERING TEAM,28/02/2022,4861,Hired and Contracted Services,2200959266,500,Green Light People Solutions
http://statistics.data.gov.uk/id/local-authority/38,Oxfordshire County Council,FOSTERING TEAM,28/02/2022,4861,Hired and Contracted Services,2200959267,500,Green Light People Solutions
http://statistics.data.gov.uk/id/local-authority/38,Oxfordshire County Council,FOSTERING TEAM,28/02/2022,4861,Hired and Contracted Services,2200959269,500,Green Light People Solutions
http://statistics.data.gov.uk/id/local-authority/38,Oxfordshire County Council,Support at Home U65 Physical Support,04/02/2022,5693,,3111117826,500,HEALTHCARE ACCESS LTD
http://statistics.data.gov.uk/id/local-authority/38,Oxfordshire County Council,Household Support Fund,02/02/2022,4939,,3111117106,500,Horspath Pre-School Nursery
http://statistics.data.gov.uk/id/local-authority/38,Oxfordshire County Council,SEN TRANSPORT,09/02/2022,4330,Transport to School Activities,3111120222,500,Lightway Services Ltd
http://statistics.data.gov.uk/id/local-authority/38,Oxfordshire County Council,CC TRAINING,28/02/2022,3103,Other Training Courses and Qualification,2200959548,500,MBL SEMINARS LTD
http://statistics.data.gov.uk/id/local-authority/38,Oxfordshire County Council,SWIF FUNDING,25/02/2022,3100,Educational and Vocational Training,2200959038,500,Mermaids
http://statistics.data.gov.uk/id/local-authority/38,Oxfordshire County Council,Reading Adoption Support Fund,01/02/2022,4861,Hired and Contracted Services,2200951307,500,Personal Redacted Data
http://statistics.data.gov.uk/id/local-authority/38,Oxfordshire County Council,Reading Adoption Support Fund,16/02/2022,4861,Hired and Contracted Services,2200956899,500,Personal Redacted Data
http://statistics.data.gov.uk/id/local-authority/38,Oxfordshire County Council,Reading Adoption Support Fund,28/02/2022,4861,Hired and Contracted Services,2200959731,500,Personal Redacted Data
http://statistics.data.gov.uk/id/local-authority/38,Oxfordshire County Council,RECRUITMENT+MEDICALS,04/02/2022,5460,Entertainment Expenses,2200952669,500,NETWORKING WOMEN IN THE FIRE SERVIC
http://statistics.data.gov.uk/id/local-authority/38,Oxfordshire County Council,L&D CORE PROGRAMME,02/02/2022,3100,Educational and Vocational Training,2200951852,500,Personal Redacted Data
http://statistics.data.gov.uk/id/local-authority/38,Oxfordshire County Council,Household Support Fund,02/02/2022,4939,,3111117166,500,North Leigh Pre-School CIO
http://statistics.data.gov.uk/id/local-authority/38,Oxfordshire County Council,ATV Adoption Oxford,04/02/2022,5251,Legal Costs,3111117735,500,OCC One Time Vendor
http://statistics.data.gov.uk/id/local-authority/38,Oxfordshire County Council,L&D CORE PROGRAMME,04/02/2022,3105,Training related expenditure,3111117783,500,OCC One Time Vendor
http://statistics.data.gov.uk/id/local-authority/38,Oxfordshire County Council,Family Solutions Plus Non-staff - Centra,17/02/2022,5554,Childrens' Social Care - Direct Payments,2200957291,500,Oxford Cognitive Behavioural Therap
http://statistics.data.gov.uk/id/local-authority/38,Oxfordshire County Council,Councillors Priorities Fund,03/02/2022,4940,Other Services,3111117662,500,Oxfordshire Play Association
http://statistics.data.gov.uk/id/local-authority/38,Oxfordshire County Council,Councillors Priorities Fund,14/02/2022,4940,Other Services,3111125570,500,Oxfordshire Play Association
http://statistics.data.gov.uk/id/local-authority/38,Oxfordshire County Council,Household Support Fund,02/02/2022,4939,,3111117179,500,Rainbows Day Nursery
http://statistics.data.gov.uk/id/local-authority/38,Oxfordshire County Council,FAM GRP CONFERENCES,23/02/2022,4940,Other Services,2200958737,500,Sharon Peart
http://statistics.data.gov.uk/id/local-authority/38,Oxfordshire County Council,Household Support Fund,02/02/2022,4939,,3111117384,500,St Christopher's CE Primary School
http://statistics.data.gov.uk/id/local-authority/38,Oxfordshire County Council,LAC PUPIL PREMIUM,18/02/2022,5537,Payments to Other Establishments,3111129262,500,The Henry Box Academy
http://statistics.data.gov.uk/id/local-authority/38,Oxfordshire County Council,Business Intellectual Property Centre,15/02/2022,4494,Purchase of IT Equipment,2200956469,500,TOTAL COMPUTERS NETWORK LTD
http://statistics.data.gov.uk/id/local-authority/38,Oxfordshire County Council,SHORT BREAK ACTIVITIES,23/02/2022,5195,Grant Aid and Donations,2200958714,500,Yellow Submarine Holidays
http://statistics.data.gov.uk/id/local-authority/38,Oxfordshire County Council,Support at Home U65 Learning Disability,01/02/2022,5689,,3111116127,500.21,Greigcare Home Service
http://statistics.data.gov.uk/id/local-authority/38,Oxfordshire County Council,TRAINING MANAGEMENT,16/02/2022,3100,Educational and Vocational Training,2200956533,500.4,Banbury Catering
http://statistics.data.gov.uk/id/local-authority/38,Oxfordshire County Council,Vaccine Funding Oct 21 � Mar 22,04/02/2022,5689,,3111118895,500.46,SureCare Oxfordshire
http://statistics.data.gov.uk/id/local-authority/38,Oxfordshire County Council,Early Years SEN Funding,18/02/2022,5537,Payments to Other Establishments,3111129204,500.5,Long Hanborough Playgroup
http://statistics.data.gov.uk/id/local-authority/38,Oxfordshire County Council,Early Years SEN Funding,18/02/2022,5537,Payments to Other Establishments,3111129205,500.5,Long Hanborough Playgroup
http://statistics.data.gov.uk/id/local-authority/38,Oxfordshire County Council,Delegated Health Tasks  - Over 65,01/02/2022,5689,,3111115673,500.53,Caremark (West Oxfordshire & Cherwe
http://statistics.data.gov.uk/id/local-authority/38,Oxfordshire County Council,Early Years Covid 19 Payments,10/02/2022,5537,Payments to Other Establishments,3111120633,501,Katie McKechnie
http://statistics.data.gov.uk/id/local-authority/38,Oxfordshire County Council,Early Years Covid 19 Payments,10/02/2022,5537,Payments to Other Establishments,3111120636,501,Lucy Bourne
http://statistics.data.gov.uk/id/local-authority/38,Oxfordshire County Council,Early Years Covid 19 Payments,10/02/2022,5537,Payments to Other Establishments,3111120635,501,Natalie Velaj
http://statistics.data.gov.uk/id/local-authority/38,Oxfordshire County Council,Early Years Covid 19 Payments,14/02/2022,5537,Payments to Other Establishments,3111125576,501,Natasha McSweeney
http://statistics.data.gov.uk/id/local-authority/38,Oxfordshire County Council,FOSTERING MAIN,08/02/2022,5227,Other Transport Arrangements,3111119851,501.98,Personal Redacted Data
http://statistics.data.gov.uk/id/local-authority/38,Oxfordshire County Council,Support at Home U65 Physical Support,15/02/2022,5899,Social Care - Direct Payments,3111127261,502.32,Personal Redacted Data
http://statistics.data.gov.uk/id/local-authority/38,Oxfordshire County Council,Support at Home 65+ Physical Support,01/02/2022,5689,,3111116124,502.99,Greigcare Home Service
http://statistics.data.gov.uk/id/local-authority/38,Oxfordshire County Council,Workforce Capacity Fund Round 2,22/02/2022,5699,,3111130730,503.16,Care Hearted Ltd
http://statistics.data.gov.uk/id/local-authority/38,Oxfordshire County Council,Workforce Capacity Fund Round 2,22/02/2022,5689,,3111131035,503.16,Oxford Private Care
http://statistics.data.gov.uk/id/local-authority/38,Oxfordshire County Council,Support at Home U65 Learning Disability,10/02/2022,5690,,3111120801,503.48,Guideposts Trust
http://statistics.data.gov.uk/id/local-authority/38,Oxfordshire County Council,SEN TRANSPORT,21/02/2022,5227,Other Transport Arrangements,3111129763,504,Banbury Taxis
http://statistics.data.gov.uk/id/local-authority/38,Oxfordshire County Council,Support at Home U65 Sensory Support,15/02/2022,5899,Social Care - Direct Payments,3111126863,504,Personal Redacted Data
http://statistics.data.gov.uk/id/local-authority/38,Oxfordshire County Council,Support at Home 65+ Physical Support,15/02/2022,5899,Social Care - Direct Payments,3111126798,504,Personal Redacted Data
http://statistics.data.gov.uk/id/local-authority/38,Oxfordshire County Council,Continuing Care - Support at Home - 65+,01/02/2022,5691,,3111114248,504,Star Projections
http://statistics.data.gov.uk/id/local-authority/38,Oxfordshire County Council,SM DISABILITIES,23/02/2022,5554,Childrens' Social Care - Direct Payments,3111131488,504.55,Personal Redacted Data
http://statistics.data.gov.uk/id/local-authority/38,Oxfordshire County Council,SM DISABILITIES,23/02/2022,5554,Childrens' Social Care - Direct Payments,3111131490,504.55,Personal Redacted Data
http://statistics.data.gov.uk/id/local-authority/38,Oxfordshire County Council,Infection Prevention Crt Oct 21 � Mar 21,04/02/2022,5688,,3111118084,504.7,Direct Link Care Ltd
http://statistics.data.gov.uk/id/local-authority/38,Oxfordshire County Council,Infection Prevention Crt Oct 21 � Mar 21,04/02/2022,5688,,3111118092,504.7,Genuine Carers Ltd
http://statistics.data.gov.uk/id/local-authority/38,Oxfordshire County Council,Infection Prevention Crt Oct 21 � Mar 21,04/02/2022,5688,,3111118099,504.7,Go For It
http://statistics.data.gov.uk/id/local-authority/38,Oxfordshire County Council,Infection Prevention Crt Oct 21 � Mar 21,04/02/2022,5688,,3111118138,504.7,Orders of St John Care Trust
http://statistics.data.gov.uk/id/local-authority/38,Oxfordshire County Council,Infection Prevention Crt Oct 21 � Mar 21,04/02/2022,5688,,3111118196,504.7,XPERIENCE RECRUITMENT LIMITED
http://statistics.data.gov.uk/id/local-authority/38,Oxfordshire County Council,LIBRARY COLLECTIONS,04/02/2022,4539,"Books, DVDs and CDs",3111119063,504.8,ASKEWS & HOLTS LIBRARY SERVICES LTD
http://statistics.data.gov.uk/id/local-authority/38,Oxfordshire County Council,SEN TRANSPORT,23/02/2022,4320,Pupil / Client Travel Reimbursement,3111130626,505.12,Personal Redacted Data
http://statistics.data.gov.uk/id/local-authority/38,Oxfordshire County Council,Vaccine Funding Oct 21 � Mar 22,04/02/2022,5686,,3111118944,505.22,Cedar Court Care Home
http://statistics.data.gov.uk/id/local-authority/38,Oxfordshire County Council,Vaccine Funding Oct 21 � Mar 22,04/02/2022,5686,,3111119014,505.22,RICHMOND VILLAGE WITNEY
http://statistics.data.gov.uk/id/local-authority/38,Oxfordshire County Council,Vaccine Funding Oct 21 � Mar 22,04/02/2022,5686,,3111119025,505.22,St Lukes Nursing Home (Oxford)
http://statistics.data.gov.uk/id/local-authority/38,Oxfordshire County Council,Support at Home 65+ Physical Support,01/02/2022,5689,,3111116263,505.4,My Carer Ltd
http://statistics.data.gov.uk/id/local-authority/38,Oxfordshire County Council,Support at Home U65 Mental Health,15/02/2022,5899,Social Care - Direct Payments,3111127808,505.48,Purple Conversation Com In Co (DP)
http://statistics.data.gov.uk/id/local-authority/38,Oxfordshire County Council,TRANSPORT COSTS,18/02/2022,5227,Other Transport Arrangements,3111129175,506,Her Ride Limited
http://statistics.data.gov.uk/id/local-authority/38,Oxfordshire County Council,Workforce Capacity Fund Round 2,22/02/2022,5693,,3111131118,506.69,Star Projections
http://statistics.data.gov.uk/id/local-authority/38,Oxfordshire County Council,Support at Home U65 Learning Disability,25/02/2022,5688,,3111131988,506.82,The Brandon Trust
http://statistics.data.gov.uk/id/local-authority/38,Oxfordshire County Council,Community Support Service Bicester,21/02/2022,5227,Other Transport Arrangements,3111129657,507,Bicester Cars UK Ltd
http://statistics.data.gov.uk/id/local-authority/38,Oxfordshire County Council,Support at Home U65 Learning Disability,15/02/2022,5899,Social Care - Direct Payments,3111127591,507.08,Purple Conversation Com In Co (DP)
http://statistics.data.gov.uk/id/local-authority/38,Oxfordshire County Council,Support at Home U65 Physical Support,17/02/2022,5696,,3111128719,508.18,Orders of St John Care Trust
http://statistics.data.gov.uk/id/local-authority/38,Oxfordshire County Council,Vaccine Funding Oct 21 � Mar 22,04/02/2022,5689,,3111118806,508.28,Golden Services Care Ltd
http://statistics.data.gov.uk/id/local-authority/38,Oxfordshire County Council,Support at Home U65 MH OBC Contract,15/02/2022,5899,Social Care - Direct Payments,3111127192,508.36,Personal Redacted Data
http://statistics.data.gov.uk/id/local-authority/38,Oxfordshire County Council,Support at Home U65 Physical Support,01/02/2022,5689,,3111115876,508.43,Oxfordshire Crossroads
http://statistics.data.gov.uk/id/local-authority/38,Oxfordshire County Council,Contingency Home Care,01/02/2022,5689,,3111116320,509.01,Oxford University Hospitals NHS FT
http://statistics.data.gov.uk/id/local-authority/38,Oxfordshire County Council,Support at Home U65 Learning Disability,15/02/2022,5899,Social Care - Direct Payments,3111127672,509.56,Purple Conversation Com In Co (DP)
http://statistics.data.gov.uk/id/local-authority/38,Oxfordshire County Council,Support at Home U65 Learning Disability,10/02/2022,5690,,3111120888,509.6,Turnstyle
http://statistics.data.gov.uk/id/local-authority/38,Oxfordshire County Council,Support at Home 65+ Memory & Cognition,11/02/2022,5693,,3111125351,509.72,Pioneering Care Bicester Limited
http://statistics.data.gov.uk/id/local-authority/38,Oxfordshire County Council,ON ST PARK OXFD P&D,15/02/2022,4861,Hired and Contracted Services,2200956493,510,Flowbird Smart City
http://statistics.data.gov.uk/id/local-authority/38,Oxfordshire County Council,ALTERNATIVES TO CARE,15/02/2022,5785,Client Lodgings and Accommodation,3111125816,510,OCC One Time Vendor
http://statistics.data.gov.uk/id/local-authority/38,Oxfordshire County Council,Support at Home 65+ Physical Support,02/02/2022,5693,,3111116720,510.16,Direct Link Care Ltd
http://statistics.data.gov.uk/id/local-authority/38,Oxfordshire County Council,Support at Home 65+ Physical Support,17/02/2022,5696,,3111128825,510.22,Orders of St John Care Trust
http://statistics.data.gov.uk/id/local-authority/38,Oxfordshire County Council,Support at Home 65+ Physical Support,01/02/2022,5689,,3111116101,510.28,Goldsmith Personnel Ltd
http://statistics.data.gov.uk/id/local-authority/38,Oxfordshire County Council,OPERATIONS,17/02/2022,4498,Health and Safety Equipment,2200957143,510.5,SAFEQUIP LTD
http://statistics.data.gov.uk/id/local-authority/38,Oxfordshire County Council,Support at Home U65 Learning Disability,15/02/2022,5899,Social Care - Direct Payments,3111126272,511.04,Connection Support (Oxford)
http://statistics.data.gov.uk/id/local-authority/38,Oxfordshire County Council,2 YEAR OLD FUNDING,07/02/2022,5537,Payments to Other Establishments,3111119278,511.2,Red Dragon Pre-School Gr
http://statistics.data.gov.uk/id/local-authority/38,Oxfordshire County Council,FOSTERING MAIN,01/02/2022,5548,B*Fostering - Special Rates & Plus Amou,3111114433,511.86,Personal Redacted Data
http://statistics.data.gov.uk/id/local-authority/38,Oxfordshire County Council,Support at Home 65+ Other /Soc Isolation,16/02/2022,5693,,3111128412,512,Personal Redacted Data
http://statistics.data.gov.uk/id/local-authority/38,Oxfordshire County Council,Support at Home 65+ Learning Disability,01/02/2022,5696,,3111115524,513,All Care GB Ltd
http://statistics.data.gov.uk/id/local-authority/38,Oxfordshire County Council,Support at Home 65+ Physical Support,01/02/2022,5696,,3111115605,513,All Care GB Ltd
http://statistics.data.gov.uk/id/local-authority/38,Oxfordshire County Council,POST 16 SEN,09/02/2022,4330,Transport to School Activities,3111120341,513,ART FM
http://statistics.data.gov.uk/id/local-authority/38,Oxfordshire County Council,Vaccine Funding Oct 21 � Mar 22,04/02/2022,5686,,3111118933,513.24,ACER HEALTHCARE LTD
http://statistics.data.gov.uk/id/local-authority/38,Oxfordshire County Council,Vaccine Funding Oct 21 � Mar 22,04/02/2022,5686,,3111118993,513.24,Orders of St John
http://statistics.data.gov.uk/id/local-authority/38,Oxfordshire County Council,LAC PUPIL PREMIUM,18/02/2022,5537,Payments to Other Establishments,3111129310,514,High Close School
http://statistics.data.gov.uk/id/local-authority/38,Oxfordshire County Council,Swindon Adoption Support Fund,28/02/2022,4859,Medical and Counselling Fees,2200959368,514,Joanna Cowley
http://statistics.data.gov.uk/id/local-authority/38,Oxfordshire County Council,Vulnerable Learners,04/02/2022,4940,Other Services,2200952696,514,MLS Safeguarding and Consultancy Lt
http://statistics.data.gov.uk/id/local-authority/38,Oxfordshire County Council,Support at Home U65 Learning Disability,10/02/2022,5690,,3111120829,514.08,MacIntyre Care (Womaston)
http://statistics.data.gov.uk/id/local-authority/38,Oxfordshire County Council,Support at Home U65 Learning Disability,10/02/2022,5690,,3111120848,514.08,MacIntyre Care (Womaston)
http://statistics.data.gov.uk/id/local-authority/38,Oxfordshire County Council,Support at Home 65+ Learning Disability,10/02/2022,5690,,3111120857,514.08,MacIntyre Care (Womaston)
http://statistics.data.gov.uk/id/local-authority/38,Oxfordshire County Council,Support at Home U65 Learning Disability,10/02/2022,5690,,3111120860,514.08,MacIntyre Care (Womaston)
http://statistics.data.gov.uk/id/local-authority/38,Oxfordshire County Council,Support at Home U65 Learning Disability,10/02/2022,5690,,3111121074,514.36,Autism at Kingwood Limited
http://statistics.data.gov.uk/id/local-authority/38,Oxfordshire County Council,Independent Foster,23/02/2022,5559,,3111131569,514.4,Next Step Fostering Services Ltd
http://statistics.data.gov.uk/id/local-authority/38,Oxfordshire County Council,Support at Home U65 Memory & Cognition,15/02/2022,5899,Social Care - Direct Payments,3111127965,514.68,Purple Conversation Com In Co (DP)
http://statistics.data.gov.uk/id/local-authority/38,Oxfordshire County Council,Support at Home 65+ Physical Support,01/02/2022,5689,,3111116144,514.91,Greigcare Home Service
http://statistics.data.gov.uk/id/local-authority/38,Oxfordshire County Council,PREMISES,16/02/2022,4111,Security Costs,2200956532,515,Darren Bryan Security Services
http://statistics.data.gov.uk/id/local-authority/38,Oxfordshire County Council,Support at Home 65+ Physical Support,15/02/2022,5899,Social Care - Direct Payments,3111127710,515.08,Purple Conversation Com In Co (DP)
http://statistics.data.gov.uk/id/local-authority/38,Oxfordshire County Council,Support at Home U65 Sensory Support,15/02/2022,5899,Social Care - Direct Payments,3111126856,515.52,Personal Redacted Data
http://statistics.data.gov.uk/id/local-authority/38,Oxfordshire County Council,Support at Home U65 Physical Support,01/02/2022,5682,,3111114642,515.56,The Brandon Trust
http://statistics.data.gov.uk/id/local-authority/38,Oxfordshire County Council,Support at Home U65 Learning Disability,10/02/2022,5227,Other Transport Arrangements,3111120640,516,LINK SHIRES LTD
http://statistics.data.gov.uk/id/local-authority/38,Oxfordshire County Council,UASC 16&17,04/02/2022,4685,Clothing and Uniforms,9300054493,516.1,OCC SS Oxford City Div 1 Cash
http://statistics.data.gov.uk/id/local-authority/38,Oxfordshire County Council,Workforce Capacity Fund Round 2,22/02/2022,5689,,3111130757,516.45,Casa Care Ltd
http://statistics.data.gov.uk/id/local-authority/38,Oxfordshire County Council,Support at Home U65 Physical Support,01/02/2022,5689,,3111115351,516.54,Bicester PA and Care LLP
http://statistics.data.gov.uk/id/local-authority/38,Oxfordshire County Council,Construction Management,17/02/2022,3100,Educational and Vocational Training,2200957293,516.6,Thomas Telford Ltd
http://statistics.data.gov.uk/id/local-authority/38,Oxfordshire County Council,Support at Home 65+ Physical Support,01/02/2022,5689,,3111116400,516.69,PLL Care Services
http://statistics.data.gov.uk/id/local-authority/38,Oxfordshire County Council,Support at Home 65+ Physical Support,15/02/2022,5899,Social Care - Direct Payments,3111126670,516.8,Personal Redacted Data
http://statistics.data.gov.uk/id/local-authority/38,Oxfordshire County Council,FAM GRP CONFERENCES,14/02/2022,4940,Other Services,2200955891,516.8,Shellie Keen
http://statistics.data.gov.uk/id/local-authority/38,Oxfordshire County Council,Workforce Capacity Fund Round 2,22/02/2022,5688,,3111131171,517.1,The Brandon Trust
http://statistics.data.gov.uk/id/local-authority/38,Oxfordshire County Council,Planned Maintenance,17/02/2022,3787,Premises Repairs,2200957181,517.37,CEF
http://statistics.data.gov.uk/id/local-authority/38,Oxfordshire County Council,SHARED LIVES,10/02/2022,5555,Payments to Carers,3111120728,517.56,Personal Redacted Data
http://statistics.data.gov.uk/id/local-authority/38,Oxfordshire County Council,,18/02/2022,1448,Blackfield Inc & Exp A/c,3111129236,517.73,OCC One Time Vendor
http://statistics.data.gov.uk/id/local-authority/38,Oxfordshire County Council,Infection Prevention Crt Oct 21 � Mar 21,04/02/2022,5689,,3111118325,518.91,Orders of St John Care Trust
http://statistics.data.gov.uk/id/local-authority/38,Oxfordshire County Council,Infection Prevention Crt Oct 21 � Mar 21,04/02/2022,5689,,3111118365,518.91,PEACEFULLIVING CARE SERVICES
http://statistics.data.gov.uk/id/local-authority/38,Oxfordshire County Council,High Cost INMSS Placements,20/02/2022,5537,Payments to Other Establishments,3500081950,519,LVS Oxford
http://statistics.data.gov.uk/id/local-authority/38,Oxfordshire County Council,40 THE MOORS,01/02/2022,4270,HTM / Other Vehicle - Hire Charges,2200950955,519.4,The Oxfordshire Taxi Company Ltd T/
http://statistics.data.gov.uk/id/local-authority/38,Oxfordshire County Council,Support at Home U65 Physical Support,15/02/2022,5899,Social Care - Direct Payments,3111127723,519.92,Purple Conversation Com In Co (DP)
http://statistics.data.gov.uk/id/local-authority/38,Oxfordshire County Council,Workforce Capacity Fund Round 2,22/02/2022,5688,,3111131205,519.96,The Brandon Trust
http://statistics.data.gov.uk/id/local-authority/38,Oxfordshire County Council,SEN TRANSPORT,21/02/2022,5227,Other Transport Arrangements,3111129761,520,Banbury Taxis
http://statistics.data.gov.uk/id/local-authority/38,Oxfordshire County Council,Support at Home U65 Learning Disability,15/02/2022,5227,Other Transport Arrangements,3111125738,520,BC CARS
http://statistics.data.gov.uk/id/local-authority/38,Oxfordshire County Council,Family Solutions Plus Non-staff - Centra,11/02/2022,4940,Other Services,2200955282,520,Busy Bees at Oxford
http://statistics.data.gov.uk/id/local-authority/38,Oxfordshire County Council,Oxfordshire Adoption Support Fund,07/02/2022,4861,Hired and Contracted Services,2200952997,520,JR Child Psychologists
http://statistics.data.gov.uk/id/local-authority/38,Oxfordshire County Council,Support at Home U65 Physical Support,23/02/2022,5899,Social Care - Direct Payments,3111130639,520,Personal Redacted Data
http://statistics.data.gov.uk/id/local-authority/38,Oxfordshire County Council,Swindon Adoption Support Fund,07/02/2022,6500,Government Grants (Revenue),2200953268,520,The Family Place
http://statistics.data.gov.uk/id/local-authority/38,Oxfordshire County Council,Contingency Home Care,01/02/2022,5689,,3111116367,520.59,Oxford University Hospitals NHS FT
http://statistics.data.gov.uk/id/local-authority/38,Oxfordshire County Council,Support at Home 65+ Physical Support,16/02/2022,5693,,3111128428,520.66,We-Care-Recruitment Ltd
http://statistics.data.gov.uk/id/local-authority/38,Oxfordshire County Council,Support at Home U65 Learning Disability,08/02/2022,5899,Social Care - Direct Payments,3111119998,520.72,Purple Conversation Com In Co (DP)
http://statistics.data.gov.uk/id/local-authority/38,Oxfordshire County Council,Support at Home 65+ Physical Support,04/02/2022,5693,,3111117828,520.83,HEALTHCARE ACCESS LTD
http://statistics.data.gov.uk/id/local-authority/38,Oxfordshire County Council,Vaccine Funding Oct 21 � Mar 22,04/02/2022,5686,,3111118960,521.26,Freeland House
http://statistics.data.gov.uk/id/local-authority/38,Oxfordshire County Council,Support at Home U65 Physical Support,15/02/2022,5899,Social Care - Direct Payments,3111127884,521.48,Purple Conversation Com In Co (DP)
http://statistics.data.gov.uk/id/local-authority/38,Oxfordshire County Council,Support at Home 65+ Physical Support,01/02/2022,5689,,3111116129,521.67,Greigcare Home Service
http://statistics.data.gov.uk/id/local-authority/38,Oxfordshire County Council,FLEET MAINTENANCE,02/02/2022,4495,IT Software,2200951513,522,C Track UK
http://statistics.data.gov.uk/id/local-authority/38,Oxfordshire County Council,ON ST PARK OXFD SPA,11/02/2022,5091,Postage and Delivery,2200955349,522.49,Royal Mail Retail
http://statistics.data.gov.uk/id/local-authority/38,Oxfordshire County Council,Family Solutions Plus Non-staff - Centra,17/02/2022,2040,Agency Staff,2200957459,522.88,Completely Care Ltd
http://statistics.data.gov.uk/id/local-authority/38,Oxfordshire County Council,FOSTERING MAIN,01/02/2022,5549,B*Fostering Allowance - Regulation 38,3111114534,523,Personal Redacted Data
http://statistics.data.gov.uk/id/local-authority/38,Oxfordshire County Council,FOSTERING MAIN,08/02/2022,5549,B*Fostering Allowance - Regulation 38,3111119470,523,Personal Redacted Data
http://statistics.data.gov.uk/id/local-authority/38,Oxfordshire County Council,FOSTERING MAIN,15/02/2022,5549,B*Fostering Allowance - Regulation 38,3111125901,523,Personal Redacted Data
http://statistics.data.gov.uk/id/local-authority/38,Oxfordshire County Council,FOSTERING MAIN,22/02/2022,5549,B*Fostering Allowance - Regulation 38,3111129906,523,Personal Redacted Data
http://statistics.data.gov.uk/id/local-authority/38,Oxfordshire County Council,Support at Home 65+ Learning Disability,15/02/2022,5899,Social Care - Direct Payments,3111127542,523.08,Purple Conversation Com In Co (DP)
http://statistics.data.gov.uk/id/local-authority/38,Oxfordshire County Council,Workforce Capacity Fund Round 2,22/02/2022,5696,,3111130675,523.24,All Care GB Ltd
http://statistics.data.gov.uk/id/local-authority/38,Oxfordshire County Council,Early Years SEN Funding,25/02/2022,5537,Payments to Other Establishments,3111132153,523.6,Filkins Nursery School
http://statistics.data.gov.uk/id/local-authority/38,Oxfordshire County Council,Workforce Capacity Fund Round 2,22/02/2022,5555,Payments to Carers,3111130900,523.64,Personal Redacted Data
http://statistics.data.gov.uk/id/local-authority/38,Oxfordshire County Council,Workforce Capacity Fund Round 2,22/02/2022,5693,,3111131093,523.91,SAINT CATHERINE'S CARE LTD
http://statistics.data.gov.uk/id/local-authority/38,Oxfordshire County Council,Vaccine Funding Oct 21 � Mar 22,04/02/2022,5689,,3111118812,523.92,H F TRUST LTD
http://statistics.data.gov.uk/id/local-authority/38,Oxfordshire County Council,Support at Home U65 Learning Disability,15/02/2022,5899,Social Care - Direct Payments,3111126794,524,Personal Redacted Data
http://statistics.data.gov.uk/id/local-authority/38,Oxfordshire County Council,Support at Home U65 Learning Disability,10/02/2022,5690,,3111120898,524.16,Turnstyle
http://statistics.data.gov.uk/id/local-authority/38,Oxfordshire County Council,Children in Care Non-staffing - Centrl 2,16/02/2022,5394,Other Expenses,9300054601,524.36,OCC SS Oxford City Div 1 Bank
http://statistics.data.gov.uk/id/local-authority/38,Oxfordshire County Council,SM DISABILITIES,23/02/2022,5554,Childrens' Social Care - Direct Payments,3111131600,524.56,Purple Conversation Com In Co (DP)
http://statistics.data.gov.uk/id/local-authority/38,Oxfordshire County Council,Support at Home U65 Learning Disability,10/02/2022,5688,,3111121512,524.72,Mencap Contracts
http://statistics.data.gov.uk/id/local-authority/38,Oxfordshire County Council,Support at Home U65 Learning Disability,10/02/2022,5688,,3111121513,524.72,Mencap Contracts
http://statistics.data.gov.uk/id/local-authority/38,Oxfordshire County Council,Support at Home U65 Learning Disability,10/02/2022,5690,,3111121107,524.72,Real Life Options
http://statistics.data.gov.uk/id/local-authority/38,Oxfordshire County Council,Support at Home U65 Learning Disability,10/02/2022,5690,,3111121109,524.72,Real Life Options
http://statistics.data.gov.uk/id/local-authority/38,Oxfordshire County Council,Support at Home 65+ Learning Disability,10/02/2022,5688,,3111121861,524.72,The Brandon Trust
http://statistics.data.gov.uk/id/local-authority/38,Oxfordshire County Council,Household Support Fund,02/02/2022,4939,,3111117061,525,Dr South's CE Primary School
http://statistics.data.gov.uk/id/local-authority/38,Oxfordshire County Council,Household Support Fund,02/02/2022,4939,,3111117074,525,Faringdon Pre-School (PFSU)
http://statistics.data.gov.uk/id/local-authority/38,Oxfordshire County Council,Household Support Fund,02/02/2022,4939,,3111117107,525,Impact Montessori Nursery
http://statistics.data.gov.uk/id/local-authority/38,Oxfordshire County Council,FOSTERING MAIN,01/02/2022,5541,B*Foster Parents,3111114527,525,Personal Redacted Data
http://statistics.data.gov.uk/id/local-authority/38,Oxfordshire County Council,FOSTERING MAIN,08/02/2022,5541,B*Foster Parents,3111119461,525,Personal Redacted Data
http://statistics.data.gov.uk/id/local-authority/38,Oxfordshire County Council,FOSTERING MAIN,15/02/2022,5541,B*Foster Parents,3111125897,525,Personal Redacted Data
http://statistics.data.gov.uk/id/local-authority/38,Oxfordshire County Council,FOSTERING MAIN,22/02/2022,5541,B*Foster Parents,3111129902,525,Personal Redacted Data
http://statistics.data.gov.uk/id/local-authority/38,Oxfordshire County Council,Household Support Fund,02/02/2022,4939,,3111117346,525,Ladygrove Park Primary School
http://statistics.data.gov.uk/id/local-authority/38,Oxfordshire County Council,FOSTERING MAIN,01/02/2022,5541,B*Foster Parents,3111114969,525,Personal Redacted Data
http://statistics.data.gov.uk/id/local-authority/38,Oxfordshire County Council,FOSTERING MAIN,08/02/2022,5541,B*Foster Parents,3111119886,525,Personal Redacted Data
http://statistics.data.gov.uk/id/local-authority/38,Oxfordshire County Council,FOSTERING MAIN,15/02/2022,5541,B*Foster Parents,3111126124,525,Personal Redacted Data
http://statistics.data.gov.uk/id/local-authority/38,Oxfordshire County Council,FOSTERING MAIN,22/02/2022,5541,B*Foster Parents,3111130399,525,Personal Redacted Data
http://statistics.data.gov.uk/id/local-authority/38,Oxfordshire County Council,Planned Maintenance,03/02/2022,3787,Premises Repairs,2200952300,525,R J Lift Services Ltd
http://statistics.data.gov.uk/id/local-authority/38,Oxfordshire County Council,Testing Funding Oct-21 -Mar22,04/02/2022,5689,,3111118538,525.48,Autism at Kingwood Limited
http://statistics.data.gov.uk/id/local-authority/38,Oxfordshire County Council,Testing Funding Oct-21 -Mar22,04/02/2022,5689,,3111118453,525.48,Goldsmith Personnel Ltd
http://statistics.data.gov.uk/id/local-authority/38,Oxfordshire County Council,Testing Funding Oct-21 -Mar22,04/02/2022,5689,,3111118501,525.48,Pechiv Ltd
http://statistics.data.gov.uk/id/local-authority/38,Oxfordshire County Council,Support at Home 65+ Memory & Cognition,17/02/2022,5696,,3111128696,525.67,Orders of St John Care Trust
http://statistics.data.gov.uk/id/local-authority/38,Oxfordshire County Council,Workforce Capacity Fund Round 2,22/02/2022,5688,,3111131215,526.22,The Brandon Trust
http://statistics.data.gov.uk/id/local-authority/38,Oxfordshire County Council,Support at Home U65 Learning Disability,15/02/2022,5899,Social Care - Direct Payments,3111127632,526.28,Purple Conversation Com In Co (DP)
http://statistics.data.gov.uk/id/local-authority/38,Oxfordshire County Council,Support at Home U65 Physical Support,15/02/2022,5899,Social Care - Direct Payments,3111127867,526.28,Purple Conversation Com In Co (DP)
http://statistics.data.gov.uk/id/local-authority/38,Oxfordshire County Council,FOSTERING MAIN,22/02/2022,5227,Other Transport Arrangements,3111129905,526.38,Personal Redacted Data
http://statistics.data.gov.uk/id/local-authority/38,Oxfordshire County Council,LIBRARY COLLECTIONS,04/02/2022,4539,"Books, DVDs and CDs",3111119062,526.45,ASKEWS & HOLTS LIBRARY SERVICES LTD
http://statistics.data.gov.uk/id/local-authority/38,Oxfordshire County Council,SM DISABILITIES,23/02/2022,5554,Childrens' Social Care - Direct Payments,3111131495,526.61,Personal Redacted Data
http://statistics.data.gov.uk/id/local-authority/38,Oxfordshire County Council,Workforce Capacity Fund Round 2,22/02/2022,5555,Payments to Carers,3111130906,527.49,Personal Redacted Data
http://statistics.data.gov.uk/id/local-authority/38,Oxfordshire County Council,Workforce Capacity Fund Round 2,22/02/2022,5555,Payments to Carers,3111130879,527.49,Personal Redacted Data
http://statistics.data.gov.uk/id/local-authority/38,Oxfordshire County Council,Family Solutions Plus Non-staff - South,18/02/2022,5227,Other Transport Arrangements,3111129177,528,Her Ride Limited
http://statistics.data.gov.uk/id/local-authority/38,Oxfordshire County Council,Family Solutions Plus Non-staff - North,17/02/2022,4940,Other Services,3111128679,528,OCC One Time Vendor
http://statistics.data.gov.uk/id/local-authority/38,Oxfordshire County Council,OXF. EMPLOYMENT SERV,25/02/2022,2040,Agency Staff,2200959059,528.3,Paterson Recruitment
http://statistics.data.gov.uk/id/local-authority/38,Oxfordshire County Council,Support at Home 65+ Learning Disability,11/02/2022,5693,,3111125371,528.4,Pioneering Care Bicester Limited
http://statistics.data.gov.uk/id/local-authority/38,Oxfordshire County Council,Support at Home 65+ Physical Support,18/02/2022,5693,,3111129350,528.53,AVR (Oxon) Ltd
http://statistics.data.gov.uk/id/local-authority/38,Oxfordshire County Council,Support at Home U65 MH OBC Contract,17/02/2022,5696,,3111128805,528.59,Orders of St John Care Trust
http://statistics.data.gov.uk/id/local-authority/38,Oxfordshire County Council,Support at Home U65 MH OBC Contract,01/02/2022,5689,,3111116502,528.75,Response Organisation
http://statistics.data.gov.uk/id/local-authority/38,Oxfordshire County Council,NHS HEALTHCHECK PROG,07/02/2022,4933,,3111128447,529,Windrush Health Centre
http://statistics.data.gov.uk/id/local-authority/38,Oxfordshire County Council,Support at Home 65+ Memory & Cognition,17/02/2022,5696,,3111128800,529.07,Orders of St John Care Trust
http://statistics.data.gov.uk/id/local-authority/38,Oxfordshire County Council,Vaccine Funding Oct 21 � Mar 22,04/02/2022,5686,,3111118948,529.28,Coxwell Hall & Mews Nursing Home
http://statistics.data.gov.uk/id/local-authority/38,Oxfordshire County Council,Vaccine Funding Oct 21 � Mar 22,04/02/2022,5686,,3111118979,529.28,Ideal Carehomes
http://statistics.data.gov.uk/id/local-authority/38,Oxfordshire County Council,Vaccine Funding Oct 21 � Mar 22,04/02/2022,5686,,3111118942,529.28,METHODIST HOMES
http://statistics.data.gov.uk/id/local-authority/38,Oxfordshire County Council,Support at Home U65 Learning Disability,01/02/2022,5682,,3111114721,529.35,The Brandon Trust
http://statistics.data.gov.uk/id/local-authority/38,Oxfordshire County Council,Support at Home U65 Other /Soc Isolation,15/02/2022,5899,Social Care - Direct Payments,3111127532,529.48,Purple Conversation Com In Co (DP)
http://statistics.data.gov.uk/id/local-authority/38,Oxfordshire County Council,WIDER TOBACCO CONTRL,14/02/2022,4859,Medical and Counselling Fees,2200955697,530,BOUNCE DESIGN LTD
http://statistics.data.gov.uk/id/local-authority/38,Oxfordshire County Council,REGISTRAR,15/02/2022,7382,Ceremonies,3111125814,530,OCC One Time Vendor
http://statistics.data.gov.uk/id/local-authority/38,Oxfordshire County Council,,25/02/2022,1448,Blackfield Inc & Exp A/c,3111132060,530.09,OCC One Time Vendor
http://statistics.data.gov.uk/id/local-authority/38,Oxfordshire County Council,Support at Home U65 Physical Support,15/02/2022,5899,Social Care - Direct Payments,3111127483,531.08,Purple Conversation Com In Co (DP)
http://statistics.data.gov.uk/id/local-authority/38,Oxfordshire County Council,Support at Home 65+ Physical Support,09/02/2022,5693,,3111120317,531.25,HEALTHCARE ACCESS LTD
http://statistics.data.gov.uk/id/local-authority/38,Oxfordshire County Council,2 YEAR OLD FUNDING,16/02/2022,5537,Payments to Other Establishments,3111128247,531.65,Little Pippins Pre-Schoo
http://statistics.data.gov.uk/id/local-authority/38,Oxfordshire County Council,COUNTY PRINT FINSHRS,28/02/2022,4450,Disability Aids and Equipment,2200959677,531.84,Theo Davies
http://statistics.data.gov.uk/id/local-authority/38,Oxfordshire County Council,Support at Home 65+ Physical Support,02/02/2022,5693,,3111116705,532,Acquire Care Ltd
http://statistics.data.gov.uk/id/local-authority/38,Oxfordshire County Council,Support at Home U65 Mental Health,01/02/2022,5696,,3111115485,532,All Care GB Ltd
http://statistics.data.gov.uk/id/local-authority/38,Oxfordshire County Council,Support at Home U65 Physical Support,01/02/2022,5696,,3111115530,532,All Care GB Ltd
http://statistics.data.gov.uk/id/local-authority/38,Oxfordshire County Council,Support at Home U65 Physical Support,01/02/2022,5696,,3111115539,532,All Care GB Ltd
http://statistics.data.gov.uk/id/local-authority/38,Oxfordshire County Council,Support at Home 65+ Memory & Cognition,01/02/2022,5696,,3111115550,532,All Care GB Ltd
http://statistics.data.gov.uk/id/local-authority/38,Oxfordshire County Council,Support at Home 65+ Physical Support,01/02/2022,5696,,3111115592,532,All Care GB Ltd
http://statistics.data.gov.uk/id/local-authority/38,Oxfordshire County Council,Support at Home 65+ Physical Support,01/02/2022,5696,,3111115627,532,All Care GB Ltd
http://statistics.data.gov.uk/id/local-authority/38,Oxfordshire County Council,Support at Home 65+ Physical Support,01/02/2022,5696,,3111115642,532,All Care GB Ltd
http://statistics.data.gov.uk/id/local-authority/38,Oxfordshire County Council,Support at Home 65+ Physical Support,01/02/2022,5696,,3111115645,532,All Care GB Ltd
http://statistics.data.gov.uk/id/local-authority/38,Oxfordshire County Council,Support at Home 65+ Physical Support,01/02/2022,5696,,3111115719,532,All Care GB Ltd
http://statistics.data.gov.uk/id/local-authority/38,Oxfordshire County Council,SEN TRANSPORT,16/02/2022,5227,Other Transport Arrangements,3111128597,532.37,24/7 LTD
http://statistics.data.gov.uk/id/local-authority/38,Oxfordshire County Council,FOSTERING MAIN,01/02/2022,5549,B*Fostering Allowance - Regulation 38,3111114837,533,Personal Redacted Data
http://statistics.data.gov.uk/id/local-authority/38,Oxfordshire County Council,FOSTERING MAIN,08/02/2022,5549,B*Fostering Allowance - Regulation 38,3111119740,533,Personal Redacted Data
http://statistics.data.gov.uk/id/local-authority/38,Oxfordshire County Council,FOSTERING MAIN,15/02/2022,5549,B*Fostering Allowance - Regulation 38,3111126027,533,Personal Redacted Data
http://statistics.data.gov.uk/id/local-authority/38,Oxfordshire County Council,FOSTERING MAIN,22/02/2022,5549,B*Fostering Allowance - Regulation 38,3111130247,533,Personal Redacted Data
http://statistics.data.gov.uk/id/local-authority/38,Oxfordshire County Council,Support at Home 65+ Physical Support,11/02/2022,5693,,3111125356,533.2,Pioneering Care Bicester Limited
http://statistics.data.gov.uk/id/local-authority/38,Oxfordshire County Council,Support at Home 65+ Physical Support,01/02/2022,5689,,3111116025,533.33,Genuine Carers Ltd
http://statistics.data.gov.uk/id/local-authority/38,Oxfordshire County Council,Workforce Capacity Fund Round 2,22/02/2022,5555,Payments to Carers,3111130935,533.71,Personal Redacted Data
http://statistics.data.gov.uk/id/local-authority/38,Oxfordshire County Council,FOSTERING MAIN,01/02/2022,5549,B*Fostering Allowance - Regulation 38,3111114464,534,Personal Redacted Data
http://statistics.data.gov.uk/id/local-authority/38,Oxfordshire County Council,FOSTERING MAIN,08/02/2022,5549,B*Fostering Allowance - Regulation 38,3111119392,534,Personal Redacted Data
http://statistics.data.gov.uk/id/local-authority/38,Oxfordshire County Council,FOSTERING MAIN,15/02/2022,5549,B*Fostering Allowance - Regulation 38,3111125862,534,Personal Redacted Data
http://statistics.data.gov.uk/id/local-authority/38,Oxfordshire County Council,FOSTERING MAIN,22/02/2022,5549,B*Fostering Allowance - Regulation 38,3111129865,534,Personal Redacted Data
http://statistics.data.gov.uk/id/local-authority/38,Oxfordshire County Council,SEN TRANSPORT,23/02/2022,4320,Pupil / Client Travel Reimbursement,3111130616,534.18,Personal Redacted Data
http://statistics.data.gov.uk/id/local-authority/38,Oxfordshire County Council,Workforce Capacity Fund Round 2,22/02/2022,5688,,3111130849,534.31,H F TRUST LTD
http://statistics.data.gov.uk/id/local-authority/38,Oxfordshire County Council,Support at Home 65+ Learning Disability,10/02/2022,5690,,3111120971,534.8,Style Acre
http://statistics.data.gov.uk/id/local-authority/38,Oxfordshire County Council,Support at Home U65 Learning Disability,15/02/2022,5899,Social Care - Direct Payments,3111127439,534.88,Purple Conversation Com In Co (DP)
http://statistics.data.gov.uk/id/local-authority/38,Oxfordshire County Council,Support at Home 65+ Memory & Cognition,10/02/2022,5686,,3111123267,535,Orders of St John
http://statistics.data.gov.uk/id/local-authority/38,Oxfordshire County Council,Support at Home 65+ Mental Health,02/02/2022,5693,,3111116746,535.02,Genuine Carers Ltd
http://statistics.data.gov.uk/id/local-authority/38,Oxfordshire County Council,Support at Home 65+ Learning Disability,01/02/2022,5689,,3111116132,535.09,Greigcare Home Service
http://statistics.data.gov.uk/id/local-authority/38,Oxfordshire County Council,Support at Home U65 Physical Support,01/02/2022,5698,,3111115040,535.23,Acquire Care Ltd
http://statistics.data.gov.uk/id/local-authority/38,Oxfordshire County Council,Support at Home 65+ Physical Support,09/02/2022,5693,,3111120315,535.5,Enable Health Ltd
http://statistics.data.gov.uk/id/local-authority/38,Oxfordshire County Council,Mainstream Res,09/02/2022,5558,,3111120496,535.71,Young Foundations Ltd
http://statistics.data.gov.uk/id/local-authority/38,Oxfordshire County Council,FOSTERING MAIN,01/02/2022,5541,B*Foster Parents,3111114722,536,Personal Redacted Data
http://statistics.data.gov.uk/id/local-authority/38,Oxfordshire County Council,FOSTERING MAIN,01/02/2022,5541,B*Foster Parents,3111114725,536,Personal Redacted Data
http://statistics.data.gov.uk/id/local-authority/38,Oxfordshire County Council,FOSTERING MAIN,08/02/2022,5541,B*Foster Parents,3111119627,536,Personal Redacted Data
http://statistics.data.gov.uk/id/local-authority/38,Oxfordshire County Council,FOSTERING MAIN,08/02/2022,5541,B*Foster Parents,3111119629,536,Personal Redacted Data
http://statistics.data.gov.uk/id/local-authority/38,Oxfordshire County Council,FOSTERING MAIN,15/02/2022,5541,B*Foster Parents,3111125982,536,Personal Redacted Data
http://statistics.data.gov.uk/id/local-authority/38,Oxfordshire County Council,FOSTERING MAIN,15/02/2022,5541,B*Foster Parents,3111125983,536,Personal Redacted Data
http://statistics.data.gov.uk/id/local-authority/38,Oxfordshire County Council,FOSTERING MAIN,22/02/2022,5541,B*Foster Parents,3111130101,536,Personal Redacted Data
http://statistics.data.gov.uk/id/local-authority/38,Oxfordshire County Council,FOSTERING MAIN,22/02/2022,5541,B*Foster Parents,3111130122,536,Personal Redacted Data
http://statistics.data.gov.uk/id/local-authority/38,Oxfordshire County Council,Support at Home U65 Physical Support,15/02/2022,5899,Social Care - Direct Payments,3111126887,536,Personal Redacted Data
http://statistics.data.gov.uk/id/local-authority/38,Oxfordshire County Council,Support at Home U65 Learning Disability,15/02/2022,5899,Social Care - Direct Payments,3111127005,536,Personal Redacted Data
http://statistics.data.gov.uk/id/local-authority/38,Oxfordshire County Council,Support at Home U65 Mental Health,01/02/2022,5689,,3111116507,536.52,Response Organisation
http://statistics.data.gov.uk/id/local-authority/38,Oxfordshire County Council,Support at Home 65+ Memory & Cognition,01/02/2022,5698,,3111115135,536.86,Bridges Home Care Ltd
http://statistics.data.gov.uk/id/local-authority/38,Oxfordshire County Council,PERSONNEL,17/02/2022,5251,Legal Costs,2200957101,537,Bevan Brittan LLP
http://statistics.data.gov.uk/id/local-authority/38,Oxfordshire County Council,OPERATIONS,14/02/2022,4498,Health and Safety Equipment,2200955937,537.17,INTERSPIRO LTD
http://statistics.data.gov.uk/id/local-authority/38,Oxfordshire County Council,Support at Home U65 Learning Disability,17/02/2022,5696,,3111128726,537.3,Orders of St John Care Trust
http://statistics.data.gov.uk/id/local-authority/38,Oxfordshire County Council,Support at Home U65 Physical Support,01/02/2022,5689,,3111115474,537.41,Care Outlook Ltd
http://statistics.data.gov.uk/id/local-authority/38,Oxfordshire County Council,Support at Home 65+ Physical Support,01/02/2022,5689,,3111116386,537.56,Pechiv Ltd
http://statistics.data.gov.uk/id/local-authority/38,Oxfordshire County Council,Contingency Home Care,01/02/2022,5689,,3111116361,538.31,Oxford University Hospitals NHS FT
http://statistics.data.gov.uk/id/local-authority/38,Oxfordshire County Council,Infection Prevention Crt Oct 21 � Mar 21,04/02/2022,5688,,3111118069,538.35,Orders of St John Care Trust
http://statistics.data.gov.uk/id/local-authority/38,Oxfordshire County Council,Infection Prevention Crt Oct 21 � Mar 21,04/02/2022,5688,,3111118191,538.35,Orders of St John Care Trust
http://statistics.data.gov.uk/id/local-authority/38,Oxfordshire County Council,Infection Prevention Crt Oct 21 � Mar 21,04/02/2022,5688,,3111118170,538.35,SEABROOK SERVICES LTD
http://statistics.data.gov.uk/id/local-authority/38,Oxfordshire County Council,Vaccine Funding Oct 21 � Mar 22,04/02/2022,5689,,3111118830,539.56,MacIntyre Care (Womaston)
http://statistics.data.gov.uk/id/local-authority/38,Oxfordshire County Council,MAINSTREAM-PRIMARY,15/02/2022,4330,Transport to School Activities,3111126541,540,001 Alpha Cars Ltd
http://statistics.data.gov.uk/id/local-authority/38,Oxfordshire County Council,Support at Home U65 Other /Soc Isolation,10/02/2022,5690,,3111121063,540,ADVANCE HOUSING & SUPPORT LTD
http://statistics.data.gov.uk/id/local-authority/38,Oxfordshire County Council,SEN TRANSPORT,01/02/2022,5227,Other Transport Arrangements,3111114060,540,Airport Transfers Banbury Ltd
http://statistics.data.gov.uk/id/local-authority/38,Oxfordshire County Council,LEGAL BUDGET,16/02/2022,5251,Legal Costs,2200956745,540,Dr Sumi Ratnam
http://statistics.data.gov.uk/id/local-authority/38,Oxfordshire County Council,TRANSPORT COSTS,07/02/2022,4330,Transport to School Activities,3111119252,540,Oxon Transport Services Ltd
http://statistics.data.gov.uk/id/local-authority/38,Oxfordshire County Council,Support at Home U65 Learning Disability,02/02/2022,5697,,3111116665,540,Pennyhooks Farm Trust
http://statistics.data.gov.uk/id/local-authority/38,Oxfordshire County Council,Support at Home U65 Learning Disability,23/02/2022,5697,,3111131340,540,Pennyhooks Farm Trust
http://statistics.data.gov.uk/id/local-authority/38,Oxfordshire County Council,MAINSTREAM-PRIMARY,15/02/2022,4330,Transport to School Activities,3111125758,540,Vine Community Services Ltd T/A
http://statistics.data.gov.uk/id/local-authority/38,Oxfordshire County Council,GP Services,01/02/2022,4933,,3111117762,540.8,The Hart Surgery
http://statistics.data.gov.uk/id/local-authority/38,Oxfordshire County Council,GP Services,01/02/2022,4933,,3111117764,540.8,White Horse Practice
http://statistics.data.gov.uk/id/local-authority/38,Oxfordshire County Council,Support at Home U65 Physical Support,01/02/2022,5689,,3111116007,541.22,Genuine Carers Ltd
http://statistics.data.gov.uk/id/local-authority/38,Oxfordshire County Council,FLEET MAINTENANCE,04/02/2022,4407,Equipment,2200952476,541.38,Sutch Lifting Equipment
http://statistics.data.gov.uk/id/local-authority/38,Oxfordshire County Council,Planned Maintenance,17/02/2022,3787,Premises Repairs,2200957304,541.51,CEF
http://statistics.data.gov.uk/id/local-authority/38,Oxfordshire County Council,Planned Maintenance,04/02/2022,3787,Premises Repairs,2200952859,542.5,Windrush Door & Window Services Ltd
http://statistics.data.gov.uk/id/local-authority/38,Oxfordshire County Council,Support at Home U65 Learning Disability,09/02/2022,5697,,3111120280,542.64,Style Acre
http://statistics.data.gov.uk/id/local-authority/38,Oxfordshire County Council,Support at Home U65 Learning Disability,09/02/2022,5697,,3111120281,542.64,Style Acre
http://statistics.data.gov.uk/id/local-authority/38,Oxfordshire County Council,Support at Home U65 Learning Disability,10/02/2022,5690,,3111120997,542.72,Style Acre
http://statistics.data.gov.uk/id/local-authority/38,Oxfordshire County Council,Support at Home U65 Learning Disability,10/02/2022,5690,,3111121033,542.72,Style Acre
http://statistics.data.gov.uk/id/local-authority/38,Oxfordshire County Council,Support at Home U65 Learning Disability,10/02/2022,5690,,3111121050,542.72,Style Acre
http://statistics.data.gov.uk/id/local-authority/38,Oxfordshire County Council,Support at Home U65 Learning Disability,01/02/2022,5682,,3111114145,542.72,The Brandon Trust
http://statistics.data.gov.uk/id/local-authority/38,Oxfordshire County Council,Support at Home U65 Learning Disability,10/02/2022,5690,,3111120907,542.72,Turnstyle
http://statistics.data.gov.uk/id/local-authority/38,Oxfordshire County Council,Support at Home U65 Learning Disability,15/02/2022,5899,Social Care - Direct Payments,3111127431,543.08,Purple Conversation Com In Co (DP)
http://statistics.data.gov.uk/id/local-authority/38,Oxfordshire County Council,Support at Home 65+ Physical Support,15/02/2022,5899,Social Care - Direct Payments,3111127588,543.08,Purple Conversation Com In Co (DP)
http://statistics.data.gov.uk/id/local-authority/38,Oxfordshire County Council,Support at Home U65 Learning Disability,15/02/2022,5899,Social Care - Direct Payments,3111127999,543.08,Purple Conversation Com In Co (DP)
http://statistics.data.gov.uk/id/local-authority/38,Oxfordshire County Council,Delegated Health Tasks  - Over 65,01/02/2022,5691,,3111114240,543.2,The Caring Company (Oxon)
http://statistics.data.gov.uk/id/local-authority/38,Oxfordshire County Council,Workforce Capacity Fund Round 2,22/02/2022,5689,,3111131061,543.79,PLL Care Services
http://statistics.data.gov.uk/id/local-authority/38,Oxfordshire County Council,Support at Home 65+ Physical Support,15/02/2022,5899,Social Care - Direct Payments,3111127293,544,Personal Redacted Data
http://statistics.data.gov.uk/id/local-authority/38,Oxfordshire County Council,Support at Home 65+ Memory & Cognition,01/02/2022,5689,,3111116472,544.82,Prestige Nursing Ltd
http://statistics.data.gov.uk/id/local-authority/38,Oxfordshire County Council,2 YEAR OLD FUNDING,16/02/2022,5537,Payments to Other Establishments,3111128244,545.28,Little Monkeys Charlbury Limited
http://statistics.data.gov.uk/id/local-authority/38,Oxfordshire County Council,Vaccine Funding Oct 21 � Mar 22,04/02/2022,5686,,3111119036,545.32,METHODIST HOMES
http://statistics.data.gov.uk/id/local-authority/38,Oxfordshire County Council,Vaccine Funding Oct 21 � Mar 22,04/02/2022,5686,,3111119006,545.32,Orders of St John
http://statistics.data.gov.uk/id/local-authority/38,Oxfordshire County Council,TRANSPORT COSTS,18/02/2022,5227,Other Transport Arrangements,3111129170,546,Her Ride Limited
http://statistics.data.gov.uk/id/local-authority/38,Oxfordshire County Council,Support at Home 65+ Physical Support,01/02/2022,5689,,3111116114,546.2,Greigcare Home Service
http://statistics.data.gov.uk/id/local-authority/38,Oxfordshire County Council,FAMILY TIME TEAM,04/02/2022,4940,Other Services,2200952891,546.26,BDP Social Care LTD
http://statistics.data.gov.uk/id/local-authority/38,Oxfordshire County Council,FAMILY TIME TEAM,04/02/2022,4940,Other Services,2200952892,546.26,BDP Social Care LTD
http://statistics.data.gov.uk/id/local-authority/38,Oxfordshire County Council,DIRECTOR'S OFFICE,23/02/2022,5394,Other Expenses,2200958699,546.26,BDP Social Care LTD
http://statistics.data.gov.uk/id/local-authority/38,Oxfordshire County Council,Support at Home U65 Learning Disability,01/02/2022,5689,,3111116437,546.59,PLL Care Services
http://statistics.data.gov.uk/id/local-authority/38,Oxfordshire County Council,Support at Home 65+ Physical Support,17/02/2022,5696,,3111128818,546.96,Orders of St John Care Trust
http://statistics.data.gov.uk/id/local-authority/38,Oxfordshire County Council,HN IN SEC SCHOOLS,17/02/2022,5537,Payments to Other Establishments,3111129035,547,FUTURES INSTITUTE BANBURY
http://statistics.data.gov.uk/id/local-authority/38,Oxfordshire County Council,Support at Home U65 Learning Disability,01/02/2022,5682,,3111114714,547.07,The Brandon Trust
http://statistics.data.gov.uk/id/local-authority/38,Oxfordshire County Council,Support at Home U65 Physical Support,15/02/2022,5899,Social Care - Direct Payments,3111127549,547.2,Purple Conversation Com In Co (DP)
http://statistics.data.gov.uk/id/local-authority/38,Oxfordshire County Council,Support at Home U65 Learning Disability,10/02/2022,5688,,3111121751,547.2,The Brandon Trust
http://statistics.data.gov.uk/id/local-authority/38,Oxfordshire County Council,Support at Home 65+ Physical Support,04/02/2022,5693,,3111117844,547.4,XPERIENCE RECRUITMENT LIMITED
http://statistics.data.gov.uk/id/local-authority/38,Oxfordshire County Council,Workforce Capacity Fund Round 2,22/02/2022,5688,,3111130699,547.57,Autism at Kingwood Limited
http://statistics.data.gov.uk/id/local-authority/38,Oxfordshire County Council,Support at Home 65+ Physical Support,01/02/2022,5689,,3111115383,548.12,Care Outlook Ltd
http://statistics.data.gov.uk/id/local-authority/38,Oxfordshire County Council,Vaccine Funding Oct 21 � Mar 22,04/02/2022,5688,,3111118620,548.16,Day & Night Care Assistance
http://statistics.data.gov.uk/id/local-authority/38,Oxfordshire County Council,PSYCHOLOGY SERVICE,02/02/2022,4539,"Books, DVDs and CDs",2200951920,548.66,GL Education Group Ltd
http://statistics.data.gov.uk/id/local-authority/38,Oxfordshire County Council,Support at Home U65 Physical Support,01/02/2022,5689,,3111116217,549.69,Home Helpers Care Ltd
http://statistics.data.gov.uk/id/local-authority/38,Oxfordshire County Council,LEGAL SERVICES,04/02/2022,5251,Legal Costs,2200952541,550,Alex Perry
http://statistics.data.gov.uk/id/local-authority/38,Oxfordshire County Council,LEGAL SERVICES,11/02/2022,5251,Legal Costs,2200955248,550,David Marusza
http://statistics.data.gov.uk/id/local-authority/38,Oxfordshire County Council,LEGAL SERVICES,10/02/2022,5251,Legal Costs,2200954684,550,Martha Gray
http://statistics.data.gov.uk/id/local-authority/38,Oxfordshire County Council,LEGAL SERVICES,11/02/2022,5251,Legal Costs,2200955348,550,Martha Gray
http://statistics.data.gov.uk/id/local-authority/38,Oxfordshire County Council,LEGAL SERVICES,17/02/2022,5251,Legal Costs,2200957371,550,Martin Blount
http://statistics.data.gov.uk/id/local-authority/38,Oxfordshire County Council,LEGAL SERVICES,11/02/2022,5251,Legal Costs,2200955273,550,Natasha Miller
http://statistics.data.gov.uk/id/local-authority/38,Oxfordshire County Council,Housing & Growth Deal Capacity Funding,17/02/2022,4940,Other Services,2200957378,550,Newsquest Oxfordshire
http://statistics.data.gov.uk/id/local-authority/38,Oxfordshire County Council,ATV Adoption Oxford,08/02/2022,4615,Drugs and Medical Supplies,3111119283,550,OCC One Time Vendor
http://statistics.data.gov.uk/id/local-authority/38,Oxfordshire County Council,POST 16 SEN,09/02/2022,4330,Transport to School Activities,3111120366,550,Oxon Transport Services Ltd
http://statistics.data.gov.uk/id/local-authority/38,Oxfordshire County Council,LEGAL SERVICES,17/02/2022,5251,Legal Costs,2200957388,550,Paige Campbell
http://statistics.data.gov.uk/id/local-authority/38,Oxfordshire County Council,L&D CORE PROGRAMME,04/02/2022,3103,Other Training Courses and Qualification,2200952556,550,Premier Partnership
http://statistics.data.gov.uk/id/local-authority/38,Oxfordshire County Council,RESIDENTIAL STRATEGY,23/02/2022,3100,Educational and Vocational Training,2200958659,550,PRICE Training
http://statistics.data.gov.uk/id/local-authority/38,Oxfordshire County Council,LEGAL SERVICES,11/02/2022,5251,Legal Costs,2200955252,550,Vicky Reynolds
http://statistics.data.gov.uk/id/local-authority/38,Oxfordshire County Council,LEGAL SERVICES,17/02/2022,5251,Legal Costs,2200957197,550,Vicky Reynolds
http://statistics.data.gov.uk/id/local-authority/38,Oxfordshire County Council,ROW MAINT,28/02/2022,3103,Other Training Courses and Qualification,2200959516,550,West Berks & Oxon Training Group
http://statistics.data.gov.uk/id/local-authority/38,Oxfordshire County Council,Care Homes - Over 65 Physical Sypport,10/02/2022,5687,,3111122963,550.07,Mill House Nursing Home
http://statistics.data.gov.uk/id/local-authority/38,Oxfordshire County Council,Delegated Health Tasks  - Under 65,01/02/2022,5691,,3111114208,550.4,Pioneering Care Bicester Limited
http://statistics.data.gov.uk/id/local-authority/38,Oxfordshire County Council,Support at Home U65 Learning Disability,01/02/2022,5696,,3111115639,551,All Care GB Ltd
http://statistics.data.gov.uk/id/local-authority/38,Oxfordshire County Council,Support at Home 65+ Mental Health,15/02/2022,5899,Social Care - Direct Payments,3111127551,551.08,Purple Conversation Com In Co (DP)
http://statistics.data.gov.uk/id/local-authority/38,Oxfordshire County Council,Support at Home U65 Physical Support,01/02/2022,5689,,3111115965,551.19,Elite Care Agency
http://statistics.data.gov.uk/id/local-authority/38,Oxfordshire County Council,SM DISABILITIES,23/02/2022,5554,Childrens' Social Care - Direct Payments,3111131629,551.54,Purple Conversation Com In Co (DP)
http://statistics.data.gov.uk/id/local-authority/38,Oxfordshire County Council,SM DISABILITIES,23/02/2022,5554,Childrens' Social Care - Direct Payments,3111131439,551.54,Personal Redacted Data
http://statistics.data.gov.uk/id/local-authority/38,Oxfordshire County Council,FAM GRP CONFERENCES,03/02/2022,4940,Other Services,2200951958,551.6,Jessica Howards
http://statistics.data.gov.uk/id/local-authority/38,Oxfordshire County Council,Support at Home U65 Sensory Support,15/02/2022,5899,Social Care - Direct Payments,3111126917,552,Personal Redacted Data
http://statistics.data.gov.uk/id/local-authority/38,Oxfordshire County Council,Delegated Health Tasks  - Over 65,04/02/2022,5691,,3111117952,552.15,Bluebird Care
http://statistics.data.gov.uk/id/local-authority/38,Oxfordshire County Council,SEN TRANSPORT,23/02/2022,4320,Pupil / Client Travel Reimbursement,3111130567,552.6,Personal Redacted Data
http://statistics.data.gov.uk/id/local-authority/38,Oxfordshire County Council,LIBRARY COLLECTIONS,21/02/2022,4539,"Books, DVDs and CDs",3111129801,553.67,ASKEWS & HOLTS LIBRARY SERVICES LTD
http://statistics.data.gov.uk/id/local-authority/38,Oxfordshire County Council,Family Solutions Plus Non-staff - North,01/02/2022,4940,Other Services,2200950936,554,Co-Op Oxford Nursery
http://statistics.data.gov.uk/id/local-authority/38,Oxfordshire County Council,HEARING IMP. TEAM,23/02/2022,4450,Disability Aids and Equipment,2200958700,554.04,CONNEVANS LTD
http://statistics.data.gov.uk/id/local-authority/38,Oxfordshire County Council,Workforce Capacity Fund Round 2,22/02/2022,5693,,3111130755,554.51,CaringPlus Healthcare Services Ltd
http://statistics.data.gov.uk/id/local-authority/38,Oxfordshire County Council,Workforce Capacity Fund Round 2,22/02/2022,5555,Payments to Carers,3111130908,554.57,Personal Redacted Data
http://statistics.data.gov.uk/id/local-authority/38,Oxfordshire County Council,LEGAL SERVICES,01/02/2022,5251,Legal Costs,2200951064,555,Harry Simons
http://statistics.data.gov.uk/id/local-authority/38,Oxfordshire County Council,LIBRARY COLLECTIONS,16/02/2022,4539,"Books, DVDs and CDs",2200956983,555,ULVERSCROFT LARGE PRINT BOOKS LTD
http://statistics.data.gov.uk/id/local-authority/38,Oxfordshire County Council,Support at Home 65+ Physical Support,02/02/2022,5693,,3111116694,555.87,A CARING HAND LTD
http://statistics.data.gov.uk/id/local-authority/38,Oxfordshire County Council,Support at Home 65+ Physical Support,02/02/2022,5693,,3111116697,555.87,A CARING HAND LTD
http://statistics.data.gov.uk/id/local-authority/38,Oxfordshire County Council,Support at Home U65 Physical Support,23/02/2022,5693,,3111131280,555.87,A CARING HAND LTD
http://statistics.data.gov.uk/id/local-authority/38,Oxfordshire County Council,Support at Home 65+ Physical Support,01/02/2022,5698,,3111115287,555.97,Day & Night Care Assistance
http://statistics.data.gov.uk/id/local-authority/38,Oxfordshire County Council,Infection Prevention Crt Oct 21 � Mar 21,04/02/2022,5689,,3111118271,555.98,Direct Link Care Ltd
http://statistics.data.gov.uk/id/local-authority/38,Oxfordshire County Council,Infection Prevention Crt Oct 21 � Mar 21,04/02/2022,5689,,3111118279,555.98,Genuine Carers Ltd
http://statistics.data.gov.uk/id/local-authority/38,Oxfordshire County Council,Infection Prevention Crt Oct 21 � Mar 21,04/02/2022,5689,,3111118285,555.98,Go For It
http://statistics.data.gov.uk/id/local-authority/38,Oxfordshire County Council,Infection Prevention Crt Oct 21 � Mar 21,04/02/2022,5689,,3111118323,555.98,Orders of St John Care Trust
http://statistics.data.gov.uk/id/local-authority/38,Oxfordshire County Council,Infection Prevention Crt Oct 21 � Mar 21,04/02/2022,5689,,3111118385,555.98,XPERIENCE RECRUITMENT LIMITED
http://statistics.data.gov.uk/id/local-authority/38,Oxfordshire County Council,LAC PUPIL PREMIUM,18/02/2022,5537,Payments to Other Establishments,3111129284,556,Hill View Primary School
http://statistics.data.gov.uk/id/local-authority/38,Oxfordshire County Council,Support at Home 65+ Physical Support,01/02/2022,5698,,3111115653,556.47,Oxford Private Care
http://statistics.data.gov.uk/id/local-authority/38,Oxfordshire County Council,Support at Home 65+ Physical Support,01/02/2022,5899,Social Care - Direct Payments,3111115264,556.62,Purple Conversation Com In Co (DP)
http://statistics.data.gov.uk/id/local-authority/38,Oxfordshire County Council,Support at Home 65+ Memory & Cognition,17/02/2022,5696,,3111128831,556.86,Orders of St John Care Trust
http://statistics.data.gov.uk/id/local-authority/38,Oxfordshire County Council,Family Solutions Plus Non-staff - Centra,11/02/2022,2040,Agency Staff,2200955317,556.87,MEDGEN LTD
http://statistics.data.gov.uk/id/local-authority/38,Oxfordshire County Council,Support at Home U65 Learning Disability,10/02/2022,5690,,3111121013,557.04,Style Acre
http://statistics.data.gov.uk/id/local-authority/38,Oxfordshire County Council,Support at Home U65 Learning Disability,10/02/2022,5690,,3111121036,557.04,Style Acre
http://statistics.data.gov.uk/id/local-authority/38,Oxfordshire County Council,Support at Home U65 Learning Disability,10/02/2022,5690,,3111121052,557.04,Style Acre
http://statistics.data.gov.uk/id/local-authority/38,Oxfordshire County Council,,18/02/2022,1448,Blackfield Inc & Exp A/c,3111129215,557.36,OCC One Time Vendor
http://statistics.data.gov.uk/id/local-authority/38,Oxfordshire County Council,Workforce Capacity Fund Round 2,22/02/2022,5688,,3111131214,557.44,The Brandon Trust
http://statistics.data.gov.uk/id/local-authority/38,Oxfordshire County Council,Support at Home U65 Learning Disability,15/02/2022,5899,Social Care - Direct Payments,3111126910,557.6,Personal Redacted Data
http://statistics.data.gov.uk/id/local-authority/38,Oxfordshire County Council,Community Support Service Wallingford,10/02/2022,4232,Vehicle Fuel,2200954659,557.91,Allstar Business Solutions Ltd
http://statistics.data.gov.uk/id/local-authority/38,Oxfordshire County Council,Support at Home 65+ Physical Support,23/02/2022,5693,,3111131286,557.96,CARE & CARERS LTD
http://statistics.data.gov.uk/id/local-authority/38,Oxfordshire County Council,FAMILY TIME TEAM,22/02/2022,4940,Other Services,2200958423,558.13,BDP Social Care LTD
http://statistics.data.gov.uk/id/local-authority/38,Oxfordshire County Council,LIBRARY COLLECTIONS,04/02/2022,4539,"Books, DVDs and CDs",3111119061,558.32,ASKEWS & HOLTS LIBRARY SERVICES LTD
http://statistics.data.gov.uk/id/local-authority/38,Oxfordshire County Council,Support at Home U65 Learning Disability,01/02/2022,5682,,3111114152,558.39,The Brandon Trust
http://statistics.data.gov.uk/id/local-authority/38,Oxfordshire County Council,Support at Home 65+ Physical Support,15/02/2022,5899,Social Care - Direct Payments,3111126550,558.48,Personal Redacted Data
http://statistics.data.gov.uk/id/local-authority/38,Oxfordshire County Council,MAINSTREAM-PRIMARY,16/02/2022,4330,Transport to School Activities,3111128580,558.9,24/7 LTD
http://statistics.data.gov.uk/id/local-authority/38,Oxfordshire County Council,MAINSTREAM-SECONDARY,16/02/2022,4330,Transport to School Activities,3111128581,558.9,24/7 LTD
http://statistics.data.gov.uk/id/local-authority/38,Oxfordshire County Council,FOSTERING MAIN,15/02/2022,5549,B*Fostering Allowance - Regulation 38,3111125906,558.9,Personal Redacted Data
http://statistics.data.gov.uk/id/local-authority/38,Oxfordshire County Council,FOSTERING MAIN,08/02/2022,5549,B*Fostering Allowance - Regulation 38,3111119838,558.9,Personal Redacted Data
http://statistics.data.gov.uk/id/local-authority/38,Oxfordshire County Council,FOSTERING MAIN,08/02/2022,5549,B*Fostering Allowance - Regulation 38,3111119840,558.9,Personal Redacted Data
http://statistics.data.gov.uk/id/local-authority/38,Oxfordshire County Council,FOSTERING MAIN,15/02/2022,5549,B*Fostering Allowance - Regulation 38,3111126160,558.9,Personal Redacted Data
http://statistics.data.gov.uk/id/local-authority/38,Oxfordshire County Council,West Berkshire Adoption Support Fund,02/02/2022,4861,Hired and Contracted Services,2200951812,559.16,Integrate Families
http://statistics.data.gov.uk/id/local-authority/38,Oxfordshire County Council,SEN TRANSPORT,11/02/2022,4330,Transport to School Activities,3111125446,560,Go Green Taxis
http://statistics.data.gov.uk/id/local-authority/38,Oxfordshire County Council,LAC PUPIL PREMIUM,18/02/2022,5537,Payments to Other Establishments,3111129315,560,Highlands School
http://statistics.data.gov.uk/id/local-authority/38,Oxfordshire County Council,LD Continuing Care - Sup at Home - U65,18/02/2022,5691,,3111129380,560,KIT Mobility Taxis Oxford Ltd
http://statistics.data.gov.uk/id/local-authority/38,Oxfordshire County Council,Family Solutions Plus Non-staff - Centra,17/02/2022,4270,HTM / Other Vehicle - Hire Charges,2200957344,560,Oxford Van Man
http://statistics.data.gov.uk/id/local-authority/38,Oxfordshire County Council,Support at Home U65 Learning Disability,07/02/2022,5227,Other Transport Arrangements,3111119268,560,Oxon Transport Services Ltd
http://statistics.data.gov.uk/id/local-authority/38,Oxfordshire County Council,Wokingham Adoption Support Fund,04/02/2022,4861,Hired and Contracted Services,2200952679,560,PACT (PARENTS & CHILDREN TOGETHER)
http://statistics.data.gov.uk/id/local-authority/38,Oxfordshire County Council,CHC Fast Track - Sup at Home - Under 65,28/02/2022,5691,,3111132203,560,Same Ways Care Ltd
http://statistics.data.gov.uk/id/local-authority/38,Oxfordshire County Council,L&D CORE PROGRAMME,07/02/2022,4615,Drugs and Medical Supplies,2200953082,560,ST JOHN AMBULANCE
http://statistics.data.gov.uk/id/local-authority/38,Oxfordshire County Council,Wokingham Adoption Support Fund,28/02/2022,6500,Government Grants (Revenue),2200959729,560,The Paperclip Group
http://statistics.data.gov.uk/id/local-authority/38,Oxfordshire County Council,Support at Home 65+ Physical Support,15/02/2022,5899,Social Care - Direct Payments,3111126437,560,Personal Redacted Data
http://statistics.data.gov.uk/id/local-authority/38,Oxfordshire County Council,Planned Maintenance,02/02/2022,3787,Premises Repairs,2200951735,560,Windrush Door & Window Services Ltd
http://statistics.data.gov.uk/id/local-authority/38,Oxfordshire County Council,Support at Home 65+ Physical Support,01/02/2022,5689,,3111115439,560.22,Care Outlook Ltd
http://statistics.data.gov.uk/id/local-authority/38,Oxfordshire County Council,Support at Home 65+ Physical Support,01/02/2022,5689,,3111115502,560.22,Care Outlook Ltd
http://statistics.data.gov.uk/id/local-authority/38,Oxfordshire County Council,Support at Home 65+ Physical Support,01/02/2022,5689,,3111116161,560.66,Harino Care
http://statistics.data.gov.uk/id/local-authority/38,Oxfordshire County Council,Workforce Capacity Fund Round 2,22/02/2022,5688,,3111130949,560.87,Dimensions (UK) Ltd
http://statistics.data.gov.uk/id/local-authority/38,Oxfordshire County Council,Vaccine Funding Oct 21 � Mar 22,04/02/2022,5688,,3111118599,560.98,Bridges Home Care Ltd
http://statistics.data.gov.uk/id/local-authority/38,Oxfordshire County Council,TRO TEAM,04/02/2022,4790,"Publicity, Promotions and Advertisement",2200952868,560.99,Tmp (Uk) Ltd
http://statistics.data.gov.uk/id/local-authority/38,Oxfordshire County Council,LANDLORD & TENANT,24/02/2022,4001,Uniform Business Rates,3500081982,561,West Oxfordshire District Council
http://statistics.data.gov.uk/id/local-authority/38,Oxfordshire County Council,LANDLORD & TENANT,24/02/2022,4001,Uniform Business Rates,3500081985,561,West Oxfordshire District Council
http://statistics.data.gov.uk/id/local-authority/38,Oxfordshire County Council,Support at Home U65 Learning Disability,01/02/2022,5682,,3111114692,561.24,The Brandon Trust
http://statistics.data.gov.uk/id/local-authority/38,Oxfordshire County Council,Vaccine Funding Oct 21 � Mar 22,04/02/2022,5686,,3111118932,561.35,Abbey Crest Nursing Home
http://statistics.data.gov.uk/id/local-authority/38,Oxfordshire County Council,Vaccine Funding Oct 21 � Mar 22,04/02/2022,5686,,3111119049,561.35,Barchester Healthcare
http://statistics.data.gov.uk/id/local-authority/38,Oxfordshire County Council,Vaccine Funding Oct 21 � Mar 22,04/02/2022,5686,,3111118940,561.35,Caring Homes Healthcare Group Limit
http://statistics.data.gov.uk/id/local-authority/38,Oxfordshire County Council,Vaccine Funding Oct 21 � Mar 22,04/02/2022,5686,,3111118945,561.35,HAMBERLEY CARE 2 LIMITED
http://statistics.data.gov.uk/id/local-authority/38,Oxfordshire County Council,Vaccine Funding Oct 21 � Mar 22,04/02/2022,5686,,3111118981,561.35,Lincroft Meadow
http://statistics.data.gov.uk/id/local-authority/38,Oxfordshire County Council,FAMILY TIME TEAM,07/02/2022,4940,Other Services,2200952995,561.45,Contact Professional
http://statistics.data.gov.uk/id/local-authority/38,Oxfordshire County Council,Support at Home U65 Learning Disability,02/02/2022,5697,,3111116664,561.6,Pennyhooks Farm Trust
http://statistics.data.gov.uk/id/local-authority/38,Oxfordshire County Council,Support at Home U65 Learning Disability,23/02/2022,5697,,3111131339,561.6,Pennyhooks Farm Trust
http://statistics.data.gov.uk/id/local-authority/38,Oxfordshire County Council,Support at Home 65+ Physical Support,01/02/2022,5698,,3111115302,561.96,Day & Night Care Assistance
http://statistics.data.gov.uk/id/local-authority/38,Oxfordshire County Council,Support at Home 65+ Physical Support,01/02/2022,5689,,3111116432,562.03,PLL Care Services
http://statistics.data.gov.uk/id/local-authority/38,Oxfordshire County Council,Support at Home U65 Learning Disability,10/02/2022,5690,,3111121113,562.2,Style Acre
http://statistics.data.gov.uk/id/local-authority/38,Oxfordshire County Council,Support at Home U65 Learning Disability,10/02/2022,5690,,3111121115,562.2,Style Acre
http://statistics.data.gov.uk/id/local-authority/38,Oxfordshire County Council,Support at Home 65+ Memory & Cognition,04/02/2022,5693,,3111117799,562.25,BE WELL CARE LTD
http://statistics.data.gov.uk/id/local-authority/38,Oxfordshire County Council,Support at Home U65 Physical Support,15/02/2022,5899,Social Care - Direct Payments,3111127449,562.28,Purple Conversation Com In Co (DP)
http://statistics.data.gov.uk/id/local-authority/38,Oxfordshire County Council,SM DISABILITIES,23/02/2022,5554,Childrens' Social Care - Direct Payments,3111131477,562.43,Personal Redacted Data
http://statistics.data.gov.uk/id/local-authority/38,Oxfordshire County Council,Support at Home 65+ Sensory Support,01/02/2022,5689,,3111116184,562.72,Home Helpers Care Ltd
http://statistics.data.gov.uk/id/local-authority/38,Oxfordshire County Council,Support at Home 65+ Physical Support,01/02/2022,5689,,3111116511,563.35,Response Organisation
http://statistics.data.gov.uk/id/local-authority/38,Oxfordshire County Council,Support at Home U65 Learning Disability,15/02/2022,5899,Social Care - Direct Payments,3111127718,563.72,Purple Conversation Com In Co (DP)
http://statistics.data.gov.uk/id/local-authority/38,Oxfordshire County Council,Workforce Capacity Fund Round 2,22/02/2022,5689,,3111130874,563.76,Home Helpers Care Ltd
http://statistics.data.gov.uk/id/local-authority/38,Oxfordshire County Council,SM DISABILITIES,23/02/2022,5554,Childrens' Social Care - Direct Payments,3111131484,563.81,Personal Redacted Data
http://statistics.data.gov.uk/id/local-authority/38,Oxfordshire County Council,Support at Home U65 Physical Support,15/02/2022,5899,Social Care - Direct Payments,3111126500,564,Personal Redacted Data
http://statistics.data.gov.uk/id/local-authority/38,Oxfordshire County Council,Support at Home U65 Learning Disability,01/02/2022,5682,,3111114724,564.21,The Brandon Trust
http://statistics.data.gov.uk/id/local-authority/38,Oxfordshire County Council,Support at Home 65+ Physical Support,01/02/2022,5689,,3111115939,564.22,Elite Care Agency
http://statistics.data.gov.uk/id/local-authority/38,Oxfordshire County Council,CONTRACEPTION,03/02/2022,4933,,3111125172,564.36,Principal Medical Ltd
http://statistics.data.gov.uk/id/local-authority/38,Oxfordshire County Council,Support at Home 65+ Physical Support,01/02/2022,5698,,3111115824,564.4,Oxfordshire Crossroads
http://statistics.data.gov.uk/id/local-authority/38,Oxfordshire County Council,Support at Home 65+ Physical Support,01/02/2022,5698,,3111115342,564.73,Day & Night Care Assistance
http://statistics.data.gov.uk/id/local-authority/38,Oxfordshire County Council,Support at Home 65+ Physical Support,01/02/2022,5698,,3111115463,564.73,Day & Night Care Assistance
http://statistics.data.gov.uk/id/local-authority/38,Oxfordshire County Council,Workforce Capacity Fund Round 2,22/02/2022,5693,,3111130690,564.78,ANCO CARE SERVICES LTD
http://statistics.data.gov.uk/id/local-authority/38,Oxfordshire County Council,Support at Home 65+ Physical Support,01/02/2022,5689,,3111116152,564.98,Greigcare Home Service
http://statistics.data.gov.uk/id/local-authority/38,Oxfordshire County Council,Household Support Fund,02/02/2022,4939,,3111117277,565,Christopher Rawlins Primary School
http://statistics.data.gov.uk/id/local-authority/38,Oxfordshire County Council,Support at Home U65 Learning Disability,17/02/2022,5696,,3111128812,565.33,Orders of St John Care Trust
http://statistics.data.gov.uk/id/local-authority/38,Oxfordshire County Council,Support at Home U65 Physical Support,01/02/2022,5689,,3111115429,565.69,Care Outlook Ltd
http://statistics.data.gov.uk/id/local-authority/38,Oxfordshire County Council,Infection Prevention Crt Oct 21 � Mar 21,04/02/2022,5698,,3111118215,565.7,Real Life Options
http://statistics.data.gov.uk/id/local-authority/38,Oxfordshire County Council,Support at Home 65+ Mental Health,01/02/2022,5689,,3111115538,565.78,Caremark (West Oxfordshire & Cherwe
http://statistics.data.gov.uk/id/local-authority/38,Oxfordshire County Council,Support at Home U65 Learning Disability,15/02/2022,5899,Social Care - Direct Payments,3111127363,565.88,Personal Redacted Data
http://statistics.data.gov.uk/id/local-authority/38,Oxfordshire County Council,Family Solutions Plus Non-staff - Centra,11/02/2022,2040,Agency Staff,2200955319,566.15,MEDGEN LTD
http://statistics.data.gov.uk/id/local-authority/38,Oxfordshire County Council,Community Support Service Bicester,15/02/2022,2040,Agency Staff,2200956098,567,Completely Care Ltd
http://statistics.data.gov.uk/id/local-authority/38,Oxfordshire County Council,Testing Funding Oct-21 -Mar22,04/02/2022,5687,,3111118237,567.19,Choice Ltd
http://statistics.data.gov.uk/id/local-authority/38,Oxfordshire County Council,Testing Funding Oct-21 -Mar22,04/02/2022,5686,,3111118441,567.19,Choice Ltd
http://statistics.data.gov.uk/id/local-authority/38,Oxfordshire County Council,Testing Funding Oct-21 -Mar22,04/02/2022,5698,,3111118562,567.19,EveryCare (Oxford)
http://statistics.data.gov.uk/id/local-authority/38,Oxfordshire County Council,Support at Home 65+ Memory & Cognition,15/02/2022,5899,Social Care - Direct Payments,3111127342,567.68,Personal Redacted Data
http://statistics.data.gov.uk/id/local-authority/38,Oxfordshire County Council,Transition Team,24/02/2022,4495,IT Software,2200958870,568,Bytes Software Services
http://statistics.data.gov.uk/id/local-authority/38,Oxfordshire County Council,Support at Home U65 Physical Support,03/02/2022,5227,Other Transport Arrangements,3111117460,568,Town Cars
http://statistics.data.gov.uk/id/local-authority/38,Oxfordshire County Council,Support at Home U65 Learning Disability,01/02/2022,5682,,3111114124,568.64,The Brandon Trust
http://statistics.data.gov.uk/id/local-authority/38,Oxfordshire County Council,Contingency Home Care,01/02/2022,5689,,3111116343,568.97,Oxford University Hospitals NHS FT
http://statistics.data.gov.uk/id/local-authority/38,Oxfordshire County Council,Support at Home 65+ Physical Support,01/02/2022,5689,,3111116186,569.09,Home Helpers Care Ltd
http://statistics.data.gov.uk/id/local-authority/38,Oxfordshire County Council,Vaccine Funding Oct 21 � Mar 22,04/02/2022,5686,,3111118941,569.37,Bridge House
http://statistics.data.gov.uk/id/local-authority/38,Oxfordshire County Council,Vaccine Funding Oct 21 � Mar 22,04/02/2022,5686,,3111119002,569.37,Orders of St John
http://statistics.data.gov.uk/id/local-authority/38,Oxfordshire County Council,SM DISABILITIES,23/02/2022,5554,Childrens' Social Care - Direct Payments,3111131628,569.92,Purple Conversation Com In Co (DP)
http://statistics.data.gov.uk/id/local-authority/38,Oxfordshire County Council,Family Solutions Plus Non-staff - Centra,11/02/2022,4940,Other Services,2200955298,570,Busy Bees at Oxford
http://statistics.data.gov.uk/id/local-authority/38,Oxfordshire County Council,SEN TRANSPORT,10/02/2022,5227,Other Transport Arrangements,3111120692,570,Express Travel Oxford
http://statistics.data.gov.uk/id/local-authority/38,Oxfordshire County Council,SEN TRANSPORT,01/02/2022,5227,Other Transport Arrangements,3111114045,570,Faringdon Cars
http://statistics.data.gov.uk/id/local-authority/38,Oxfordshire County Council,Bracknell Adoption Support Fund,07/02/2022,4859,Medical and Counselling Fees,2200953259,570,Heads & Hearts Ltd
http://statistics.data.gov.uk/id/local-authority/38,Oxfordshire County Council,SEN TRANSPORT,01/02/2022,5227,Other Transport Arrangements,3111114268,570,Her Ride Limited
http://statistics.data.gov.uk/id/local-authority/38,Oxfordshire County Council,Support at Home U65 Learning Disability,10/02/2022,5690,,3111120825,570,MacIntyre Care (Womaston)
http://statistics.data.gov.uk/id/local-authority/38,Oxfordshire County Council,Support at Home U65 Learning Disability,10/02/2022,5690,,3111120844,570,MacIntyre Care (Womaston)
http://statistics.data.gov.uk/id/local-authority/38,Oxfordshire County Council,SEN TRANSPORT,01/02/2022,5227,Other Transport Arrangements,3111114056,570,Oxfordlinks
http://statistics.data.gov.uk/id/local-authority/38,Oxfordshire County Council,SEN TRANSPORT,09/02/2022,5227,Other Transport Arrangements,3111120072,570,Oxon Transport Services Ltd
http://statistics.data.gov.uk/id/local-authority/38,Oxfordshire County Council,SEN TRANSPORT,09/02/2022,5227,Other Transport Arrangements,3111120128,570,Oxon Transport Services Ltd
http://statistics.data.gov.uk/id/local-authority/38,Oxfordshire County Council,SEN TRANSPORT,09/02/2022,5227,Other Transport Arrangements,3111120185,570,Oxon Transport Services Ltd
http://statistics.data.gov.uk/id/local-authority/38,Oxfordshire County Council,SEN TRANSPORT,21/02/2022,5227,Other Transport Arrangements,3111129672,570,The Gallery Trust
http://statistics.data.gov.uk/id/local-authority/38,Oxfordshire County Council,SEN TRANSPORT,02/02/2022,5227,Other Transport Arrangements,3111116873,570,Thunderbird Transport Ltd
http://statistics.data.gov.uk/id/local-authority/38,Oxfordshire County Council,SEN TRANSPORT,01/02/2022,5227,Other Transport Arrangements,3111114299,570,Town Cars
http://statistics.data.gov.uk/id/local-authority/38,Oxfordshire County Council,Infection Prevention Crt Oct 21 � Mar 21,04/02/2022,5686,,3111118080,570.18,The Brandon Trust
http://statistics.data.gov.uk/id/local-authority/38,Oxfordshire County Council,Infection Prevention Crt Oct 21 � Mar 21,04/02/2022,5686,,3111118169,570.18,The Brandon Trust
http://statistics.data.gov.uk/id/local-authority/38,Oxfordshire County Council,Community Support Service Wantage,17/02/2022,2040,Agency Staff,2200957446,570.38,Completely Care Ltd
http://statistics.data.gov.uk/id/local-authority/38,Oxfordshire County Council,Support at Home U65 Physical Support,01/02/2022,5698,,3111114974,570.47,Acquire Care Ltd
http://statistics.data.gov.uk/id/local-authority/38,Oxfordshire County Council,Support at Home 65+ Memory & Cognition,01/02/2022,5699,,3111116033,570.48,YOD Ltd
http://statistics.data.gov.uk/id/local-authority/38,Oxfordshire County Council,Support at Home 65+ Physical Support,01/02/2022,5699,,3111116035,570.48,YOD Ltd
http://statistics.data.gov.uk/id/local-authority/38,Oxfordshire County Council,Support at Home 65+ Physical Support,23/02/2022,5693,,3111131320,570.52,Genuine Carers Ltd
http://statistics.data.gov.uk/id/local-authority/38,Oxfordshire County Council,Support at Home U65 Physical Support,15/02/2022,5899,Social Care - Direct Payments,3111127964,571.08,Purple Conversation Com In Co (DP)
http://statistics.data.gov.uk/id/local-authority/38,Oxfordshire County Council,Support at Home U65 Autism /Abated,10/02/2022,5690,,3111120991,571.2,Style Acre
http://statistics.data.gov.uk/id/local-authority/38,Oxfordshire County Council,Support at Home U65 Learning Disability,10/02/2022,5690,,3111121007,571.2,Style Acre
http://statistics.data.gov.uk/id/local-authority/38,Oxfordshire County Council,Support at Home U65 Learning Disability,10/02/2022,5690,,3111121038,571.2,Style Acre
http://statistics.data.gov.uk/id/local-authority/38,Oxfordshire County Council,Support at Home U65 Learning Disability,10/02/2022,5690,,3111120809,571.2,The Ice Centre
http://statistics.data.gov.uk/id/local-authority/38,Oxfordshire County Council,Support at Home U65 Learning Disability,10/02/2022,5690,,3111120904,571.2,Turnstyle
http://statistics.data.gov.uk/id/local-authority/38,Oxfordshire County Council,Support at Home U65 Learning Disability,10/02/2022,5690,,3111120931,571.2,Turnstyle
http://statistics.data.gov.uk/id/local-authority/38,Oxfordshire County Council,Support at Home U65 Learning Disability,15/02/2022,5899,Social Care - Direct Payments,3111128050,571.56,Rosekel Resourcing Ltd
http://statistics.data.gov.uk/id/local-authority/38,Oxfordshire County Council,Support at Home U65 Learning Disability,01/02/2022,5682,,3111114117,571.69,The Brandon Trust
http://statistics.data.gov.uk/id/local-authority/38,Oxfordshire County Council,Support at Home U65 MH OBC Contract,01/02/2022,5689,,3111115772,571.88,Casa Care Ltd
http://statistics.data.gov.uk/id/local-authority/38,Oxfordshire County Council,SEN TRANSPORT,21/02/2022,5227,Other Transport Arrangements,3111129740,572,Banbury Taxis
http://statistics.data.gov.uk/id/local-authority/38,Oxfordshire County Council,Support at Home U65 Learning Disability,15/02/2022,5899,Social Care - Direct Payments,3111126511,572,Personal Redacted Data
http://statistics.data.gov.uk/id/local-authority/38,Oxfordshire County Council,Support at Home 65+ Memory & Cognition,15/02/2022,5899,Social Care - Direct Payments,3111126278,572,Personal Redacted Data
http://statistics.data.gov.uk/id/local-authority/38,Oxfordshire County Council,Infection Prevention Crt Oct 21 � Mar 21,04/02/2022,5688,,3111118141,572,Orders of St John Care Trust
http://statistics.data.gov.uk/id/local-authority/38,Oxfordshire County Council,Infection Prevention Crt Oct 21 � Mar 21,04/02/2022,5688,,3111118156,572,Radis Community Care
http://statistics.data.gov.uk/id/local-authority/38,Oxfordshire County Council,Infection Prevention Crt Oct 21 � Mar 21,04/02/2022,5688,,3111118146,572,UNITED RESPONSE
http://statistics.data.gov.uk/id/local-authority/38,Oxfordshire County Council,Support at Home U65 Learning Disability,10/02/2022,5690,,3111121100,572.04,Mencap Contracts
http://statistics.data.gov.uk/id/local-authority/38,Oxfordshire County Council,Mockingbird,01/02/2022,4525,Furniture,3111114809,572.37,Personal Redacted Data
http://statistics.data.gov.uk/id/local-authority/38,Oxfordshire County Council,2 YEAR OLD FUNDING,16/02/2022,5537,Payments to Other Establishments,3111128173,572.54,Cumnor Pre-School Nurser
http://statistics.data.gov.uk/id/local-authority/38,Oxfordshire County Council,2 YEAR OLD FUNDING,16/02/2022,5537,Payments to Other Establishments,3111128266,572.54,Minster Lovell Playgroup
http://statistics.data.gov.uk/id/local-authority/38,Oxfordshire County Council,2 YEAR OLD FUNDING,16/02/2022,5537,Payments to Other Establishments,3111128317,572.54,South Moreton Pre-School
http://statistics.data.gov.uk/id/local-authority/38,Oxfordshire County Council,AGENCY RESID - DISAB,01/02/2022,5549,B*Fostering Allowance - Regulation 38,3111115104,573,Personal Redacted Data
http://statistics.data.gov.uk/id/local-authority/38,Oxfordshire County Council,AGENCY RESID - DISAB,08/02/2022,5549,B*Fostering Allowance - Regulation 38,3111119972,573,Personal Redacted Data
http://statistics.data.gov.uk/id/local-authority/38,Oxfordshire County Council,AGENCY RESID - DISAB,15/02/2022,5549,B*Fostering Allowance - Regulation 38,3111126207,573,Personal Redacted Data
http://statistics.data.gov.uk/id/local-authority/38,Oxfordshire County Council,AGENCY RESID - DISAB,22/02/2022,5549,B*Fostering Allowance - Regulation 38,3111130520,573,Personal Redacted Data
http://statistics.data.gov.uk/id/local-authority/38,Oxfordshire County Council,AGENCY RESID - DISAB,01/02/2022,5549,B*Fostering Allowance - Regulation 38,3111114805,573,Personal Redacted Data
http://statistics.data.gov.uk/id/local-authority/38,Oxfordshire County Council,AGENCY RESID - DISAB,08/02/2022,5549,B*Fostering Allowance - Regulation 38,3111119716,573,Personal Redacted Data
http://statistics.data.gov.uk/id/local-authority/38,Oxfordshire County Council,AGENCY RESID - DISAB,15/02/2022,5549,B*Fostering Allowance - Regulation 38,3111126016,573,Personal Redacted Data
http://statistics.data.gov.uk/id/local-authority/38,Oxfordshire County Council,AGENCY RESID - DISAB,22/02/2022,5549,B*Fostering Allowance - Regulation 38,3111130218,573,Personal Redacted Data
http://statistics.data.gov.uk/id/local-authority/38,Oxfordshire County Council,Support at Home 65+ Physical Support,01/02/2022,5689,,3111115658,573.37,Caremark (West Oxfordshire & Cherwe
http://statistics.data.gov.uk/id/local-authority/38,Oxfordshire County Council,FOSTERING MAIN,01/02/2022,5545,B*Fostering Enhancements - Level 2,3111114925,573.57,Personal Redacted Data
http://statistics.data.gov.uk/id/local-authority/38,Oxfordshire County Council,Support at Home 65+ Physical Support,01/02/2022,5689,,3111116233,573.87,Kare Plus Oxford
http://statistics.data.gov.uk/id/local-authority/38,Oxfordshire County Council,Health Acquired Brain Injury C Homes U65,18/02/2022,5691,,3111129451,574.74,Connect Neurotherapy Services Ltd
http://statistics.data.gov.uk/id/local-authority/38,Oxfordshire County Council,FOSTERING MAIN,01/02/2022,5545,B*Fostering Enhancements - Level 2,3111114681,575,Personal Redacted Data
http://statistics.data.gov.uk/id/local-authority/38,Oxfordshire County Council,FOSTERING MAIN,08/02/2022,5545,B*Fostering Enhancements - Level 2,3111119602,575,Personal Redacted Data
http://statistics.data.gov.uk/id/local-authority/38,Oxfordshire County Council,FOSTERING MAIN,15/02/2022,5545,B*Fostering Enhancements - Level 2,3111125969,575,Personal Redacted Data
http://statistics.data.gov.uk/id/local-authority/38,Oxfordshire County Council,FOSTERING MAIN,22/02/2022,5545,B*Fostering Enhancements - Level 2,3111130064,575,Personal Redacted Data
http://statistics.data.gov.uk/id/local-authority/38,Oxfordshire County Council,TRANSPORT COSTS,17/02/2022,5227,Other Transport Arrangements,3111128861,575,Cherwell Cars
http://statistics.data.gov.uk/id/local-authority/38,Oxfordshire County Council,Household Support Fund,02/02/2022,4939,,3111117377,575,Faringdon Academy Schools
http://statistics.data.gov.uk/id/local-authority/38,Oxfordshire County Council,Family Solutions Plus Non-staff - North,02/02/2022,4940,Other Services,3111116818,575,Personal Redacted Data
http://statistics.data.gov.uk/id/local-authority/38,Oxfordshire County Council,Household Support Fund,02/02/2022,4939,,3111117337,575,Holy Trinity Catholic Primary Schoo
http://statistics.data.gov.uk/id/local-authority/38,Oxfordshire County Council,NHS HEALTHCHECK PROG,07/02/2022,4933,,3111128441,575,Summertown Medical Group
http://statistics.data.gov.uk/id/local-authority/38,Oxfordshire County Council,EARLY YEARS TRADED SERVICES,07/02/2022,5380,"Author, Speaker and Lecturer Fees",2200953334,575,Vanessa Sibley - Aspire Early Years
http://statistics.data.gov.uk/id/local-authority/38,Oxfordshire County Council,Workforce Capacity Fund Round 2,22/02/2022,5693,,3111130747,575.04,CARESTREAM HOME CARE
http://statistics.data.gov.uk/id/local-authority/38,Oxfordshire County Council,Children in Care Non-staffing - Centrl 2,21/02/2022,5665,B*Fostering Project Care Fee,9300054667,575.25,OCC SS Oxford City Div 1 Cash
http://statistics.data.gov.uk/id/local-authority/38,Oxfordshire County Council,Testing Funding Oct-21 -Mar22,04/02/2022,5689,,3111118419,575.53,Caretree Ltd
http://statistics.data.gov.uk/id/local-authority/38,Oxfordshire County Council,Testing Funding Oct-21 -Mar22,04/02/2022,5689,,3111118550,575.53,We-Care-Recruitment Ltd
http://statistics.data.gov.uk/id/local-authority/38,Oxfordshire County Council,SEN TRANSPORT,09/02/2022,5227,Other Transport Arrangements,3111120254,576,ABC Travel(Wokingham) limited t/a A
http://statistics.data.gov.uk/id/local-authority/38,Oxfordshire County Council,Support at Home U65 Learning Disability,21/02/2022,5227,Other Transport Arrangements,3111129531,576,The Oxfordshire Taxi Company Ltd T/
http://statistics.data.gov.uk/id/local-authority/38,Oxfordshire County Council,Support at Home 65+ Physical Support,01/02/2022,5698,,3111115295,576.25,Day & Night Care Assistance
http://statistics.data.gov.uk/id/local-authority/38,Oxfordshire County Council,FOSTERING MAIN,01/02/2022,5541,B*Foster Parents,3111114732,577,Personal Redacted Data
http://statistics.data.gov.uk/id/local-authority/38,Oxfordshire County Council,FOSTERING MAIN,08/02/2022,5541,B*Foster Parents,3111119633,577,Personal Redacted Data
http://statistics.data.gov.uk/id/local-authority/38,Oxfordshire County Council,FOSTERING MAIN,15/02/2022,5541,B*Foster Parents,3111125985,577,Personal Redacted Data
http://statistics.data.gov.uk/id/local-authority/38,Oxfordshire County Council,FOSTERING MAIN,22/02/2022,5541,B*Foster Parents,3111130144,577,Personal Redacted Data
http://statistics.data.gov.uk/id/local-authority/38,Oxfordshire County Council,FOSTERING MAIN,01/02/2022,5541,B*Foster Parents,3111114764,577,Personal Redacted Data
http://statistics.data.gov.uk/id/local-authority/38,Oxfordshire County Council,FOSTERING MAIN,08/02/2022,5541,B*Foster Parents,3111119669,577,Personal Redacted Data
http://statistics.data.gov.uk/id/local-authority/38,Oxfordshire County Council,FOSTERING MAIN,15/02/2022,5541,B*Foster Parents,3111126000,577,Personal Redacted Data
http://statistics.data.gov.uk/id/local-authority/38,Oxfordshire County Council,FOSTERING MAIN,22/02/2022,5541,B*Foster Parents,3111130185,577,Personal Redacted Data
http://statistics.data.gov.uk/id/local-authority/38,Oxfordshire County Council,FOSTERING MAIN,01/02/2022,5541,B*Foster Parents,3111114545,577,Personal Redacted Data
http://statistics.data.gov.uk/id/local-authority/38,Oxfordshire County Council,FOSTERING MAIN,08/02/2022,5541,B*Foster Parents,3111119482,577,Personal Redacted Data
http://statistics.data.gov.uk/id/local-authority/38,Oxfordshire County Council,FOSTERING MAIN,15/02/2022,5541,B*Foster Parents,3111125909,577,Personal Redacted Data
http://statistics.data.gov.uk/id/local-authority/38,Oxfordshire County Council,FOSTERING MAIN,22/02/2022,5541,B*Foster Parents,3111129926,577,Personal Redacted Data
http://statistics.data.gov.uk/id/local-authority/38,Oxfordshire County Council,Support at Home U65 Learning Disability,01/02/2022,5682,,3111114720,577.08,The Brandon Trust
http://statistics.data.gov.uk/id/local-authority/38,Oxfordshire County Council,Support at Home 65+ Physical Support,15/02/2022,5899,Social Care - Direct Payments,3111127507,577.24,Purple Conversation Com In Co (DP)
http://statistics.data.gov.uk/id/local-authority/38,Oxfordshire County Council,ECH Central Costs,10/02/2022,5696,,3111121811,577.56,BPHA Limited
http://statistics.data.gov.uk/id/local-authority/38,Oxfordshire County Council,Support at Home U65 HFA,15/02/2022,5899,Social Care - Direct Payments,3111127485,577.6,Purple Conversation Com In Co (DP)
http://statistics.data.gov.uk/id/local-authority/38,Oxfordshire County Council,Support at Home 65+ Physical Support,04/02/2022,5693,,3111117802,577.97,CARE & CARERS LTD
http://statistics.data.gov.uk/id/local-authority/38,Oxfordshire County Council,Support at Home U65 Physical Support,15/02/2022,5899,Social Care - Direct Payments,3111127213,578,Personal Redacted Data
http://statistics.data.gov.uk/id/local-authority/38,Oxfordshire County Council,SEN TRANSPORT,09/02/2022,5227,Other Transport Arrangements,3111120135,578,Oxon Transport Services Ltd
http://statistics.data.gov.uk/id/local-authority/38,Oxfordshire County Council,House Project,13/02/2022,5785,Client Lodgings and Accommodation,3500081844,578.16,Response Organisation
http://statistics.data.gov.uk/id/local-authority/38,Oxfordshire County Council,LAC PUPIL PREMIUM,18/02/2022,5537,Payments to Other Establishments,3111129255,579,Integrated Services Programme
http://statistics.data.gov.uk/id/local-authority/38,Oxfordshire County Council,ADOPTION ALLOWANCES,01/02/2022,5664,B*Holiday Allowance,3111115191,579.3,Personal Redacted Data
http://statistics.data.gov.uk/id/local-authority/38,Oxfordshire County Council,ADOPTION ALLOWANCES,08/02/2022,5664,B*Holiday Allowance,3111119965,579.3,Personal Redacted Data
http://statistics.data.gov.uk/id/local-authority/38,Oxfordshire County Council,ADOPTION ALLOWANCES,15/02/2022,5664,B*Holiday Allowance,3111127047,579.3,Personal Redacted Data
http://statistics.data.gov.uk/id/local-authority/38,Oxfordshire County Council,ADOPTION ALLOWANCES,22/02/2022,5664,B*Holiday Allowance,3111130488,579.3,Personal Redacted Data
http://statistics.data.gov.uk/id/local-authority/38,Oxfordshire County Council,Support at Home U65 Physical Support,01/02/2022,5689,,3111116143,579.93,Greigcare Home Service
http://statistics.data.gov.uk/id/local-authority/38,Oxfordshire County Council,SEN TRANSPORT,15/02/2022,5227,Other Transport Arrangements,3111125709,580,Crown Cabs Travel Ltd
http://statistics.data.gov.uk/id/local-authority/38,Oxfordshire County Council,SEN TRANSPORT,15/02/2022,5227,Other Transport Arrangements,3111125731,580,Crown Cabs Travel Ltd
http://statistics.data.gov.uk/id/local-authority/38,Oxfordshire County Council,Children in Care Non-staffing - Centrl 2,28/02/2022,5394,Other Expenses,3111132313,580,OCC One Time Vendor
http://statistics.data.gov.uk/id/local-authority/38,Oxfordshire County Council,LAC PUPIL PREMIUM,18/02/2022,5537,Payments to Other Establishments,3111129319,580,The Bishop of Winchester Academy
http://statistics.data.gov.uk/id/local-authority/38,Oxfordshire County Council,Support at Home U65 Learning Disability,10/02/2022,5690,,3111120817,580,The Ice Centre
http://statistics.data.gov.uk/id/local-authority/38,Oxfordshire County Council,Support at Home U65 Learning Disability,10/02/2022,5690,,3111120821,580,The Ice Centre
http://statistics.data.gov.uk/id/local-authority/38,Oxfordshire County Council,LAC PUPIL PREMIUM,18/02/2022,5537,Payments to Other Establishments,3111129267,580,The Marlborough Church of England S
http://statistics.data.gov.uk/id/local-authority/38,Oxfordshire County Council,LAC PUPIL PREMIUM,18/02/2022,5537,Payments to Other Establishments,3111129272,580,The Vale Academy Trust
http://statistics.data.gov.uk/id/local-authority/38,Oxfordshire County Council,FLEET COSTS,02/02/2022,4270,HTM / Other Vehicle - Hire Charges,2200951462,580,West Wallasey Fleet Hire Services
http://statistics.data.gov.uk/id/local-authority/38,Oxfordshire County Council,Contingency Home Care,01/02/2022,5689,,3111116322,580.55,Oxford University Hospitals NHS FT
http://statistics.data.gov.uk/id/local-authority/38,Oxfordshire County Council,Support at Home U65 Autism /Abated,10/02/2022,5690,,3111120887,580.8,Turnstyle
http://statistics.data.gov.uk/id/local-authority/38,Oxfordshire County Council,SM DISABILITIES,23/02/2022,5554,Childrens' Social Care - Direct Payments,3111131608,580.81,Purple Conversation Com In Co (DP)
http://statistics.data.gov.uk/id/local-authority/38,Oxfordshire County Council,Support at Home 65+ Learning Disability,25/02/2022,5688,,3111131986,580.97,The Brandon Trust
http://statistics.data.gov.uk/id/local-authority/38,Oxfordshire County Council,MEMBERS SERVICES,11/02/2022,4665,Catering,2200955157,581.25,Ann's Munchies Ltd
http://statistics.data.gov.uk/id/local-authority/38,Oxfordshire County Council,Support at Home U65 Learning Disability,15/02/2022,5899,Social Care - Direct Payments,3111126400,581.92,Personal Redacted Data
http://statistics.data.gov.uk/id/local-authority/38,Oxfordshire County Council,POST 16 SEN,17/02/2022,4330,Transport to School Activities,3111128663,582,Bicester Cars UK Ltd
http://statistics.data.gov.uk/id/local-authority/38,Oxfordshire County Council,Support at Home U65 Learning Disability,10/02/2022,5690,,3111120981,582.4,Style Acre
http://statistics.data.gov.uk/id/local-authority/38,Oxfordshire County Council,Workforce Capacity Fund Round 2,22/02/2022,5688,,3111130836,582.89,H F TRUST LTD
http://statistics.data.gov.uk/id/local-authority/38,Oxfordshire County Council,Workforce Capacity Fund Round 2,22/02/2022,5688,,3111130855,582.89,H F TRUST LTD
http://statistics.data.gov.uk/id/local-authority/38,Oxfordshire County Council,Workforce Capacity Fund Round 2,22/02/2022,5688,,3111131233,582.89,The Camden Society
http://statistics.data.gov.uk/id/local-authority/38,Oxfordshire County Council,COUNTY PRINT FINSHRS,17/02/2022,4705,Printing,2200957072,583,MP Printers (Thame) Ltd
http://statistics.data.gov.uk/id/local-authority/38,Oxfordshire County Council,Independent Foster,23/02/2022,5559,,3111131501,583.39,Five Rivers Child Care Ltd
http://statistics.data.gov.uk/id/local-authority/38,Oxfordshire County Council,Independent Foster,23/02/2022,5559,,3111131499,583.4,Five Rivers Child Care Ltd
http://statistics.data.gov.uk/id/local-authority/38,Oxfordshire County Council,FOSTERING MAIN,08/02/2022,5227,Other Transport Arrangements,3111119468,584.07,Personal Redacted Data
http://statistics.data.gov.uk/id/local-authority/38,Oxfordshire County Council,LIBRARY COLLECTIONS,25/02/2022,4539,"Books, DVDs and CDs",2200959075,584.36,ULVERSCROFT LARGE PRINT BOOKS LTD
http://statistics.data.gov.uk/id/local-authority/38,Oxfordshire County Council,FOSTERING MAIN,15/02/2022,5227,Other Transport Arrangements,3111125893,584.77,Personal Redacted Data
http://statistics.data.gov.uk/id/local-authority/38,Oxfordshire County Council,REGISTRAR,10/02/2022,7382,Ceremonies,3111120670,585,OCC One Time Vendor
http://statistics.data.gov.uk/id/local-authority/38,Oxfordshire County Council,COUNTY PRINT FINSHRS,01/02/2022,4705,Printing,2200951078,585,Print & Stationery Management Co Lt
http://statistics.data.gov.uk/id/local-authority/38,Oxfordshire County Council,Swindon Adoption Support Fund,07/02/2022,6500,Government Grants (Revenue),2200953269,585,The Family Place
http://statistics.data.gov.uk/id/local-authority/38,Oxfordshire County Council,Vaccine Funding Oct 21 � Mar 22,04/02/2022,5686,,3111118971,585.41,CARE UK COMMUNITY PARTNERSHIPS LIMI
http://statistics.data.gov.uk/id/local-authority/38,Oxfordshire County Council,Support at Home U65 HFA,10/02/2022,5690,,3111120951,585.6,Turnstyle
http://statistics.data.gov.uk/id/local-authority/38,Oxfordshire County Council,TRANSPORT COSTS,01/02/2022,4330,Transport to School Activities,3111114070,585.6,Unitaxi Ltd
http://statistics.data.gov.uk/id/local-authority/38,Oxfordshire County Council,Workforce Capacity Fund Round 2,22/02/2022,5686,,3111131029,585.79,Orders of St John
http://statistics.data.gov.uk/id/local-authority/38,Oxfordshire County Council,Workforce Capacity Fund Round 2,22/02/2022,5686,,3111131021,585.79,OSJ Contract - Stirlings
http://statistics.data.gov.uk/id/local-authority/38,Oxfordshire County Council,Support at Home 65+ Physical Support,18/02/2022,5693,,3111129348,585.99,AVR (Oxon) Ltd
http://statistics.data.gov.uk/id/local-authority/38,Oxfordshire County Council,FOSTERING MAIN,15/02/2022,5573,,3111125942,586.02,Personal Redacted Data
http://statistics.data.gov.uk/id/local-authority/38,Oxfordshire County Council,Support at Home 65+ Physical Support,01/02/2022,5698,,3111115692,586.04,Oxford Private Care
http://statistics.data.gov.uk/id/local-authority/38,Oxfordshire County Council,Support at Home 65+ Physical Support,01/02/2022,5689,,3111115661,586.33,Caremark (West Oxfordshire & Cherwe
http://statistics.data.gov.uk/id/local-authority/38,Oxfordshire County Council,Support at Home U65 Learning Disability,15/02/2022,5899,Social Care - Direct Payments,3111127082,586.56,Personal Redacted Data
http://statistics.data.gov.uk/id/local-authority/38,Oxfordshire County Council,Support at Home 65+ Physical Support,01/02/2022,5689,,3111116444,587.04,Premier Personal Care
http://statistics.data.gov.uk/id/local-authority/38,Oxfordshire County Council,Support at Home U65 Mental Health,15/02/2022,5899,Social Care - Direct Payments,3111127401,587.08,Purple Conversation Com In Co (DP)
http://statistics.data.gov.uk/id/local-authority/38,Oxfordshire County Council,Support at Home U65 Learning Disability,10/02/2022,5690,,3111121084,587.84,Autism at Kingwood Limited
http://statistics.data.gov.uk/id/local-authority/38,Oxfordshire County Council,"Banbury CC, Hilton Road",24/02/2022,4122,Other premises related costs,2200958933,587.89,Nationwide Business Relocations Ltd
http://statistics.data.gov.uk/id/local-authority/38,Oxfordshire County Council,Testing Funding Oct-21 -Mar22,04/02/2022,5689,,3111118437,588.04,Elite Care Agency
http://statistics.data.gov.uk/id/local-authority/38,Oxfordshire County Council,Support at Home U65 Learning Disability,01/02/2022,5899,Social Care - Direct Payments,3111115250,588.22,Personal Redacted Data
http://statistics.data.gov.uk/id/local-authority/38,Oxfordshire County Council,TRANSLATION,21/02/2022,5668,Technical and Professional Consultant F,2200958366,588.35,K International PLC
http://statistics.data.gov.uk/id/local-authority/38,Oxfordshire County Council,FAM GRP CONFERENCES,01/02/2022,4940,Other Services,2200951144,588.4,Jessica Howards
http://statistics.data.gov.uk/id/local-authority/38,Oxfordshire County Council,Support at Home 65+ Physical Support,01/02/2022,5689,,3111116260,588.45,My Carer Ltd
http://statistics.data.gov.uk/id/local-authority/38,Oxfordshire County Council,Workforce Capacity Fund Round 2,22/02/2022,5689,,3111130689,588.51,Amber Healthcare Personnel Ltd
http://statistics.data.gov.uk/id/local-authority/38,Oxfordshire County Council,Support at Home 65+ Physical Support,01/02/2022,5698,,3111115220,588.7,Day & Night Care Assistance
http://statistics.data.gov.uk/id/local-authority/38,Oxfordshire County Council,SM DISABILITIES,23/02/2022,5554,Childrens' Social Care - Direct Payments,3111131631,589.49,Purple Conversation Com In Co (DP)
http://statistics.data.gov.uk/id/local-authority/38,Oxfordshire County Council,Support at Home 65+ Physical Support,23/02/2022,5693,,3111131287,589.76,CARE COMPASSION AND CONVERSATIONS
http://statistics.data.gov.uk/id/local-authority/38,Oxfordshire County Council,Support at Home U65 Learning Disability,03/02/2022,5227,Other Transport Arrangements,3111117494,590,Angelas Travel
http://statistics.data.gov.uk/id/local-authority/38,Oxfordshire County Council,Family Solutions Plus Non-staff - North,03/02/2022,5227,Other Transport Arrangements,3111117628,590,Edchauffeurs Ltd
http://statistics.data.gov.uk/id/local-authority/38,Oxfordshire County Council,Wokingham Adoption Support Fund,02/02/2022,4861,Hired and Contracted Services,2200951457,590,Heads & Hearts Ltd
http://statistics.data.gov.uk/id/local-authority/38,Oxfordshire County Council,RBWM Adoption Support Fund,04/02/2022,4861,Hired and Contracted Services,2200952539,590,Heads & Hearts Ltd
http://statistics.data.gov.uk/id/local-authority/38,Oxfordshire County Council,40 THE MOORS,17/02/2022,4092,General Refuse Collection and Disposal,2200957186,590,M A Adkins
http://statistics.data.gov.uk/id/local-authority/38,Oxfordshire County Council,Contingency Home Care,01/02/2022,5689,,3111116340,590.09,Oxford University Hospitals NHS FT
http://statistics.data.gov.uk/id/local-authority/38,Oxfordshire County Council,Delegated Health Tasks  - Under 65,15/02/2022,5691,,3111126080,590.36,Bluebird Care (Oxford South & West)
http://statistics.data.gov.uk/id/local-authority/38,Oxfordshire County Council,Support at Home 65+ Physical Support,23/02/2022,5693,,3111131375,590.43,SureCare Oxfordshire
http://statistics.data.gov.uk/id/local-authority/38,Oxfordshire County Council,ICT Operations & Maintenance,01/02/2022,4525,Furniture,2200951130,590.89,Nationwide Business Relocations Ltd
http://statistics.data.gov.uk/id/local-authority/38,Oxfordshire County Council,Health Acquired Brain Injury C Homes U65,18/02/2022,5691,,3111129453,591.48,Connect Neurotherapy Services Ltd
http://statistics.data.gov.uk/id/local-authority/38,Oxfordshire County Council,Workforce Capacity Fund Round 2,22/02/2022,5688,,3111131181,592.41,The Brandon Trust
http://statistics.data.gov.uk/id/local-authority/38,Oxfordshire County Council,Support at Home U65 Learning Disability,10/02/2022,5688,,3111121776,592.8,The Brandon Trust
http://statistics.data.gov.uk/id/local-authority/38,Oxfordshire County Council,Infection Prevention Crt Oct 21 � Mar 21,04/02/2022,5689,,3111118256,593.04,Orders of St John Care Trust
http://statistics.data.gov.uk/id/local-authority/38,Oxfordshire County Council,Infection Prevention Crt Oct 21 � Mar 21,04/02/2022,5689,,3111118380,593.04,Orders of St John Care Trust
http://statistics.data.gov.uk/id/local-authority/38,Oxfordshire County Council,Infection Prevention Crt Oct 21 � Mar 21,04/02/2022,5689,,3111118358,593.04,SEABROOK SERVICES LTD
http://statistics.data.gov.uk/id/local-authority/38,Oxfordshire County Council,Vaccine Funding Oct 21 � Mar 22,04/02/2022,5686,,3111118952,593.43,Oakland Care
http://statistics.data.gov.uk/id/local-authority/38,Oxfordshire County Council,Support at Home 65+ Physical Support,01/02/2022,5698,,3111115839,593.58,Oxfordshire Crossroads
http://statistics.data.gov.uk/id/local-authority/38,Oxfordshire County Council,,18/02/2022,1448,Blackfield Inc & Exp A/c,3111129230,594,OCC One Time Vendor
http://statistics.data.gov.uk/id/local-authority/38,Oxfordshire County Council,,24/02/2022,1531,Cash Allocation Control Account,3111131951,594,OCC One Time Vendor
http://statistics.data.gov.uk/id/local-authority/38,Oxfordshire County Council,Children in Care Non-staffing - North,17/02/2022,5365,Non-Staff Subsistence and Expenses,2200957280,594,ORCHID CELLMARK LTD
http://statistics.data.gov.uk/id/local-authority/38,Oxfordshire County Council,Support at Home U65 Physical Support,09/02/2022,5693,,3111120318,594.25,Henley Care Ltd
http://statistics.data.gov.uk/id/local-authority/38,Oxfordshire County Council,FOSTERING MAIN,01/02/2022,5548,B*Fostering - Special Rates & Plus Amou,3111114552,594.29,Personal Redacted Data
http://statistics.data.gov.uk/id/local-authority/38,Oxfordshire County Council,FOSTERING MAIN,22/02/2022,5548,B*Fostering - Special Rates & Plus Amou,3111130410,594.29,Personal Redacted Data
http://statistics.data.gov.uk/id/local-authority/38,Oxfordshire County Council,Support at Home 65+ Physical Support,15/02/2022,5899,Social Care - Direct Payments,3111127618,594.52,Purple Conversation Com In Co (DP)
http://statistics.data.gov.uk/id/local-authority/38,Oxfordshire County Council,Support at Home 65+ Physical Support,01/02/2022,5698,,3111115312,594.69,Day & Night Care Assistance
http://statistics.data.gov.uk/id/local-authority/38,Oxfordshire County Council,Contingency Home Care,01/02/2022,5689,,3111116319,594.86,Oxford University Hospitals NHS FT
http://statistics.data.gov.uk/id/local-authority/38,Oxfordshire County Council,Support at Home 65+ Physical Support,01/02/2022,5689,,3111116147,594.88,Greigcare Home Service
http://statistics.data.gov.uk/id/local-authority/38,Oxfordshire County Council,SM DISABILITIES,23/02/2022,5554,Childrens' Social Care - Direct Payments,3111131625,594.98,Purple Conversation Com In Co (DP)
http://statistics.data.gov.uk/id/local-authority/38,Oxfordshire County Council,FAM GRP CONFERENCES,10/02/2022,4940,Other Services,2200954799,595,Katie Mollaghan
http://statistics.data.gov.uk/id/local-authority/38,Oxfordshire County Council,Wokingham Adoption Support Fund,04/02/2022,4861,Hired and Contracted Services,2200952678,595,PACT (PARENTS & CHILDREN TOGETHER)
http://statistics.data.gov.uk/id/local-authority/38,Oxfordshire County Council,Support at Home U65 Learning Disability,01/02/2022,5682,,3111114106,595.9,The Brandon Trust
http://statistics.data.gov.uk/id/local-authority/38,Oxfordshire County Council,Support at Home U65 Physical Support,15/02/2022,5899,Social Care - Direct Payments,3111127188,596,Personal Redacted Data
http://statistics.data.gov.uk/id/local-authority/38,Oxfordshire County Council,Support at Home U65 Mental Health,04/02/2022,5693,,3111117837,596.28,XPERIENCE RECRUITMENT LIMITED
http://statistics.data.gov.uk/id/local-authority/38,Oxfordshire County Council,Support at Home U65 Mental Health,01/02/2022,5698,,3111115564,597.18,KCARE NURSING AGENCY
http://statistics.data.gov.uk/id/local-authority/38,Oxfordshire County Council,Support at Home 65+ Physical Support,01/02/2022,5698,,3111115632,597.63,Oxford Private Care
http://statistics.data.gov.uk/id/local-authority/38,Oxfordshire County Council,SEN TRANSPORT,21/02/2022,5227,Other Transport Arrangements,3111129749,598,Banbury Taxis
http://statistics.data.gov.uk/id/local-authority/38,Oxfordshire County Council,SEN TRANSPORT,21/02/2022,5227,Other Transport Arrangements,3111129772,598,Banbury Taxis
http://statistics.data.gov.uk/id/local-authority/38,Oxfordshire County Council,POST18 UASC DCSF FND,24/02/2022,5785,Client Lodgings and Accommodation,3111131905,598.36,KEY2 FUTURES LTD
http://statistics.data.gov.uk/id/local-authority/38,Oxfordshire County Council,LIBRARY COLLECTIONS,16/02/2022,4539,"Books, DVDs and CDs",2200956939,599.04,ULVERSCROFT LARGE PRINT BOOKS LTD
http://statistics.data.gov.uk/id/local-authority/38,Oxfordshire County Council,LIBRARY COLLECTIONS,16/02/2022,4539,"Books, DVDs and CDs",2200956956,599.04,ULVERSCROFT LARGE PRINT BOOKS LTD
http://statistics.data.gov.uk/id/local-authority/38,Oxfordshire County Council,LIBRARY COLLECTIONS,16/02/2022,4539,"Books, DVDs and CDs",2200956989,599.04,ULVERSCROFT LARGE PRINT BOOKS LTD
http://statistics.data.gov.uk/id/local-authority/38,Oxfordshire County Council,Workforce Capacity Fund Round 2,22/02/2022,5688,,3111130854,599.08,H F TRUST LTD
http://statistics.data.gov.uk/id/local-authority/38,Oxfordshire County Council,Support at Home U65 Physical Support,15/02/2022,5899,Social Care - Direct Payments,3111127434,599.08,Purple Conversation Com In Co (DP)
http://statistics.data.gov.uk/id/local-authority/38,Oxfordshire County Council,Support at Home U65 Learning Disability,10/02/2022,5690,,3111120959,599.2,Turnstyle
http://statistics.data.gov.uk/id/local-authority/38,Oxfordshire County Council,Support at Home U65 Learning Disability,10/02/2022,5688,,3111121302,599.68,ADVANCE HOUSING & SUPPORT LTD
http://statistics.data.gov.uk/id/local-authority/38,Oxfordshire County Council,Support at Home 65+ Learning Disability,10/02/2022,5688,,3111121308,599.68,ADVANCE HOUSING & SUPPORT LTD
http://statistics.data.gov.uk/id/local-authority/38,Oxfordshire County Council,Support at Home 65+ Learning Disability,10/02/2022,5688,,3111121504,599.68,Mencap Contracts
http://statistics.data.gov.uk/id/local-authority/38,Oxfordshire County Council,Support at Home U65 Learning Disability,10/02/2022,5688,,3111121515,599.68,Mencap Contracts
http://statistics.data.gov.uk/id/local-authority/38,Oxfordshire County Council,Support at Home U65 Learning Disability,10/02/2022,5688,,3111121870,599.68,The Brandon Trust
http://statistics.data.gov.uk/id/local-authority/38,Oxfordshire County Council,POST 16 SEN,18/02/2022,5227,Other Transport Arrangements,3111129457,600,A2B Castle Cars Ltd
http://statistics.data.gov.uk/id/local-authority/38,Oxfordshire County Council,LEGAL SERVICES,01/02/2022,5251,Legal Costs,2200951045,600,Alex Perry
http://statistics.data.gov.uk/id/local-authority/38,Oxfordshire County Council,Support at Home U65 Learning Disability,01/02/2022,5227,Other Transport Arrangements,3111114011,600,Ali's Cabs
http://statistics.data.gov.uk/id/local-authority/38,Oxfordshire County Council,SEN TRANSPORT,21/02/2022,5227,Other Transport Arrangements,3111129769,600,Banbury Taxis
http://statistics.data.gov.uk/id/local-authority/38,Oxfordshire County Council,GOVERNANCE,25/02/2022,5380,"Author, Speaker and Lecturer Fees",2200959020,600,Clever Cats Education Services
http://statistics.data.gov.uk/id/local-authority/38,Oxfordshire County Council,SEN TRANSPORT,15/02/2022,5227,Other Transport Arrangements,3111125711,600,Crown Cabs Travel Ltd
http://statistics.data.gov.uk/id/local-authority/38,Oxfordshire County Council,Support at Home U65 Learning Disability,01/02/2022,5227,Other Transport Arrangements,3111114029,600,Faringdon Cars
http://statistics.data.gov.uk/id/local-authority/38,Oxfordshire County Council,LEGAL SERVICES,04/02/2022,5251,Legal Costs,2200952638,600,Fazeela Ishmael
http://statistics.data.gov.uk/id/local-authority/38,Oxfordshire County Council,Household Support Fund,02/02/2022,4939,,3111117312,600,FUTURES INSTITUTE BANBURY
http://statistics.data.gov.uk/id/local-authority/38,Oxfordshire County Council,LAC PUPIL PREMIUM,18/02/2022,5537,Payments to Other Establishments,3111129297,600,Great Western Academy
http://statistics.data.gov.uk/id/local-authority/38,Oxfordshire County Council,Household Support Fund,02/02/2022,4939,,3111117090,600,Happy Days Pre-School (PFSU)
http://statistics.data.gov.uk/id/local-authority/38,Oxfordshire County Council,Support at Home U65 Physical Support,04/02/2022,5697,,3111117785,600,Headway Oxford
http://statistics.data.gov.uk/id/local-authority/38,Oxfordshire County Council,LD Continuing Care - Sup at Home - U65,04/02/2022,5691,,3111117931,600,KIT Mobility Taxis Oxford Ltd
http://statistics.data.gov.uk/id/local-authority/38,Oxfordshire County Council,LD Continuing Care - Sup at Home - U65,18/02/2022,5691,,3111129384,600,KIT Mobility Taxis Oxford Ltd
http://statistics.data.gov.uk/id/local-authority/38,Oxfordshire County Council,TRANSPORT COSTS,09/02/2022,4330,Transport to School Activities,3111120443,600,LINK SHIRES LTD
http://statistics.data.gov.uk/id/local-authority/38,Oxfordshire County Council,Adoption SG Mitigation ATV,25/02/2022,5161,Adoption Expenses - Fees and Expenses,3111132050,600,Personal Redacted Data
http://statistics.data.gov.uk/id/local-authority/38,Oxfordshire County Council,LEGAL SERVICES,15/02/2022,5251,Legal Costs,2200956063,600,Mavis Amonoo-Acquah
http://statistics.data.gov.uk/id/local-authority/38,Oxfordshire County Council,LEGAL SERVICES,03/02/2022,5251,Legal Costs,2200952027,600,Natasha Miller
http://statistics.data.gov.uk/id/local-authority/38,Oxfordshire County Council,LEGAL BUDGET,14/02/2022,5251,Legal Costs,3111125566,600,OCC One Time Vendor
http://statistics.data.gov.uk/id/local-authority/38,Oxfordshire County Council,Care Packages & Placements- LD - OCC,07/02/2022,5227,Other Transport Arrangements,3111119219,600,Oxon Transport Services Ltd
http://statistics.data.gov.uk/id/local-authority/38,Oxfordshire County Council,Support at Home U65 Physical Support,07/02/2022,5227,Other Transport Arrangements,3111119220,600,Oxon Transport Services Ltd
http://statistics.data.gov.uk/id/local-authority/38,Oxfordshire County Council,L&D CORE PROGRAMME,18/02/2022,3103,Other Training Courses and Qualification,2200957652,600,Premier Partnership
http://statistics.data.gov.uk/id/local-authority/38,Oxfordshire County Council,LAC PUPIL PREMIUM,01/02/2022,5380,"Author, Speaker and Lecturer Fees",2200951039,600,ScaffoldEd Limited
http://statistics.data.gov.uk/id/local-authority/38,Oxfordshire County Council,Household Support Fund,02/02/2022,4939,,3111117202,600,Southwold Primary School Academy
http://statistics.data.gov.uk/id/local-authority/38,Oxfordshire County Council,Family Solutions Plus Non-staff - North,17/02/2022,4940,Other Services,2200957039,600,St Leonard's CE Primary School
http://statistics.data.gov.uk/id/local-authority/38,Oxfordshire County Council,RBWM Adoption Support Fund,07/02/2022,4861,Hired and Contracted Services,2200952987,600,The Annex Project
http://statistics.data.gov.uk/id/local-authority/38,Oxfordshire County Council,Wokingham Adoption Support Fund,07/02/2022,6500,Government Grants (Revenue),2200952988,600,The Annex Project
http://statistics.data.gov.uk/id/local-authority/38,Oxfordshire County Council,RBWM Adoption Support Fund,24/02/2022,4861,Hired and Contracted Services,2200958882,600,The Annex Project
http://statistics.data.gov.uk/id/local-authority/38,Oxfordshire County Council,Delegated Health Tasks  - Over 65,01/02/2022,5691,,3111114241,600,The Caring Company (Oxon)
http://statistics.data.gov.uk/id/local-authority/38,Oxfordshire County Council,SEN TRANSPORT,21/02/2022,5227,Other Transport Arrangements,3111129579,600,The Oxfordshire Taxi Company Ltd T/
http://statistics.data.gov.uk/id/local-authority/38,Oxfordshire County Council,East Oxfordshire Team,21/02/2022,5227,Other Transport Arrangements,3111129632,600,The Oxfordshire Taxi Company Ltd T/
http://statistics.data.gov.uk/id/local-authority/38,Oxfordshire County Council,Support at Home U65 Other /Soc Isolation,10/02/2022,5690,,3111120910,600,Turnstyle
http://statistics.data.gov.uk/id/local-authority/38,Oxfordshire County Council,Testing Funding Oct-21 -Mar22,04/02/2022,5689,,3111118398,600.55,Allied Health-Services Limited
http://statistics.data.gov.uk/id/local-authority/38,Oxfordshire County Council,FAM GRP CONFERENCES,22/02/2022,4940,Other Services,2200958508,601,Deborah Ciancio
http://statistics.data.gov.uk/id/local-authority/38,Oxfordshire County Council,Support at Home U65 Physical Support,15/02/2022,5899,Social Care - Direct Payments,3111127424,601.08,Purple Conversation Com In Co (DP)
http://statistics.data.gov.uk/id/local-authority/38,Oxfordshire County Council,Vaccine Funding Oct 21 � Mar 22,04/02/2022,5686,,3111118949,601.45,CUMNOR HILL HOUSE
http://statistics.data.gov.uk/id/local-authority/38,Oxfordshire County Council,FOSTERING MAIN,22/02/2022,5549,B*Fostering Allowance - Regulation 38,3111130224,601.98,Personal Redacted Data
http://statistics.data.gov.uk/id/local-authority/38,Oxfordshire County Council,Support at Home 65+ Physical Support,17/02/2022,5696,,3111128819,602.08,Orders of St John Care Trust
http://statistics.data.gov.uk/id/local-authority/38,Oxfordshire County Council,Support at Home 65+ Learning Disability,17/02/2022,5696,,3111128830,602.08,Orders of St John Care Trust
http://statistics.data.gov.uk/id/local-authority/38,Oxfordshire County Council,Property Cleaning,10/02/2022,4070,Cleaning services,2200954692,602.12,Seldram Supplies
http://statistics.data.gov.uk/id/local-authority/38,Oxfordshire County Council,Support at Home 65+ Physical Support,01/02/2022,5689,,3111115935,602.55,Elite Care Agency
http://statistics.data.gov.uk/id/local-authority/38,Oxfordshire County Council,Support at Home 65+ Physical Support,17/02/2022,5696,,3111128778,602.86,Orders of St John Care Trust
http://statistics.data.gov.uk/id/local-authority/38,Oxfordshire County Council,Support at Home 65+ Physical Support,17/02/2022,5696,,3111128703,602.97,Orders of St John Care Trust
http://statistics.data.gov.uk/id/local-authority/38,Oxfordshire County Council,FAM GRP CONFERENCES,09/02/2022,4940,Other Services,2200954042,603,Emma Wood
http://statistics.data.gov.uk/id/local-authority/38,Oxfordshire County Council,Planned Maintenance,07/02/2022,3787,Premises Repairs,2200953297,603,Windrush Door & Window Services Ltd
http://statistics.data.gov.uk/id/local-authority/38,Oxfordshire County Council,PLACEMENTS- RELEVANT,24/02/2022,5785,Client Lodgings and Accommodation,3111131894,603.41,Response Organisation
http://statistics.data.gov.uk/id/local-authority/38,Oxfordshire County Council,LAC PUPIL PREMIUM,14/02/2022,5380,"Author, Speaker and Lecturer Fees",2200955853,603.46,Teaching Personnel Ltd
http://statistics.data.gov.uk/id/local-authority/38,Oxfordshire County Council,COMM DRAWDOWN FUNDNG,01/02/2022,8004,Design Consultant,2200951186,603.64,Milestone Infrastructure(Major Proj
http://statistics.data.gov.uk/id/local-authority/38,Oxfordshire County Council,Support at Home U65 Physical Support,15/02/2022,5899,Social Care - Direct Payments,3111127816,604.44,Purple Conversation Com In Co (DP)
http://statistics.data.gov.uk/id/local-authority/38,Oxfordshire County Council,Support at Home U65 Learning Disability,01/02/2022,5682,,3111114156,604.48,The Brandon Trust
http://statistics.data.gov.uk/id/local-authority/38,Oxfordshire County Council,Support at Home 65+ Physical Support,01/02/2022,5698,,3111115791,604.98,Oxfordshire Crossroads
http://statistics.data.gov.uk/id/local-authority/38,Oxfordshire County Council,LAC PUPIL PREMIUM,18/02/2022,5537,Payments to Other Establishments,3111129296,605,Easthampstead Park Community School
http://statistics.data.gov.uk/id/local-authority/38,Oxfordshire County Council,Support at Home U65 Physical Support,15/02/2022,5899,Social Care - Direct Payments,3111127110,605,Personal Redacted Data
http://statistics.data.gov.uk/id/local-authority/38,Oxfordshire County Council,Support at Home U65 Autism /Abated,15/02/2022,5899,Social Care - Direct Payments,3111127289,605.08,Personal Redacted Data
http://statistics.data.gov.uk/id/local-authority/38,Oxfordshire County Council,Support at Home 65+ Physical Support,01/02/2022,5698,,3111115752,605.15,Oxford Private Care
http://statistics.data.gov.uk/id/local-authority/38,Oxfordshire County Council,Infection Prevention Crt Oct 21 � Mar 21,04/02/2022,5688,,3111118096,605.64,George Springall Homecare
http://statistics.data.gov.uk/id/local-authority/38,Oxfordshire County Council,Infection Prevention Crt Oct 21 � Mar 21,04/02/2022,5688,,3111118106,605.64,H F TRUST LTD
http://statistics.data.gov.uk/id/local-authority/38,Oxfordshire County Council,LAC PUPIL PREMIUM,18/02/2022,5537,Payments to Other Establishments,3111129326,606,George Grenville Academy
http://statistics.data.gov.uk/id/local-authority/38,Oxfordshire County Council,Support at Home U65 Learning Disability,10/02/2022,5690,,3111121029,606,Style Acre
http://statistics.data.gov.uk/id/local-authority/38,Oxfordshire County Council,Support at Home 65+ Physical Support,01/02/2022,5689,,3111116436,606.08,PLL Care Services
http://statistics.data.gov.uk/id/local-authority/38,Oxfordshire County Council,Support at Home U65 Physical Support,01/02/2022,5227,Other Transport Arrangements,3111114072,606.4,Unitaxi Ltd
http://statistics.data.gov.uk/id/local-authority/38,Oxfordshire County Council,Support at Home U65 Physical Support,01/02/2022,5689,,3111116395,607.15,PLL Care Services
http://statistics.data.gov.uk/id/local-authority/38,Oxfordshire County Council,FAM GRP CONFERENCES,11/02/2022,4940,Other Services,2200955368,607.5,FAMILY RIGHTS GROUP
http://statistics.data.gov.uk/id/local-authority/38,Oxfordshire County Council,Support at Home 65+ Memory & Cognition,01/02/2022,5698,,3111115366,607.6,Day & Night Care Assistance
http://statistics.data.gov.uk/id/local-authority/38,Oxfordshire County Council,SEN TRANSPORT,17/02/2022,5227,Other Transport Arrangements,3111128885,608,1St Taxis
http://statistics.data.gov.uk/id/local-authority/38,Oxfordshire County Council,SEN TRANSPORT,14/02/2022,5227,Other Transport Arrangements,3111125654,608,A2B Castle Cars Ltd
http://statistics.data.gov.uk/id/local-authority/38,Oxfordshire County Council,Support at Home U65 Physical Support,01/02/2022,5696,,3111115515,608,All Care GB Ltd
http://statistics.data.gov.uk/id/local-authority/38,Oxfordshire County Council,Support at Home 65+ Physical Support,01/02/2022,5696,,3111115553,608,All Care GB Ltd
http://statistics.data.gov.uk/id/local-authority/38,Oxfordshire County Council,Support at Home U65 Learning Disability,01/02/2022,5696,,3111115571,608,All Care GB Ltd
http://statistics.data.gov.uk/id/local-authority/38,Oxfordshire County Council,Support at Home U65 Physical Support,01/02/2022,5696,,3111115599,608,All Care GB Ltd
http://statistics.data.gov.uk/id/local-authority/38,Oxfordshire County Council,Support at Home 65+ Physical Support,01/02/2022,5696,,3111115663,608,All Care GB Ltd
http://statistics.data.gov.uk/id/local-authority/38,Oxfordshire County Council,SEN TRANSPORT,09/02/2022,5227,Other Transport Arrangements,3111120377,608,C&M Management Services Ltd
http://statistics.data.gov.uk/id/local-authority/38,Oxfordshire County Council,Support at Home 65+ Memory & Cognition,01/02/2022,5689,,3111115766,608.88,Casa Care Ltd
http://statistics.data.gov.uk/id/local-authority/38,Oxfordshire County Council,Vaccine Funding Oct 21 � Mar 22,04/02/2022,5686,,3111119024,609.47,GCH (St Katherines) Ltd
http://statistics.data.gov.uk/id/local-authority/38,Oxfordshire County Council,Vaccine Funding Oct 21 � Mar 22,04/02/2022,5686,,3111118975,609.47,SANCTUARY CARE PROPERTY (2) LTD
http://statistics.data.gov.uk/id/local-authority/38,Oxfordshire County Council,Support at Home 65+ Physical Support,01/02/2022,5689,,3111116311,609.7,Oxford Private Care
http://statistics.data.gov.uk/id/local-authority/38,Oxfordshire County Council,Vaccine Funding Oct 21 � Mar 22,04/02/2022,5689,,3111118869,609.93,Prestige Nursing Ltd
http://statistics.data.gov.uk/id/local-authority/38,Oxfordshire County Council,Support at Home 65+ Physical Support,01/02/2022,5698,,3111115364,610.83,Day & Night Care Assistance
http://statistics.data.gov.uk/id/local-authority/38,Oxfordshire County Council,Workforce Capacity Fund Round 2,22/02/2022,5699,,3111130735,610.98,Care Outlook Ltd
http://statistics.data.gov.uk/id/local-authority/38,Oxfordshire County Council,Workforce Capacity Fund Round 2,22/02/2022,5699,,3111130736,610.98,Care Outlook Ltd
http://statistics.data.gov.uk/id/local-authority/38,Oxfordshire County Council,Support at Home U65 Learning Disability,15/02/2022,5899,Social Care - Direct Payments,3111127425,611.08,Purple Conversation Com In Co (DP)
http://statistics.data.gov.uk/id/local-authority/38,Oxfordshire County Council,Support at Home U65 Learning Disability,15/02/2022,5899,Social Care - Direct Payments,3111127728,611.08,Purple Conversation Com In Co (DP)
http://statistics.data.gov.uk/id/local-authority/38,Oxfordshire County Council,Support at Home U65 Learning Disability,15/02/2022,5899,Social Care - Direct Payments,3111127974,611.08,Purple Conversation Com In Co (DP)
http://statistics.data.gov.uk/id/local-authority/38,Oxfordshire County Council,Support at Home 65+ Memory & Cognition,08/02/2022,5899,Social Care - Direct Payments,3111120002,611.19,Purple Conversation Com In Co (DP)
http://statistics.data.gov.uk/id/local-authority/38,Oxfordshire County Council,Support at Home 65+ Mental Health,01/02/2022,5689,,3111116162,611.49,Harino Care
http://statistics.data.gov.uk/id/local-authority/38,Oxfordshire County Council,Workforce Capacity Fund Round 2,22/02/2022,5555,Payments to Carers,3111130797,611.54,Personal Redacted Data
http://statistics.data.gov.uk/id/local-authority/38,Oxfordshire County Council,Support at Home U65 Learning Disability,01/02/2022,5682,,3111114594,611.57,The Brandon Trust
http://statistics.data.gov.uk/id/local-authority/38,Oxfordshire County Council,Support at Home 65+ Physical Support,15/02/2022,5899,Social Care - Direct Payments,3111126924,611.64,Personal Redacted Data
http://statistics.data.gov.uk/id/local-authority/38,Oxfordshire County Council,MAINSTREAM-PRIMARY,15/02/2022,4330,Transport to School Activities,3111126533,612,001 Alpha Cars Ltd
http://statistics.data.gov.uk/id/local-authority/38,Oxfordshire County Council,Support at Home U65 Learning Disability,15/02/2022,5899,Social Care - Direct Payments,3111127362,612,Personal Redacted Data
http://statistics.data.gov.uk/id/local-authority/38,Oxfordshire County Council,,03/02/2022,1531,Cash Allocation Control Account,3111119194,612,OCC One Time Vendor
http://statistics.data.gov.uk/id/local-authority/38,Oxfordshire County Council,Support at Home U65 MH OBC Contract,17/02/2022,4111,Security Costs,3111129002,612,OCC One Time Vendor
http://statistics.data.gov.uk/id/local-authority/38,Oxfordshire County Council,LD Continuing Care - Sup at Home - U65,11/02/2022,5691,,3111125545,612.23,THORNBURY NURSING SERVICES
http://statistics.data.gov.uk/id/local-authority/38,Oxfordshire County Council,Support at Home U65 Mental Health,02/02/2022,5693,,3111116750,612.31,Care at Home
http://statistics.data.gov.uk/id/local-authority/38,Oxfordshire County Council,Support at Home U65 Learning Disability,01/02/2022,5698,,3111115740,612.43,Oxford Private Care
http://statistics.data.gov.uk/id/local-authority/38,Oxfordshire County Council,Support at Home U65 Learning Disability,15/02/2022,5899,Social Care - Direct Payments,3111126314,612.48,Personal Redacted Data
http://statistics.data.gov.uk/id/local-authority/38,Oxfordshire County Council,Support at Home U65 Learning Disability,10/02/2022,5690,,3111120925,612.6,Turnstyle
http://statistics.data.gov.uk/id/local-authority/38,Oxfordshire County Council,Estates Staff,18/02/2022,4940,Other Services,2200957641,612.76,Comensura Ltd
http://statistics.data.gov.uk/id/local-authority/38,Oxfordshire County Council,TRANSLATION,14/02/2022,5668,Technical and Professional Consultant F,2200955533,612.94,K International PLC
http://statistics.data.gov.uk/id/local-authority/38,Oxfordshire County Council,TRANSLATION,14/02/2022,5668,Technical and Professional Consultant F,2200955535,612.94,K International PLC
http://statistics.data.gov.uk/id/local-authority/38,Oxfordshire County Council,OTHER HOUSEHOLD,17/02/2022,5526,Payments to Private Contractors,2200957090,613,GRUNDON WASTE MANAGEMENT LTD
http://statistics.data.gov.uk/id/local-authority/38,Oxfordshire County Council,Testing Funding Oct-21 -Mar22,04/02/2022,5689,,3111118416,613.06,Care With Dignity Partnerships
http://statistics.data.gov.uk/id/local-authority/38,Oxfordshire County Council,2 YEAR OLD FUNDING,16/02/2022,5537,Payments to Other Establishments,3111128276,613.44,North Hinksey Pre School & Childcar
http://statistics.data.gov.uk/id/local-authority/38,Oxfordshire County Council,2 YEAR OLD FUNDING,16/02/2022,5537,Payments to Other Establishments,3111128304,613.44,Sandhills Pre-School Playgroup
http://statistics.data.gov.uk/id/local-authority/38,Oxfordshire County Council,SEN TRANSPORT,21/02/2022,5227,Other Transport Arrangements,3111129753,613.6,Banbury Taxis
http://statistics.data.gov.uk/id/local-authority/38,Oxfordshire County Council,Urgent Response,01/02/2022,5689,,3111115910,614.26,Day and Nightcare Assistance
http://statistics.data.gov.uk/id/local-authority/38,Oxfordshire County Council,Support at Home U65 Learning Disability,01/02/2022,5682,,3111114699,614.42,The Brandon Trust
http://statistics.data.gov.uk/id/local-authority/38,Oxfordshire County Council,COMMUNICATIONS,09/02/2022,4495,IT Software,2200954109,615,Autopage Ltd.
http://statistics.data.gov.uk/id/local-authority/38,Oxfordshire County Council,TREE MAINT OPS,04/02/2022,5526,Payments to Private Contractors,2200952498,615,Jenks Oxford Ltd
http://statistics.data.gov.uk/id/local-authority/38,Oxfordshire County Council,LIBRARY COLLECTIONS,14/02/2022,4539,"Books, DVDs and CDs",3111125686,615.31,ASKEWS & HOLTS LIBRARY SERVICES LTD
http://statistics.data.gov.uk/id/local-authority/38,Oxfordshire County Council,Support at Home U65 Learning Disability,21/02/2022,5227,Other Transport Arrangements,3111129742,615.83,Banbury Taxis
http://statistics.data.gov.uk/id/local-authority/38,Oxfordshire County Council,Support at Home U65 Sensory Support,15/02/2022,5899,Social Care - Direct Payments,3111127544,615.88,Purple Conversation Com In Co (DP)
http://statistics.data.gov.uk/id/local-authority/38,Oxfordshire County Council,Workforce Capacity Fund Round 2,22/02/2022,5693,,3111130742,616.12,Care2Home Oxford
http://statistics.data.gov.uk/id/local-authority/38,Oxfordshire County Council,Urgent Response,01/02/2022,5689,,3111115898,616.57,Day and Nightcare Assistance
http://statistics.data.gov.uk/id/local-authority/38,Oxfordshire County Council,Support at Home U65 Learning Disability,15/02/2022,5899,Social Care - Direct Payments,3111127337,616.88,Personal Redacted Data
http://statistics.data.gov.uk/id/local-authority/38,Oxfordshire County Council,Workforce Capacity Fund Round 2,22/02/2022,5686,,3111131114,616.9,St Andrews Residential Care Home L
http://statistics.data.gov.uk/id/local-authority/38,Oxfordshire County Council,Support at Home 65+ Physical Support,01/02/2022,5689,,3111115619,617.62,Caremark (West Oxfordshire & Cherwe
http://statistics.data.gov.uk/id/local-authority/38,Oxfordshire County Council,Vaccine Funding Oct 21 � Mar 22,04/02/2022,5689,,3111118775,617.75,Caremark (West Oxfordshire & Cherwe
http://statistics.data.gov.uk/id/local-authority/38,Oxfordshire County Council,Support at Home 65+ Physical Support,01/02/2022,5689,,3111115447,617.89,Care Outlook Ltd
http://statistics.data.gov.uk/id/local-authority/38,Oxfordshire County Council,Support at Home U65 Sensory Support,15/02/2022,5899,Social Care - Direct Payments,3111127673,618,Purple Conversation Com In Co (DP)
http://statistics.data.gov.uk/id/local-authority/38,Oxfordshire County Council,Support at Home 65+ Physical Support,01/02/2022,5689,,3111116460,618.26,Prestige Nursing Ltd
http://statistics.data.gov.uk/id/local-authority/38,Oxfordshire County Council,Support at Home U65 Physical Support,25/02/2022,5693,,3111132077,618.28,Genuine Carers Ltd
http://statistics.data.gov.uk/id/local-authority/38,Oxfordshire County Council,SM DISABILITIES,23/02/2022,5554,Childrens' Social Care - Direct Payments,3111131588,618.35,Purple Conversation Com In Co (DP)
http://statistics.data.gov.uk/id/local-authority/38,Oxfordshire County Council,Support at Home U65 Learning Disability,17/02/2022,5696,,3111128715,618.42,Orders of St John Care Trust
http://statistics.data.gov.uk/id/local-authority/38,Oxfordshire County Council,Support at Home 65+ Memory & Cognition,17/02/2022,5696,,3111128728,618.42,Orders of St John Care Trust
http://statistics.data.gov.uk/id/local-authority/38,Oxfordshire County Council,Support at Home U65 Learning Disability,17/02/2022,5696,,3111128745,618.42,Orders of St John Care Trust
http://statistics.data.gov.uk/id/local-authority/38,Oxfordshire County Council,Support at Home 65+ Physical Support,17/02/2022,5696,,3111128762,618.42,Orders of St John Care Trust
http://statistics.data.gov.uk/id/local-authority/38,Oxfordshire County Council,Support at Home U65 Physical Support,01/02/2022,5689,,3111115402,618.78,Care Outlook Ltd
http://statistics.data.gov.uk/id/local-authority/38,Oxfordshire County Council,LDD AFTER SCHOOL,21/02/2022,4330,Transport to School Activities,3111129640,619.5,The Oxfordshire Taxi Company Ltd T/
http://statistics.data.gov.uk/id/local-authority/38,Oxfordshire County Council,FOSTERING MAIN,01/02/2022,5532,B*Fostering - Loan Equipment,3111114694,620,Personal Redacted Data
http://statistics.data.gov.uk/id/local-authority/38,Oxfordshire County Council,Support at Home U65 Physical Support,11/02/2022,5227,Other Transport Arrangements,3111125444,620,Go Green Taxis
http://statistics.data.gov.uk/id/local-authority/38,Oxfordshire County Council,SEN TRANSPORT,09/02/2022,5227,Other Transport Arrangements,3111120455,620,R & S Travel Services Ltd T/A A 2 Z
http://statistics.data.gov.uk/id/local-authority/38,Oxfordshire County Council,FAM GRP CONFERENCES,15/02/2022,4940,Other Services,2200956500,620.1,Shellie Keen
http://statistics.data.gov.uk/id/local-authority/38,Oxfordshire County Council,Support at Home U65 Learning Disability,15/02/2022,5899,Social Care - Direct Payments,3111127146,620.32,Personal Redacted Data
http://statistics.data.gov.uk/id/local-authority/38,Oxfordshire County Council,Workforce Capacity Fund Round 2,22/02/2022,5686,,3111130997,620.35,Orders of St John
http://statistics.data.gov.uk/id/local-authority/38,Oxfordshire County Council,CHC Fast Track - Sup at Homes - Over 65,28/02/2022,5691,,3111132261,621,Sue Ryder
http://statistics.data.gov.uk/id/local-authority/38,Oxfordshire County Council,Support at Home 65+ Physical Support,17/02/2022,5696,,3111128713,621.34,Orders of St John Care Trust
http://statistics.data.gov.uk/id/local-authority/38,Oxfordshire County Council,Support at Home U65 Learning Disability,11/02/2022,5697,,3111125330,621.92,Stepping Stones
http://statistics.data.gov.uk/id/local-authority/38,Oxfordshire County Council,Support at Home 65+ Physical Support,01/02/2022,5689,,3111115598,622.08,Caremark (West Oxfordshire & Cherwe
http://statistics.data.gov.uk/id/local-authority/38,Oxfordshire County Council,Support at Home U65 Physical Support,09/02/2022,5227,Other Transport Arrangements,3111120398,622.08,LINK SHIRES LTD
http://statistics.data.gov.uk/id/local-authority/38,Oxfordshire County Council,Delegated Health Tasks  - Over 65,28/02/2022,5691,,3111132216,622.1,Acquire Care Ltd
http://statistics.data.gov.uk/id/local-authority/38,Oxfordshire County Council,Support at Home U65 Physical Support,15/02/2022,5899,Social Care - Direct Payments,3111127750,622.28,Purple Conversation Com In Co (DP)
http://statistics.data.gov.uk/id/local-authority/38,Oxfordshire County Council,SEN TRANSPORT,21/02/2022,5227,Other Transport Arrangements,3111129759,622.6,Banbury Taxis
http://statistics.data.gov.uk/id/local-authority/38,Oxfordshire County Council,Care Homes - Over 65 Physical Sypport,10/02/2022,5687,,3111124774,622.86,The Grange Care Centre
http://statistics.data.gov.uk/id/local-authority/38,Oxfordshire County Council,Support at Home U65 Physical Support,15/02/2022,5899,Social Care - Direct Payments,3111127358,623.28,Personal Redacted Data
http://statistics.data.gov.uk/id/local-authority/38,Oxfordshire County Council,Delegated Health Tasks  - Over 65,08/02/2022,5691,,3111120035,623.73,Bluebird Care
http://statistics.data.gov.uk/id/local-authority/38,Oxfordshire County Council,Delegated Health Tasks  - Under 65,15/02/2022,5691,,3111126134,623.73,Bluebird Care
http://statistics.data.gov.uk/id/local-authority/38,Oxfordshire County Council,Delegated Health Tasks  - Over 65,15/02/2022,5691,,3111126139,623.73,Bluebird Care
http://statistics.data.gov.uk/id/local-authority/38,Oxfordshire County Council,Support at Home 65+ Physical Support,01/02/2022,5699,,3111115822,623.96,Care Hearted Ltd
http://statistics.data.gov.uk/id/local-authority/38,Oxfordshire County Council,SEN TRANSPORT,21/02/2022,5227,Other Transport Arrangements,3111129765,624,Banbury Taxis
http://statistics.data.gov.uk/id/local-authority/38,Oxfordshire County Council,Support at Home U65 Learning Disability,15/02/2022,5899,Social Care - Direct Payments,3111126882,624,Personal Redacted Data
http://statistics.data.gov.uk/id/local-authority/38,Oxfordshire County Council,Family Solutions Plus Non-staff - South,03/02/2022,5227,Other Transport Arrangements,3111117503,624,Phoenixx Cars Ltd
http://statistics.data.gov.uk/id/local-authority/38,Oxfordshire County Council,Support at Home U65 Learning Disability,15/02/2022,5899,Social Care - Direct Payments,3111127164,624.4,Personal Redacted Data
http://statistics.data.gov.uk/id/local-authority/38,Oxfordshire County Council,Support at Home U65 Physical Support,17/02/2022,5696,,3111128718,624.65,Orders of St John Care Trust
http://statistics.data.gov.uk/id/local-authority/38,Oxfordshire County Council,ALTERNATIVES TO CARE,14/02/2022,2040,Agency Staff,2200955605,624.88,THORNBURY NURSING SERVICES
http://statistics.data.gov.uk/id/local-authority/38,Oxfordshire County Council,LEGAL SERVICES,04/02/2022,5251,Legal Costs,2200952616,625,Annie Sayers
http://statistics.data.gov.uk/id/local-authority/38,Oxfordshire County Council,Household Support Fund,02/02/2022,4939,,3111117228,625,Bampton CofE School
http://statistics.data.gov.uk/id/local-authority/38,Oxfordshire County Council,Parish 20mph Schemes,10/02/2022,4861,Hired and Contracted Services,2200954686,625,Bentley Cook Ltd
http://statistics.data.gov.uk/id/local-authority/38,Oxfordshire County Council,Support at Home U65 Learning Disability,10/02/2022,5227,Other Transport Arrangements,3111125116,625,C V OSullivan
http://statistics.data.gov.uk/id/local-authority/38,Oxfordshire County Council,RECRUITMENT+MEDICALS,15/02/2022,4122,Other premises related costs,2200955992,625,Glanville Picture Framing Company
http://statistics.data.gov.uk/id/local-authority/38,Oxfordshire County Council,Support at Home U65 MH OBC Contract,01/02/2022,5689,,3111116316,625.17,Oxford Private Care
http://statistics.data.gov.uk/id/local-authority/38,Oxfordshire County Council,Vaccine Funding Oct 21 � Mar 22,04/02/2022,5689,,3111118750,625.57,1st Homecare (Oxford) Ltd
http://statistics.data.gov.uk/id/local-authority/38,Oxfordshire County Council,Testing Funding Oct-21 -Mar22,04/02/2022,5689,,3111118478,625.57,Oasis Private Care Ltd
http://statistics.data.gov.uk/id/local-authority/38,Oxfordshire County Council,Testing Funding Oct-21 -Mar22,04/02/2022,5689,,3111118523,625.57,Same Ways Care Ltd
http://statistics.data.gov.uk/id/local-authority/38,Oxfordshire County Council,Community Support Service Bicester,21/02/2022,4525,Furniture,2200958218,625.75,ROMPA LIMITED
http://statistics.data.gov.uk/id/local-authority/38,Oxfordshire County Council,Workforce Capacity Fund Round 2,22/02/2022,5693,,3111130834,626.39,Henley Care Ltd
http://statistics.data.gov.uk/id/local-authority/38,Oxfordshire County Council,Workforce Capacity Fund Round 2,22/02/2022,5689,,3111131094,626.85,Same Ways Care Ltd
http://statistics.data.gov.uk/id/local-authority/38,Oxfordshire County Council,Support at Home U65 Physical Support,15/02/2022,5899,Social Care - Direct Payments,3111127686,626.92,Purple Conversation Com In Co (DP)
http://statistics.data.gov.uk/id/local-authority/38,Oxfordshire County Council,MAINSTREAM-PRIMARY,15/02/2022,4330,Transport to School Activities,3111126535,627,001 Alpha Cars Ltd
http://statistics.data.gov.uk/id/local-authority/38,Oxfordshire County Council,Support at Home U65 Learning Disability,01/02/2022,5696,,3111115746,627,All Care GB Ltd
http://statistics.data.gov.uk/id/local-authority/38,Oxfordshire County Council,POST 16 SEN,09/02/2022,4330,Transport to School Activities,3111120339,627,Angelas Travel
http://statistics.data.gov.uk/id/local-authority/38,Oxfordshire County Council,SEN TRANSPORT,09/02/2022,5227,Other Transport Arrangements,3111120170,627,Oxon Transport Services Ltd
http://statistics.data.gov.uk/id/local-authority/38,Oxfordshire County Council,2 YEAR OLD FUNDING,16/02/2022,5537,Payments to Other Establishments,3111128376,627.07,Woodstock Under Fives Association
http://statistics.data.gov.uk/id/local-authority/38,Oxfordshire County Council,Support at Home U65 Physical Support,15/02/2022,5899,Social Care - Direct Payments,3111127640,627.44,Purple Conversation Com In Co (DP)
http://statistics.data.gov.uk/id/local-authority/38,Oxfordshire County Council,Support at Home 65+ Physical Support,01/02/2022,5689,,3111116446,628,Premier Personal Care
http://statistics.data.gov.uk/id/local-authority/38,Oxfordshire County Council,LEGAL SERVICES,22/02/2022,5190,Subscriptions,2200958638,628,THOMSON REUTERS
http://statistics.data.gov.uk/id/local-authority/38,Oxfordshire County Council,East Oxfordshire Team,10/02/2022,5227,Other Transport Arrangements,3111120643,629,OMC GLOBAL LIMITED
http://statistics.data.gov.uk/id/local-authority/38,Oxfordshire County Council,Care Homes - Under 65 Physical Sypport,10/02/2022,5687,,3111122587,629,Orders of St John
http://statistics.data.gov.uk/id/local-authority/38,Oxfordshire County Council,Swindon Adoption Support Fund,07/02/2022,4859,Medical and Counselling Fees,2200953191,630,2PIP Theraputic Services
http://statistics.data.gov.uk/id/local-authority/38,Oxfordshire County Council,Swindon Adoption Support Fund,07/02/2022,4859,Medical and Counselling Fees,2200953195,630,2PIP Theraputic Services
http://statistics.data.gov.uk/id/local-authority/38,Oxfordshire County Council,MAINSTREAM-SECONDARY,14/02/2022,4330,Transport to School Activities,3111125649,630,A2B Castle Cars Ltd
http://statistics.data.gov.uk/id/local-authority/38,Oxfordshire County Council,Support at Home U65 Learning Disability,10/02/2022,5690,,3111121060,630,ADVANCE HOUSING & SUPPORT LTD
http://statistics.data.gov.uk/id/local-authority/38,Oxfordshire County Council,Oxfordshire Adoption Support Fund,24/02/2022,4861,Hired and Contracted Services,2200958881,630,Joanna Cowley
http://statistics.data.gov.uk/id/local-authority/38,Oxfordshire County Council,LD Continuing Care - Sup at Home - U65,18/02/2022,5691,,3111129379,630,KIT Mobility Taxis Oxford Ltd
http://statistics.data.gov.uk/id/local-authority/38,Oxfordshire County Council,Support at Home 65+ Physical Support,15/02/2022,5899,Social Care - Direct Payments,3111126340,630,Personal Redacted Data
http://statistics.data.gov.uk/id/local-authority/38,Oxfordshire County Council,ATV Adoption Woodley,03/02/2022,5251,Legal Costs,3111117502,630,OCC One Time Vendor
http://statistics.data.gov.uk/id/local-authority/38,Oxfordshire County Council,COMMUNITY & ROAD SAFETY,08/02/2022,3103,Other Training Courses and Qualification,2200953583,630,Outspoken Training LLP
http://statistics.data.gov.uk/id/local-authority/38,Oxfordshire County Council,Family Solutions Plus Non-staff - Centra,07/02/2022,5227,Other Transport Arrangements,3111119233,630,Oxon Transport Services Ltd
http://statistics.data.gov.uk/id/local-authority/38,Oxfordshire County Council,Support at Home U65 Physical Support,15/02/2022,5899,Social Care - Direct Payments,3111127913,630,Purple Conversation Com In Co (DP)
http://statistics.data.gov.uk/id/local-authority/38,Oxfordshire County Council,Family Solutions Plus Non-staff - South,01/02/2022,5227,Other Transport Arrangements,3111114071,630,Unitaxi Ltd
http://statistics.data.gov.uk/id/local-authority/38,Oxfordshire County Council,Fire Protection,18/02/2022,3100,Educational and Vocational Training,2200957631,630,Xact Consultancy and Training Ltd
http://statistics.data.gov.uk/id/local-authority/38,Oxfordshire County Council,Infection Prevention Crt Oct 21 � Mar 21,04/02/2022,5689,,3111118327,630.11,Orders of St John Care Trust
http://statistics.data.gov.uk/id/local-authority/38,Oxfordshire County Council,Infection Prevention Crt Oct 21 � Mar 21,04/02/2022,5689,,3111118343,630.11,Radis Community Care
http://statistics.data.gov.uk/id/local-authority/38,Oxfordshire County Council,Infection Prevention Crt Oct 21 � Mar 21,04/02/2022,5689,,3111118333,630.11,UNITED RESPONSE
http://statistics.data.gov.uk/id/local-authority/38,Oxfordshire County Council,Support at Home U65 Learning Disability,15/02/2022,5899,Social Care - Direct Payments,3111127820,630.36,Purple Conversation Com In Co (DP)
http://statistics.data.gov.uk/id/local-authority/38,Oxfordshire County Council,ALTERNATIVES TO CARE,25/02/2022,4859,Medical and Counselling Fees,2200959101,630.48,THORNBURY NURSING SERVICES
http://statistics.data.gov.uk/id/local-authority/38,Oxfordshire County Council,FLEET MAINTENANCE,09/02/2022,5091,Postage and Delivery,2200954397,630.5,Sutch Lifting Equipment
http://statistics.data.gov.uk/id/local-authority/38,Oxfordshire County Council,Workforce Capacity Fund Round 2,22/02/2022,5555,Payments to Carers,3111130885,630.67,Personal Redacted Data
http://statistics.data.gov.uk/id/local-authority/38,Oxfordshire County Council,SEN TRANSPORT,03/02/2022,4320,Pupil / Client Travel Reimbursement,3111117622,631.4,Personal Redacted Data
http://statistics.data.gov.uk/id/local-authority/38,Oxfordshire County Council,,18/02/2022,1448,Blackfield Inc & Exp A/c,3111129221,631.44,OCC One Time Vendor
http://statistics.data.gov.uk/id/local-authority/38,Oxfordshire County Council,LANDLORD & TENANT,22/02/2022,8102,Payments to main contractor,2200958546,631.45,Hughes and Associates Property Serv
http://statistics.data.gov.uk/id/local-authority/38,Oxfordshire County Council,SEN TRANSPORT,15/02/2022,4330,Transport to School Activities,3111125757,632,Vine Community Services Ltd T/A
http://statistics.data.gov.uk/id/local-authority/38,Oxfordshire County Council,Workforce Capacity Fund Round 2,22/02/2022,5689,,3111131039,632.23,Oxfordshire Crossroads
http://statistics.data.gov.uk/id/local-authority/38,Oxfordshire County Council,POST 16 SEN,21/02/2022,4330,Transport to School Activities,3111129608,632.5,The Oxfordshire Taxi Company Ltd T/
http://statistics.data.gov.uk/id/local-authority/38,Oxfordshire County Council,Delegated Health Tasks  - Over 65,15/02/2022,5691,,3111126123,632.72,Bluebird Care (Oxford South & West)
http://statistics.data.gov.uk/id/local-authority/38,Oxfordshire County Council,ALTERNATIVES TO CARE,14/02/2022,2040,Agency Staff,2200955607,633.28,THORNBURY NURSING SERVICES
http://statistics.data.gov.uk/id/local-authority/38,Oxfordshire County Council,Support at Home 65+ Physical Support,01/02/2022,5689,,3111115353,633.39,Bicester PA and Care LLP
http://statistics.data.gov.uk/id/local-authority/38,Oxfordshire County Council,ALTERNATIVES TO CARE,14/02/2022,2040,Agency Staff,2200955619,633.56,THORNBURY NURSING SERVICES
http://statistics.data.gov.uk/id/local-authority/38,Oxfordshire County Council,Support at Home U65 HFA,15/02/2022,5899,Social Care - Direct Payments,3111127746,633.8,Purple Conversation Com In Co (DP)
http://statistics.data.gov.uk/id/local-authority/38,Oxfordshire County Council,Support at Home 65+ Physical Support,11/02/2022,5693,,3111125360,634.4,Pioneering Care Bicester Limited
http://statistics.data.gov.uk/id/local-authority/38,Oxfordshire County Council,Support at Home U65 Learning Disability,16/02/2022,5697,,3111128396,634.65,Ways and Means Trust Ltd
http://statistics.data.gov.uk/id/local-authority/38,Oxfordshire County Council,Support at Home 65+ Sensory Support,01/02/2022,5698,,3111115537,634.74,KCARE NURSING AGENCY
http://statistics.data.gov.uk/id/local-authority/38,Oxfordshire County Council,Workforce Capacity Fund Round 2,22/02/2022,5689,,3111130822,634.86,Harino Care
http://statistics.data.gov.uk/id/local-authority/38,Oxfordshire County Council,Workforce Capacity Fund Round 2,22/02/2022,5693,,3111130910,634.87,MacIntyre Care (Womaston)
http://statistics.data.gov.uk/id/local-authority/38,Oxfordshire County Council,ALTERNATIVES TO CARE,14/02/2022,2040,Agency Staff,2200955602,634.96,THORNBURY NURSING SERVICES
http://statistics.data.gov.uk/id/local-authority/38,Oxfordshire County Council,ALTERNATIVES TO CARE,14/02/2022,2040,Agency Staff,2200955603,634.96,THORNBURY NURSING SERVICES
http://statistics.data.gov.uk/id/local-authority/38,Oxfordshire County Council,Workforce Capacity Fund Round 2,22/02/2022,5690,,3111131242,635.04,The Camden Society
http://statistics.data.gov.uk/id/local-authority/38,Oxfordshire County Council,Support at Home 65+ Physical Support,15/02/2022,5899,Social Care - Direct Payments,3111127697,635.08,Purple Conversation Com In Co (DP)
http://statistics.data.gov.uk/id/local-authority/38,Oxfordshire County Council,Support at Home 65+ Physical Support,15/02/2022,5899,Social Care - Direct Payments,3111128045,635.08,Purple Conversation Com In Co (DP)
http://statistics.data.gov.uk/id/local-authority/38,Oxfordshire County Council,FOSTERING MAIN,22/02/2022,5548,B*Fostering - Special Rates & Plus Amou,3111130517,635.14,Personal Redacted Data
http://statistics.data.gov.uk/id/local-authority/38,Oxfordshire County Council,FOSTERING MAIN,22/02/2022,5548,B*Fostering - Special Rates & Plus Amou,3111130518,635.14,Personal Redacted Data
http://statistics.data.gov.uk/id/local-authority/38,Oxfordshire County Council,Community Support Service - Abingdon,03/02/2022,4232,Vehicle Fuel,2200952056,635.15,Allstar Business Solutions Ltd
http://statistics.data.gov.uk/id/local-authority/38,Oxfordshire County Council,Support at Home U65 Physical Support,23/02/2022,5693,,3111131306,635.28,CaringPlus Healthcare Services Ltd
http://statistics.data.gov.uk/id/local-authority/38,Oxfordshire County Council,ALTERNATIVES TO CARE,14/02/2022,2040,Agency Staff,2200955621,635.32,THORNBURY NURSING SERVICES
http://statistics.data.gov.uk/id/local-authority/38,Oxfordshire County Council,Support at Home U65 Learning Disability,10/02/2022,5690,,3111120842,636,MacIntyre Care (Womaston)
http://statistics.data.gov.uk/id/local-authority/38,Oxfordshire County Council,Support at Home U65 Learning Disability,10/02/2022,5690,,3111120850,636,MacIntyre Care (Womaston)
http://statistics.data.gov.uk/id/local-authority/38,Oxfordshire County Council,SEN TRANSPORT,16/02/2022,4330,Transport to School Activities,3111128602,636.72,24/7 LTD
http://statistics.data.gov.uk/id/local-authority/38,Oxfordshire County Council,Support at Home U65 Learning Disability,17/02/2022,5696,,3111128736,636.79,Orders of St John Care Trust
http://statistics.data.gov.uk/id/local-authority/38,Oxfordshire County Council,L&D CORE PROGRAMME,16/02/2022,3100,Educational and Vocational Training,2200956544,637,Premier Partnership
http://statistics.data.gov.uk/id/local-authority/38,Oxfordshire County Council,Support at Home U65 MH OBC Contract,01/02/2022,4111,Security Costs,3111114192,638,OCC One Time Vendor
http://statistics.data.gov.uk/id/local-authority/38,Oxfordshire County Council,,07/02/2022,1531,Cash Allocation Control Account,3111120056,638,OCC One Time Vendor
http://statistics.data.gov.uk/id/local-authority/38,Oxfordshire County Council,Support at Home U65 MH OBC Contract,17/02/2022,4111,Security Costs,3111129003,638,OCC One Time Vendor
http://statistics.data.gov.uk/id/local-authority/38,Oxfordshire County Council,Support at Home 65+ Physical Support,01/02/2022,5698,,3111115401,638.02,Day & Night Care Assistance
http://statistics.data.gov.uk/id/local-authority/38,Oxfordshire County Council,Support at Home U65 Learning Disability,01/02/2022,5682,,3111114111,638.16,The Brandon Trust
http://statistics.data.gov.uk/id/local-authority/38,Oxfordshire County Council,Support at Home U65 Learning Disability,01/02/2022,5682,,3111114655,638.16,The Brandon Trust
http://statistics.data.gov.uk/id/local-authority/38,Oxfordshire County Council,Support at Home U65 Physical Support,01/02/2022,5689,,3111115995,638.19,Genuine Carers Ltd
http://statistics.data.gov.uk/id/local-authority/38,Oxfordshire County Council,Support at Home 65+ Physical Support,17/02/2022,5696,,3111128801,638.32,Orders of St John Care Trust
http://statistics.data.gov.uk/id/local-authority/38,Oxfordshire County Council,ALTERNATIVES TO CARE,14/02/2022,2040,Agency Staff,2200955617,638.32,THORNBURY NURSING SERVICES
http://statistics.data.gov.uk/id/local-authority/38,Oxfordshire County Council,ALTERNATIVES TO CARE,25/02/2022,4859,Medical and Counselling Fees,2200959114,638.32,THORNBURY NURSING SERVICES
http://statistics.data.gov.uk/id/local-authority/38,Oxfordshire County Council,Family Solutions Plus Non-staff - South,09/02/2022,4111,Security Costs,2200954130,638.4,Securipol Ltd
http://statistics.data.gov.uk/id/local-authority/38,Oxfordshire County Council,Support at Home 65+ Physical Support,01/02/2022,5689,,3111116151,638.96,Greigcare Home Service
http://statistics.data.gov.uk/id/local-authority/38,Oxfordshire County Council,LEGAL BUDGET,01/02/2022,5251,Legal Costs,2200951222,639.13,K International PLC
http://statistics.data.gov.uk/id/local-authority/38,Oxfordshire County Council,Support at Home U65 Other /Soc Isolation,15/02/2022,5899,Social Care - Direct Payments,3111127971,639.24,Purple Conversation Com In Co (DP)
http://statistics.data.gov.uk/id/local-authority/38,Oxfordshire County Council,Infection Prevention Crt Oct 21 � Mar 21,04/02/2022,5688,,3111118115,639.29,JESCARE SERVICES LTD
http://statistics.data.gov.uk/id/local-authority/38,Oxfordshire County Council,Support at Home 65+ Physical Support,15/02/2022,5899,Social Care - Direct Payments,3111127025,640,Personal Redacted Data
http://statistics.data.gov.uk/id/local-authority/38,Oxfordshire County Council,SEN TRANSPORT,02/02/2022,4330,Transport to School Activities,3111116860,640,Edchauffeurs Ltd
http://statistics.data.gov.uk/id/local-authority/38,Oxfordshire County Council,Rapid Response Reablement Outreach Team,10/02/2022,5227,Other Transport Arrangements,3111120688,640,Express Travel Oxford
http://statistics.data.gov.uk/id/local-authority/38,Oxfordshire County Council,Support at Home 65+ Physical Support,15/02/2022,5899,Social Care - Direct Payments,3111127179,640,Personal Redacted Data
http://statistics.data.gov.uk/id/local-authority/38,Oxfordshire County Council,Reading Adoption Support Fund,02/02/2022,4861,Hired and Contracted Services,2200951486,640,Heads & Hearts Ltd
http://statistics.data.gov.uk/id/local-authority/38,Oxfordshire County Council,Support at Home U65 Physical Support,15/02/2022,5899,Social Care - Direct Payments,3111127168,640,Personal Redacted Data
http://statistics.data.gov.uk/id/local-authority/38,Oxfordshire County Council,Support at Home U65 Learning Disability,07/02/2022,5227,Other Transport Arrangements,3111119221,640,Oxon Transport Services Ltd
http://statistics.data.gov.uk/id/local-authority/38,Oxfordshire County Council,Support at Home U65 Learning Disability,02/02/2022,5227,Other Transport Arrangements,3111116847,640,STREAMLINE PEPPARD TAXIS LTD
http://statistics.data.gov.uk/id/local-authority/38,Oxfordshire County Council,Support at Home U65 Physical Support,15/02/2022,5899,Social Care - Direct Payments,3111127386,641.08,Purple Conversation Com In Co (DP)
http://statistics.data.gov.uk/id/local-authority/38,Oxfordshire County Council,Support at Home U65 Physical Support,15/02/2022,5899,Social Care - Direct Payments,3111127699,641.16,Purple Conversation Com In Co (DP)
http://statistics.data.gov.uk/id/local-authority/38,Oxfordshire County Council,Vaccine Funding Oct 21 � Mar 22,04/02/2022,5686,,3111118970,641.55,HENLEY MANOR CARE HOME
http://statistics.data.gov.uk/id/local-authority/38,Oxfordshire County Council,Vaccine Funding Oct 21 � Mar 22,04/02/2022,5686,,3111118995,641.55,Orders of St John
http://statistics.data.gov.uk/id/local-authority/38,Oxfordshire County Council,Workforce Capacity Fund Round 2,22/02/2022,5699,,3111130866,641.79,Home Helpers Care Ltd
http://statistics.data.gov.uk/id/local-authority/38,Oxfordshire County Council,Support at Home 65+ Physical Support,01/02/2022,5699,,3111115958,641.79,Pechiv Ltd
http://statistics.data.gov.uk/id/local-authority/38,Oxfordshire County Council,Support at Home 65+ Physical Support,01/02/2022,5699,,3111116062,641.79,YOD Ltd
http://statistics.data.gov.uk/id/local-authority/38,Oxfordshire County Council,Covid 19 CHC,10/02/2022,5687,,3111122985,642,Orders of St John
http://statistics.data.gov.uk/id/local-authority/38,Oxfordshire County Council,Support at Home 65+ Physical Support,10/02/2022,5686,,3111123217,642,Orders of St John
http://statistics.data.gov.uk/id/local-authority/38,Oxfordshire County Council,Support at Home 65+ Physical Support,10/02/2022,5686,,3111123359,642,Orders of St John
http://statistics.data.gov.uk/id/local-authority/38,Oxfordshire County Council,Support at Home 65+ Physical Support,01/02/2022,5689,,3111115563,642.2,Caremark (West Oxfordshire & Cherwe
http://statistics.data.gov.uk/id/local-authority/38,Oxfordshire County Council,Support at Home 65+ Physical Support,04/02/2022,5693,,3111117810,642.64,Chamomile Care Ltd
http://statistics.data.gov.uk/id/local-authority/38,Oxfordshire County Council,Support at Home 65+ Memory & Cognition,15/02/2022,5899,Social Care - Direct Payments,3111127791,643.2,Purple Conversation Com In Co (DP)
http://statistics.data.gov.uk/id/local-authority/38,Oxfordshire County Council,Support at Home U65 Other /Soc Isolation,01/02/2022,5689,,3111116496,643.82,Response Organisation
http://statistics.data.gov.uk/id/local-authority/38,Oxfordshire County Council,Support at Home U65 Learning Disability,01/02/2022,5689,,3111115985,643.94,Genuine Carers Ltd
http://statistics.data.gov.uk/id/local-authority/38,Oxfordshire County Council,Support at Home 65+ Physical Support,25/02/2022,5693,,3111132097,644,Kwikfix Recruitment Services Ltd
http://statistics.data.gov.uk/id/local-authority/38,Oxfordshire County Council,CHC Fast Track - Sup at Homes - Over 65,28/02/2022,5691,,3111132250,644,Sue Ryder
http://statistics.data.gov.uk/id/local-authority/38,Oxfordshire County Council,Support at Home U65 Physical Support,01/02/2022,5689,,3111116038,644.12,Golden Services Care Ltd
http://statistics.data.gov.uk/id/local-authority/38,Oxfordshire County Council,Support at Home U65 MH OBC Contract,18/02/2022,5691,,3111129369,644.5,Care With Dignity Partnerships
http://statistics.data.gov.uk/id/local-authority/38,Oxfordshire County Council,Household Support Fund,02/02/2022,4939,,3111117381,645,The Gallery Trust
http://statistics.data.gov.uk/id/local-authority/38,Oxfordshire County Council,Support at Home 65+ Memory & Cognition,01/02/2022,5689,,3111115294,645.2,Amber Healthcare Personnel Ltd
http://statistics.data.gov.uk/id/local-authority/38,Oxfordshire County Council,Support at Home U65 Physical Support,01/02/2022,5698,,3111115656,645.31,Oxford Private Care
